{"text_format":"1","workbook":"xlsx","n_sheets":13,"sheets":["OLD PAPI_24- 27 (Delib. 246) ","Identificação das ações 24-27","Acompanhamento das metas 24-27","Acomp. financeiro  24-27","PAPI 2024-2027","Consolidaçao - 1","Consolidaçao - 2","Orientações","Acomp. - PAPI_21 (Delib. 190) ","Acomp. PAPI_22_23 (Delib. 246) ","Operacional","Explicativo","de-para 246 190"],"not_rendered":{"charts":5,"images":0,"macros":1,"external_links":0,"defined_names":8,"comments":7,"pivot_tables":6},"unopened":[],"bounds":{"document_bytes":16777216,"sheet_cells":100000,"rows_first":2000,"rows_last":500,"rows_between":2000,"halvings":0,"cell_chars":16384,"cell_head_chars":4096},"cells_cut":0,"cells_raw":0,"read":"whole","date_system":"1900"}

{"sheet":"OLD PAPI_24- 27 (Delib. 246) ","index":0,"n_rows":50,"n_cols":24,"rows_kept":50,"cut":false,"hidden":true,"merged":[]}
["ID Ação","Ação iniciou no PA/PI anterior?","Se sim, id da ação anterior","Ano previsto para início","Tipo de ação","É ou será  empreendimento FEHIDRO?","Ação requer recursos financeiros?","SubPDC","Prioridade do SubPDC","Ação","Meta","% Execução da meta do quadriênio","Segmento do executor","Área de abrangência","Nome da área de abrangência","Recurso financeiro estimado no ano\n(R$) - Cobrança Estadual","Recurso financeiro estimado no ano (R$) - CFURH","Recurso financeiro estimado no ano\n(R$) - Cobrança Federal","Recurso financeiro estimado no ano (R$) - Outras","Especificar Fonte - \"Outras\"","Recurso financeiro estimado no ano\n(R$)","Recurso financeiro disponibilizado no ano (R$)","Recurso financeiro executado no ano (R$)","Justificativa sobre execução física e financeira"]
["SID012024","Não",null,2024,null,"Sim",null,"3.1 - Efluentes","Não prioritário","Efetuar estudos de detalhe sobre a disponibilidade hídrica superficial e subterrânea (AG.11)","MG.4 - Realizar ao menos 01 estudo que subsidie o planejamento e a gestão de recursos hídricos na UGRHi 18",null,null,"Sub-bacia","Sub-bacia crítica conforme classe de  vazão de referência apontadas no Relatório de Situação",null,null,null,null,null,{"$f":"IF(SUM(PAPI20_22_23[[#This Row],[Recurso financeiro estimado no ano\n(R$) - Cobrança Estadual]:[Recurso financeiro estimado no ano (R$) - Outras]]) >0,SUM(PAPI20_22_23[[#This Row],[Recurso financeiro estimado no ano\n(R$) - Cobrança Estadual]:[Recurso financeiro estimado no ano (R$) - Outras]]),\"\")","v":""}]
["SID012025",null,null,2024,null,null,null,null,null,"Manter o cadastro atualizado na bacia hidrográfica SJD  (AG.13)","MG.4 - Realizar ao menos 01 estudo para acompanhamento e adequação da cobrança pelo uso dos recursos hídricos",null,"Estado","UGRHi","UGRHi 18",170000,null,null,null,null,{"$f":"IF(SUM(PAPI20_22_23[[#This Row],[Recurso financeiro estimado no ano\n(R$) - Cobrança Estadual]:[Recurso financeiro estimado no ano (R$) - Outras]]) >0,SUM(PAPI20_22_23[[#This Row],[Recurso financeiro estimado no ano\n(R$) - Cobrança Estadual]:[Recurso financeiro estimado no ano (R$) - Outras]]),\"\")","v":170000}]
["SID012024",null,null,null,null,null,null,null,null,"Execução de obras de sistemas de esgotamento sanitário, bem como de tratamento de efluentes provenientes de ETE  (AI.3, 4, 5 e 6)","MI. 2 e 3 - Efetuar melhorias nos sistemas de tratamento de esgoto  em ao \nmenos 02 municípios",null,"Município","Município","Municípios da UGRHi 18 que apresentem proporção de redução da carga orgânica poluidora domestica ≤ 80%. ",260000,null,null,null,null,{"$f":"IF(SUM(PAPI20_22_23[[#This Row],[Recurso financeiro estimado no ano\n(R$) - Cobrança Estadual]:[Recurso financeiro estimado no ano (R$) - Outras]]) >0,SUM(PAPI20_22_23[[#This Row],[Recurso financeiro estimado no ano\n(R$) - Cobrança Estadual]:[Recurso financeiro estimado no ano (R$) - Outras]]),\"\")","v":260000}]
["SID042022",null,null,null,null,null,null,null,null,"Execução de obras e projetos (AI 8 e 9) nos casos em que haja comprometimento dos recursos hídricos","MI.4 -  Efetuar melhorias nos sistemas de aterros sanitários em ao menos 02  municípios",null,"Município","Município","Municípios com sistema de tratamento e coleta de resíduos sólidos ineficientes, conforme  consta no Rel. Situação.",250000,null,null,null,null,{"$f":"IF(SUM(PAPI20_22_23[[#This Row],[Recurso financeiro estimado no ano\n(R$) - Cobrança Estadual]:[Recurso financeiro estimado no ano (R$) - Outras]]) >0,SUM(PAPI20_22_23[[#This Row],[Recurso financeiro estimado no ano\n(R$) - Cobrança Estadual]:[Recurso financeiro estimado no ano (R$) - Outras]]),\"\")","v":250000}]
["SID052022",null,null,null,null,null,null,null,null,"Execução de obras ou projetos que controle a erosão do solo ou assoreamento dos corpos d’água, em áreas urbanas ou rurais (AI. 14, 15 e 16)","MI. 6 e MI. 7 - Aprimorar sistemas de conservação do solo e controle de erosão em ao menos 03 municípios",null,"Município","Município","Municípios com Plano de Drenagem ou Plano Diretor de Erosão elaborado",null,288866.7,null,null,null,{"$f":"IF(SUM(PAPI20_22_23[[#This Row],[Recurso financeiro estimado no ano\n(R$) - Cobrança Estadual]:[Recurso financeiro estimado no ano (R$) - Outras]]) >0,SUM(PAPI20_22_23[[#This Row],[Recurso financeiro estimado no ano\n(R$) - Cobrança Estadual]:[Recurso financeiro estimado no ano (R$) - Outras]]),\"\")","v":288866.7}]
["SID062022",null,null,null,null,null,null,null,null,"Implementação das açoes indicadas no Plano de Saneamento (AI.11 e 12)\n(troca de hidrômetros, manutenção de rede, instalação de válvulas redutoras de pressão, entre outros)","MI.5 - Reduzir perdas em sistemas de abastecimento de água em ao menos 02 municípios",null,"Município","Município","Ilha Solteira, Santa Fé do Sul, Suzanápolis, São João de Iracema e Neves Paulista",170000,null,null,null,null,{"$f":"IF(SUM(PAPI20_22_23[[#This Row],[Recurso financeiro estimado no ano\n(R$) - Cobrança Estadual]:[Recurso financeiro estimado no ano (R$) - Outras]]) >0,SUM(PAPI20_22_23[[#This Row],[Recurso financeiro estimado no ano\n(R$) - Cobrança Estadual]:[Recurso financeiro estimado no ano (R$) - Outras]]),\"\")","v":170000}]
["SID072022",null,null,null,null,null,null,null,null,"Execução de obras ou projetos de galerias de águas pluviais e canalização de curso d'água em área urbana e periurbana (AI.17, AI. 21, 22 e 23 )","MI. 7 e MI. 9 - Realizar melhorias nos sistemas de drenagem em ao menos 02 municípios",null,"Município","Município","Obras indicadas no Plano/Estudo de Drenagem no Município  e para Projetos com necessidades de readequação/ampliação",null,200000,null,null,null,{"$f":"IF(SUM(PAPI20_22_23[[#This Row],[Recurso financeiro estimado no ano\n(R$) - Cobrança Estadual]:[Recurso financeiro estimado no ano (R$) - Outras]]) >0,SUM(PAPI20_22_23[[#This Row],[Recurso financeiro estimado no ano\n(R$) - Cobrança Estadual]:[Recurso financeiro estimado no ano (R$) - Outras]]),\"\")","v":200000}]
["SID082022",null,null,null,null,null,null,null,null,"Orientação aos produtores rurais quanto à importância da outorga e treinamento/capacitação sobre os procedimentos de outorga e licenciamento ambiental (AG.25)","MG.9. Realizar ao menos 1 curso de capacitação técnica relacionada ao planejamento e gestão de recursos hídricos",null,null,"UGRHi","UGRHi 18",150000,null,null,null,null,{"$f":"IF(SUM(PAPI20_22_23[[#This Row],[Recurso financeiro estimado no ano\n(R$) - Cobrança Estadual]:[Recurso financeiro estimado no ano (R$) - Outras]]) >0,SUM(PAPI20_22_23[[#This Row],[Recurso financeiro estimado no ano\n(R$) - Cobrança Estadual]:[Recurso financeiro estimado no ano (R$) - Outras]]),\"\")","v":150000},150000,0,"empreendimento não iniciado - emitiu o contrato"]
["SID012023",null,null,null,null,null,null,null,null,"Realizar estudo/diagnóstico ambiental das nascentes, por sub-bacia, na UGRHI","Aumentar as informações afim de subsidiar o planejamento e a gestão dos recursos hídricos na UGRHI",null,"DIVERSOS","UGRHi","UGRHi 18 ",200197.43,null,null,null,null,{"$f":"IF(SUM(PAPI20_22_23[[#This Row],[Recurso financeiro estimado no ano\n(R$) - Cobrança Estadual]:[Recurso financeiro estimado no ano (R$) - Outras]]) >0,SUM(PAPI20_22_23[[#This Row],[Recurso financeiro estimado no ano\n(R$) - Cobrança Estadual]:[Recurso financeiro estimado no ano (R$) - Outras]]),\"\")","v":200197.43}]
["SID022023",null,null,null,null,null,null,null,null,"Elaborar mapa de feições erosivas da UGRHI"," Aumentar as informações afim de subsidiar o planejamento e a gestão dos recursos hídricos na UGRHI",null,"DIVERSOS","UGRHi","UGRHi 18 ",null,280000,null,null,null,{"$f":"IF(SUM(PAPI20_22_23[[#This Row],[Recurso financeiro estimado no ano\n(R$) - Cobrança Estadual]:[Recurso financeiro estimado no ano (R$) - Outras]]) >0,SUM(PAPI20_22_23[[#This Row],[Recurso financeiro estimado no ano\n(R$) - Cobrança Estadual]:[Recurso financeiro estimado no ano (R$) - Outras]]),\"\")","v":280000}]
["SID032022",null,null,null,null,null,null,null,null,"Elaboração do Plano diretor de controle de perdas","Aumentar as informações afim de subsidiar o planejamento e a gestão dos recursos hídricos na UGRHI",null,"Município","Município","Ilha Solteira, Neves Paulista, São João de Iracema e Santa Fé do Sul.",170000,null,null,null,null,{"$f":"IF(SUM(PAPI20_22_23[[#This Row],[Recurso financeiro estimado no ano\n(R$) - Cobrança Estadual]:[Recurso financeiro estimado no ano (R$) - Outras]]) >0,SUM(PAPI20_22_23[[#This Row],[Recurso financeiro estimado no ano\n(R$) - Cobrança Estadual]:[Recurso financeiro estimado no ano (R$) - Outras]]),\"\")","v":170000}]
["SID042023",null,null,null,null,null,null,null,null,"Elaborar estudos para o controle de processos erosivos e projetos (básicos e/ou executivos), serviços ou obras para prevenção, prioritariamente em bacias de abastecimento, nascentes e áreas de recarga\n(troca de hidrômetros, manutenção de rede, instalação de válvulas redutoras de pressão, entre outros)","Prevenir e controlar processos de erosão e assoreamento, visando a melhoria ou recuperação dos corpos d’água",null,"Município","Município","Floreal, General Salgado, Ilha Solteira, Jales, Monte Aprazível, Neves Paulista, Nhandeara, Palmeira d´oeste, Santa Fé do Sul, Sebastianópolis do Sul, Cosmorama, Monte Aprazível, Poloni, Santa Salete, Santana da Ponte Pensa, São Francisco, Tanabi, Três Fronteiras e Votuporanga",400000,300000,null,null,null,{"$f":"IF(SUM(PAPI20_22_23[[#This Row],[Recurso financeiro estimado no ano\n(R$) - Cobrança Estadual]:[Recurso financeiro estimado no ano (R$) - Outras]]) >0,SUM(PAPI20_22_23[[#This Row],[Recurso financeiro estimado no ano\n(R$) - Cobrança Estadual]:[Recurso financeiro estimado no ano (R$) - Outras]]),\"\")","v":700000}]
["SID052023",null,null,null,null,null,null,null,null,"Elaborar Projetos (básicos e/ou executivos), obras ou serviços em sistemas de abastecimento, visando controle e redução de perdas de água","Alcance de uma média de 25% de perdas globais nos municípios da Bacia",null,"Município","Município","Ilha Solteira, Suzanápolis, Santa Fé do Sul, Neves Paulista e São João de Iracema.",300000,null,null,null,null,{"$f":"IF(SUM(PAPI20_22_23[[#This Row],[Recurso financeiro estimado no ano\n(R$) - Cobrança Estadual]:[Recurso financeiro estimado no ano (R$) - Outras]]) >0,SUM(PAPI20_22_23[[#This Row],[Recurso financeiro estimado no ano\n(R$) - Cobrança Estadual]:[Recurso financeiro estimado no ano (R$) - Outras]]),\"\")","v":300000}]
["SID092023",null,null,null,null,null,null,null,null,"Aquisição de equipamentos para operacionalização  de sistemas de alerta, radares meteorológicos ou redes telemétricas integrados a sistemas de suporte à decisão; divulgação de informações e apoio à defesa civil (AG. 24) ","MG. 8 - Estruturar 01 Sala de Situação visando o Monitoramento de eventos extremos e sistemas de suporte a decisão",null,null,"Sub-bacia","UGRHi 18",400000,null,null,null,null,{"$f":"IF(SUM(PAPI20_22_23[[#This Row],[Recurso financeiro estimado no ano\n(R$) - Cobrança Estadual]:[Recurso financeiro estimado no ano (R$) - Outras]]) >0,SUM(PAPI20_22_23[[#This Row],[Recurso financeiro estimado no ano\n(R$) - Cobrança Estadual]:[Recurso financeiro estimado no ano (R$) - Outras]]),\"\")","v":400000},851322.1,0,"adiantamos a indicação da ação prevista para 2023 - empreendimento cancelado"]
["SID07023",null,null,null,null,null,null,null,null,"Elaborar projetos (básicos e/ou executivos), serviços, obras em municípios com sistema de coleta e disposição final de resíduos sólidos ineficientes e/ou inadequadas; e implantar pontos de entrega voluntária (PEV), e programas de coleta seletiva"," Aumentar a cobertura da coleta de resíduos sólidos em áreas urbanas e rurais dos municípios ",null,"Município","Município","Município",308323.15000000002,null,null,null,null,{"$f":"IF(SUM(PAPI20_22_23[[#This Row],[Recurso financeiro estimado no ano\n(R$) - Cobrança Estadual]:[Recurso financeiro estimado no ano (R$) - Outras]]) >0,SUM(PAPI20_22_23[[#This Row],[Recurso financeiro estimado no ano\n(R$) - Cobrança Estadual]:[Recurso financeiro estimado no ano (R$) - Outras]]),\"\")","v":308323.15000000002}]
["SID08023",null,null,null,null,null,null,null,null,"Elaborar projetos (básicos e/ou executivos), executar obras ou serviços em sistemas de abastecimento, visando propor soluções alternativas e a ampliação da rede de distribuição, das demais estruturas de apoio ao abastecimento","Aproveitamento dos recursos hídricos e segurança hídrica",null,"Município","Município","Município",179324.92,null,null,null,null,{"$f":"IF(SUM(PAPI20_22_23[[#This Row],[Recurso financeiro estimado no ano\n(R$) - Cobrança Estadual]:[Recurso financeiro estimado no ano (R$) - Outras]]) >0,SUM(PAPI20_22_23[[#This Row],[Recurso financeiro estimado no ano\n(R$) - Cobrança Estadual]:[Recurso financeiro estimado no ano (R$) - Outras]]),\"\")","v":179324.92}]
["SID06023",null,null,null,null,null,null,null,null,"Elaborar projetos (básicos e/ou executivos), serviços ou obras para contenção de inundações, alagamentos, inclusive por técnicas de infiltração e armazenamento; e regularizações de descargas e dispositivos de lançamento de drenagem"," Contenção de inundações, alagamentos e regularizações de descargas na UGRHI",null,"Município","Município","Município",null,1113141.6499999999,null,null,null,{"$f":"IF(SUM(PAPI20_22_23[[#This Row],[Recurso financeiro estimado no ano\n(R$) - Cobrança Estadual]:[Recurso financeiro estimado no ano (R$) - Outras]]) >0,SUM(PAPI20_22_23[[#This Row],[Recurso financeiro estimado no ano\n(R$) - Cobrança Estadual]:[Recurso financeiro estimado no ano (R$) - Outras]]),\"\")","v":1113141.6499999999}]
[null,null,null,null,null,null,null,null,null,null,null,null,null,null,null,null,null,null,null,null,{"$f":"IF(SUM(PAPI20_22_23[[#This Row],[Recurso financeiro estimado no ano\n(R$) - Cobrança Estadual]:[Recurso financeiro estimado no ano (R$) - Outras]]) >0,SUM(PAPI20_22_23[[#This Row],[Recurso financeiro estimado no ano\n(R$) - Cobrança Estadual]:[Recurso financeiro estimado no ano (R$) - Outras]]),\"\")","v":""}]
[null,null,null,null,null,null,null,null,null,null,null,null,null,null,null,null,null,null,null,null,{"$f":"IF(SUM(PAPI20_22_23[[#This Row],[Recurso financeiro estimado no ano\n(R$) - Cobrança Estadual]:[Recurso financeiro estimado no ano (R$) - Outras]]) >0,SUM(PAPI20_22_23[[#This Row],[Recurso financeiro estimado no ano\n(R$) - Cobrança Estadual]:[Recurso financeiro estimado no ano (R$) - Outras]]),\"\")","v":""}]
[null,null,null,null,null,null,null,null,null,null,null,null,null,null,null,null,null,null,null,null,{"$f":"IF(SUM(PAPI20_22_23[[#This Row],[Recurso financeiro estimado no ano\n(R$) - Cobrança Estadual]:[Recurso financeiro estimado no ano (R$) - Outras]]) >0,SUM(PAPI20_22_23[[#This Row],[Recurso financeiro estimado no ano\n(R$) - Cobrança Estadual]:[Recurso financeiro estimado no ano (R$) - Outras]]),\"\")","v":""}]
[null,null,null,null,null,null,null,null,null,null,null,null,null,null,null,null,null,null,null,null,{"$f":"IF(SUM(PAPI20_22_23[[#This Row],[Recurso financeiro estimado no ano\n(R$) - Cobrança Estadual]:[Recurso financeiro estimado no ano (R$) - Outras]]) >0,SUM(PAPI20_22_23[[#This Row],[Recurso financeiro estimado no ano\n(R$) - Cobrança Estadual]:[Recurso financeiro estimado no ano (R$) - Outras]]),\"\")","v":""}]
[null,null,null,null,null,null,null,null,null,null,null,null,null,null,null,null,null,null,null,null,{"$f":"IF(SUM(PAPI20_22_23[[#This Row],[Recurso financeiro estimado no ano\n(R$) - Cobrança Estadual]:[Recurso financeiro estimado no ano (R$) - Outras]]) >0,SUM(PAPI20_22_23[[#This Row],[Recurso financeiro estimado no ano\n(R$) - Cobrança Estadual]:[Recurso financeiro estimado no ano (R$) - Outras]]),\"\")","v":""}]
[null,null,null,null,null,null,null,null,null,null,null,null,null,null,null,null,null,null,null,null,{"$f":"IF(SUM(PAPI20_22_23[[#This Row],[Recurso financeiro estimado no ano\n(R$) - Cobrança Estadual]:[Recurso financeiro estimado no ano (R$) - Outras]]) >0,SUM(PAPI20_22_23[[#This Row],[Recurso financeiro estimado no ano\n(R$) - Cobrança Estadual]:[Recurso financeiro estimado no ano (R$) - Outras]]),\"\")","v":""}]
[null,null,null,null,null,null,null,null,null,null,null,null,null,null,null,null,null,null,null,null,{"$f":"IF(SUM(PAPI20_22_23[[#This Row],[Recurso financeiro estimado no ano\n(R$) - Cobrança Estadual]:[Recurso financeiro estimado no ano (R$) - Outras]]) >0,SUM(PAPI20_22_23[[#This Row],[Recurso financeiro estimado no ano\n(R$) - Cobrança Estadual]:[Recurso financeiro estimado no ano (R$) - Outras]]),\"\")","v":""}]
[null,null,null,null,null,null,null,null,null,null,null,null,null,null,null,null,null,null,null,null,{"$f":"IF(SUM(PAPI20_22_23[[#This Row],[Recurso financeiro estimado no ano\n(R$) - Cobrança Estadual]:[Recurso financeiro estimado no ano (R$) - Outras]]) >0,SUM(PAPI20_22_23[[#This Row],[Recurso financeiro estimado no ano\n(R$) - Cobrança Estadual]:[Recurso financeiro estimado no ano (R$) - Outras]]),\"\")","v":""}]
[null,null,null,null,null,null,null,null,null,null,null,null,null,null,null,null,null,null,null,null,{"$f":"IF(SUM(PAPI20_22_23[[#This Row],[Recurso financeiro estimado no ano\n(R$) - Cobrança Estadual]:[Recurso financeiro estimado no ano (R$) - Outras]]) >0,SUM(PAPI20_22_23[[#This Row],[Recurso financeiro estimado no ano\n(R$) - Cobrança Estadual]:[Recurso financeiro estimado no ano (R$) - Outras]]),\"\")","v":""}]
[null,null,null,null,null,null,null,null,null,null,null,null,null,null,null,null,null,null,null,null,{"$f":"IF(SUM(PAPI20_22_23[[#This Row],[Recurso financeiro estimado no ano\n(R$) - Cobrança Estadual]:[Recurso financeiro estimado no ano (R$) - Outras]]) >0,SUM(PAPI20_22_23[[#This Row],[Recurso financeiro estimado no ano\n(R$) - Cobrança Estadual]:[Recurso financeiro estimado no ano (R$) - Outras]]),\"\")","v":""}]
[null,null,null,null,null,null,null,null,null,null,null,null,null,null,null,null,null,null,null,null,{"$f":"IF(SUM(PAPI20_22_23[[#This Row],[Recurso financeiro estimado no ano\n(R$) - Cobrança Estadual]:[Recurso financeiro estimado no ano (R$) - Outras]]) >0,SUM(PAPI20_22_23[[#This Row],[Recurso financeiro estimado no ano\n(R$) - Cobrança Estadual]:[Recurso financeiro estimado no ano (R$) - Outras]]),\"\")","v":""}]
[null,null,null,null,null,null,null,null,null,null,null,null,null,null,null,null,null,null,null,null,{"$f":"IF(SUM(PAPI20_22_23[[#This Row],[Recurso financeiro estimado no ano\n(R$) - Cobrança Estadual]:[Recurso financeiro estimado no ano (R$) - Outras]]) >0,SUM(PAPI20_22_23[[#This Row],[Recurso financeiro estimado no ano\n(R$) - Cobrança Estadual]:[Recurso financeiro estimado no ano (R$) - Outras]]),\"\")","v":""}]
[null,null,null,null,null,null,null,null,null,null,null,null,null,null,null,null,null,null,null,null,{"$f":"IF(SUM(PAPI20_22_23[[#This Row],[Recurso financeiro estimado no ano\n(R$) - Cobrança Estadual]:[Recurso financeiro estimado no ano (R$) - Outras]]) >0,SUM(PAPI20_22_23[[#This Row],[Recurso financeiro estimado no ano\n(R$) - Cobrança Estadual]:[Recurso financeiro estimado no ano (R$) - Outras]]),\"\")","v":""}]
[null,null,null,null,null,null,null,null,null,null,null,null,null,null,null,null,null,null,null,null,{"$f":"IF(SUM(PAPI20_22_23[[#This Row],[Recurso financeiro estimado no ano\n(R$) - Cobrança Estadual]:[Recurso financeiro estimado no ano (R$) - Outras]]) >0,SUM(PAPI20_22_23[[#This Row],[Recurso financeiro estimado no ano\n(R$) - Cobrança Estadual]:[Recurso financeiro estimado no ano (R$) - Outras]]),\"\")","v":""}]
[null,null,null,null,null,null,null,null,null,null,null,null,null,null,null,null,null,null,null,null,{"$f":"IF(SUM(PAPI20_22_23[[#This Row],[Recurso financeiro estimado no ano\n(R$) - Cobrança Estadual]:[Recurso financeiro estimado no ano (R$) - Outras]]) >0,SUM(PAPI20_22_23[[#This Row],[Recurso financeiro estimado no ano\n(R$) - Cobrança Estadual]:[Recurso financeiro estimado no ano (R$) - Outras]]),\"\")","v":""}]
[null,null,null,null,null,null,null,null,null,null,null,null,null,null,null,null,null,null,null,null,{"$f":"IF(SUM(PAPI20_22_23[[#This Row],[Recurso financeiro estimado no ano\n(R$) - Cobrança Estadual]:[Recurso financeiro estimado no ano (R$) - Outras]]) >0,SUM(PAPI20_22_23[[#This Row],[Recurso financeiro estimado no ano\n(R$) - Cobrança Estadual]:[Recurso financeiro estimado no ano (R$) - Outras]]),\"\")","v":""}]
[null,null,null,null,null,null,null,null,null,null,null,null,null,null,null,null,null,null,null,null,{"$f":"IF(SUM(PAPI20_22_23[[#This Row],[Recurso financeiro estimado no ano\n(R$) - Cobrança Estadual]:[Recurso financeiro estimado no ano (R$) - Outras]]) >0,SUM(PAPI20_22_23[[#This Row],[Recurso financeiro estimado no ano\n(R$) - Cobrança Estadual]:[Recurso financeiro estimado no ano (R$) - Outras]]),\"\")","v":""}]
[null,null,null,null,null,null,null,null,null,null,null,null,null,null,null,null,null,null,null,null,{"$f":"IF(SUM(PAPI20_22_23[[#This Row],[Recurso financeiro estimado no ano\n(R$) - Cobrança Estadual]:[Recurso financeiro estimado no ano (R$) - Outras]]) >0,SUM(PAPI20_22_23[[#This Row],[Recurso financeiro estimado no ano\n(R$) - Cobrança Estadual]:[Recurso financeiro estimado no ano (R$) - Outras]]),\"\")","v":""}]
[null,null,null,null,null,null,null,null,null,null,null,null,null,null,null,null,null,null,null,null,{"$f":"IF(SUM(PAPI20_22_23[[#This Row],[Recurso financeiro estimado no ano\n(R$) - Cobrança Estadual]:[Recurso financeiro estimado no ano (R$) - Outras]]) >0,SUM(PAPI20_22_23[[#This Row],[Recurso financeiro estimado no ano\n(R$) - Cobrança Estadual]:[Recurso financeiro estimado no ano (R$) - Outras]]),\"\")","v":""}]
[null,null,null,null,null,null,null,null,null,null,null,null,null,null,null,null,null,null,null,null,{"$f":"IF(SUM(PAPI20_22_23[[#This Row],[Recurso financeiro estimado no ano\n(R$) - Cobrança Estadual]:[Recurso financeiro estimado no ano (R$) - Outras]]) >0,SUM(PAPI20_22_23[[#This Row],[Recurso financeiro estimado no ano\n(R$) - Cobrança Estadual]:[Recurso financeiro estimado no ano (R$) - Outras]]),\"\")","v":""}]
[null,null,null,null,null,null,null,null,null,null,null,null,null,null,null,null,null,null,null,null,{"$f":"IF(SUM(PAPI20_22_23[[#This Row],[Recurso financeiro estimado no ano\n(R$) - Cobrança Estadual]:[Recurso financeiro estimado no ano (R$) - Outras]]) >0,SUM(PAPI20_22_23[[#This Row],[Recurso financeiro estimado no ano\n(R$) - Cobrança Estadual]:[Recurso financeiro estimado no ano (R$) - Outras]]),\"\")","v":""}]
[null,null,null,null,null,null,null,null,null,null,null,null,null,null,null,null,null,null,null,null,{"$f":"IF(SUM(PAPI20_22_23[[#This Row],[Recurso financeiro estimado no ano\n(R$) - Cobrança Estadual]:[Recurso financeiro estimado no ano (R$) - Outras]]) >0,SUM(PAPI20_22_23[[#This Row],[Recurso financeiro estimado no ano\n(R$) - Cobrança Estadual]:[Recurso financeiro estimado no ano (R$) - Outras]]),\"\")","v":""}]
[null,null,null,null,null,null,null,null,null,null,null,null,null,null,null,null,null,null,null,null,{"$f":"IF(SUM(PAPI20_22_23[[#This Row],[Recurso financeiro estimado no ano\n(R$) - Cobrança Estadual]:[Recurso financeiro estimado no ano (R$) - Outras]]) >0,SUM(PAPI20_22_23[[#This Row],[Recurso financeiro estimado no ano\n(R$) - Cobrança Estadual]:[Recurso financeiro estimado no ano (R$) - Outras]]),\"\")","v":""}]
[null,null,null,null,null,null,null,null,null,null,null,null,null,null,null,null,null,null,null,null,{"$f":"IF(SUM(PAPI20_22_23[[#This Row],[Recurso financeiro estimado no ano\n(R$) - Cobrança Estadual]:[Recurso financeiro estimado no ano (R$) - Outras]]) >0,SUM(PAPI20_22_23[[#This Row],[Recurso financeiro estimado no ano\n(R$) - Cobrança Estadual]:[Recurso financeiro estimado no ano (R$) - Outras]]),\"\")","v":""}]
[null,null,null,null,null,null,null,null,null,null,null,null,null,null,null,null,null,null,null,null,{"$f":"IF(SUM(PAPI20_22_23[[#This Row],[Recurso financeiro estimado no ano\n(R$) - Cobrança Estadual]:[Recurso financeiro estimado no ano (R$) - Outras]]) >0,SUM(PAPI20_22_23[[#This Row],[Recurso financeiro estimado no ano\n(R$) - Cobrança Estadual]:[Recurso financeiro estimado no ano (R$) - Outras]]),\"\")","v":""}]
[null,null,null,null,null,null,null,null,null,null,null,null,null,null,null,null,null,null,null,null,{"$f":"IF(SUM(PAPI20_22_23[[#This Row],[Recurso financeiro estimado no ano\n(R$) - Cobrança Estadual]:[Recurso financeiro estimado no ano (R$) - Outras]]) >0,SUM(PAPI20_22_23[[#This Row],[Recurso financeiro estimado no ano\n(R$) - Cobrança Estadual]:[Recurso financeiro estimado no ano (R$) - Outras]]),\"\")","v":""}]
[null,null,null,null,null,null,null,null,null,null,null,null,null,null,null,null,null,null,null,null,{"$f":"IF(SUM(PAPI20_22_23[[#This Row],[Recurso financeiro estimado no ano\n(R$) - Cobrança Estadual]:[Recurso financeiro estimado no ano (R$) - Outras]]) >0,SUM(PAPI20_22_23[[#This Row],[Recurso financeiro estimado no ano\n(R$) - Cobrança Estadual]:[Recurso financeiro estimado no ano (R$) - Outras]]),\"\")","v":""}]
[null,null,null,null,null,null,null,null,null,null,null,null,null,null,null,null,null,null,null,null,{"$f":"IF(SUM(PAPI20_22_23[[#This Row],[Recurso financeiro estimado no ano\n(R$) - Cobrança Estadual]:[Recurso financeiro estimado no ano (R$) - Outras]]) >0,SUM(PAPI20_22_23[[#This Row],[Recurso financeiro estimado no ano\n(R$) - Cobrança Estadual]:[Recurso financeiro estimado no ano (R$) - Outras]]),\"\")","v":""}]
[null,null,null,null,null,null,null,null,null,null,null,null,null,null,null,null,null,null,null,null,{"$f":"IF(SUM(PAPI20_22_23[[#This Row],[Recurso financeiro estimado no ano\n(R$) - Cobrança Estadual]:[Recurso financeiro estimado no ano (R$) - Outras]]) >0,SUM(PAPI20_22_23[[#This Row],[Recurso financeiro estimado no ano\n(R$) - Cobrança Estadual]:[Recurso financeiro estimado no ano (R$) - Outras]]),\"\")","v":""}]
[null,null,null,null,null,null,null,null,null,null,null,null,null,null,null,null,null,null,null,null,{"$f":"IF(SUM(PAPI20_22_23[[#This Row],[Recurso financeiro estimado no ano\n(R$) - Cobrança Estadual]:[Recurso financeiro estimado no ano (R$) - Outras]]) >0,SUM(PAPI20_22_23[[#This Row],[Recurso financeiro estimado no ano\n(R$) - Cobrança Estadual]:[Recurso financeiro estimado no ano (R$) - Outras]]),\"\")","v":""}]
[null,null,null,null,null,null,null,null,null,null,null,null,null,null,null,null,null,null,null,null,{"$f":"IF(SUM(PAPI20_22_23[[#This Row],[Recurso financeiro estimado no ano\n(R$) - Cobrança Estadual]:[Recurso financeiro estimado no ano (R$) - Outras]]) >0,SUM(PAPI20_22_23[[#This Row],[Recurso financeiro estimado no ano\n(R$) - Cobrança Estadual]:[Recurso financeiro estimado no ano (R$) - Outras]]),\"\")","v":""}]
[null,null,null,null,null,null,null,null,null,null,null,null,null,null,null,null,null,null,null,null,{"$f":"IF(SUM(PAPI20_22_23[[#This Row],[Recurso financeiro estimado no ano\n(R$) - Cobrança Estadual]:[Recurso financeiro estimado no ano (R$) - Outras]]) >0,SUM(PAPI20_22_23[[#This Row],[Recurso financeiro estimado no ano\n(R$) - Cobrança Estadual]:[Recurso financeiro estimado no ano (R$) - Outras]]),\"\")","v":""}]

{"sheet":"Identificação das ações 24-27","index":1,"n_rows":41,"n_cols":13,"rows_kept":41,"cut":false,"hidden":false,"merged":[]}
["ID Ação","Descrição da ação","SubPDC","Prioridade do PDC","É (ou será)  empreendimento FEHIDRO?","Requer recursos financeiros?","Quantidade de fontes de recursos ","Segmento do executor","Área de abrangência","Detalhamento da área de abrangência","Início estimado da ação","Fim estimado","Observações"]
["RB012024","Revisão/atualização de Plano com pelo menos 15 anos de existência","1.2 - Planejamento","PDC 1 e 2","Sim","Sim",1,"Sociedade Civil","UGRHI","Municípios"]
["RB022024","Desenvolver projetos executivos de microdrenagem para os municípios da UGRHI 11","1.2 - Planejamento","PDC 1 e 2","Não","Sim",1,"Município","UGRHI","Municípios"]
["RB032024","Elaborar ou Revisar os Planos Municipais de Resíduos Sólidos","1.2 - Planejamento","PDC 1 e 2","Sim","Sim",1,"Sociedade Civil","UGRHI","Municípios"]
["RB042024","Revisao do mapeamento das áreas de risco e do Plano Municipal de Defesa Civil, realizado há mais de 5 anos,  com indicaçoes de ações estruturais e não estruturais","1.2 - Planejamento","PDC 1 e 2","Sim","Sim",1,"Sociedade Civil","UGRHI","Municípios"]
["RB052024","Articular os espaços  educativos via site e ações presenciais","1.2 - Planejamento","PDC 1 e 2","Não","Não",null,"Estado","UGRHI","Municípios"]
["RB062024","Manutenção, ampliação de funcionalidades do SIG-RB, com atualização de base de dados e informaçoes (repositório)","1.2 - Planejamento","PDC 1 e 2","Sim","Sim",1,"Sociedade Civil","Outra"]
["RB072024","Desenvolver base metodológica e elaborar estudos  para definição de indicadores de sazonalidade turística. (CBH-BS)","1.2 - Planejamento","PDC 1 e 2","Sim","Não",null,"Estado","Região Hidrográfica","Vertente Litorânea"]
["RB082024","Realizar estudo sobre a atividade de mineração de areia no Vale do Ribeira","1.2 - Planejamento","PDC 1 e 2","Não","Sim",1,"Estado","Sub-bacia","Médio e Baixo Ribeira, Juquiá e Jacupiranga"]
["RB092024","Elaborar diagnóstico da situação da Pesca profissional e amadora nos rios do Vale, considerando os aspectos positivos e negativos","1.2 - Planejamento","PDC 1 e 2","Não","Sim",1,"Estado","UGRHI"]
["RB102024","Estudar a criação de um fundo permanente de pagamento por serviços ambientais, com recursos vindos de compensações ambientais, cobrança pelo uso da água, transposição de águas e outras fontes","1.2 - Planejamento","PDC 1 e 2","Não","Não",null,"Estado","UGRHI"]
["RB112024","Realização de estudos tecnicos para caracterização socioambiental da Bacia do Rio Jacupiranga","1.2 - Planejamento","PDC 1 e 2","Sim","Sim",1,"Sociedade Civil","Sub-bacia","Bacia do Rio Jacupiranga"]
["RB122024","Promover o levantamento e a discussão das normativas relacionadas a viabilização de sistemas alternativos de captação e tratamento de esgoto","1.2 - Planejamento","PDC 1 e 2","Sim","Não",null,"Estado","Região Hidrográfica","Vertente Litorânea"]
["RB132024","Elaboração do Relatório de Situação de 2025 e elaboração/atualização do Plano de Bacia com horizonte de planejamento de 12 anos","2.1 - Plano","PDC 1 e 2","Sim","Sim",1,"Sociedade Civil","UGRHI"]
["RB142024","Instalação de novos pontos de monitoramento de qualidade das águas superficiais","2.5 - Redes de monitoramento e SI","PDC 1 e 2","Não","Não",null,"Estado","UGRHI"]
["RB152024","Dar continuidade ao Projeto de Fortalecimento, Articulação e Integração dos CBHs da Vertente Litorânea (CBH-LN)","2.6 - Integração","PDC 1 e 2","Sim","Não",null,"Estado","Região Hidrográfica","Vertente Litorânea"]
["RB162024","Contratação e execução de obras de saneamento básico na área rural e urbanizada","3.1 - Efluentes","Prioritário","Sim","Sim",1,"Município","UGRHI"]
["RB172024","Implantar, ampliar ou manter ações de melhoria de gestão de resíduos sólidos, com ênfase na coleta seletiva","3.3 - Resíduos","Prioritário","Sim","Sim",1,"Município","UGRHI"]
["RB182024","Executar obra de Combate a erosão de cursos d'água","4.1 - Controle erosão","Prioritário","Sim","Sim",1,"Município","UGRHI"]
["RB192024","Execução de obra de combate a erosão e/ou desassoreamento de cursos d'água","4.1 - Controle erosão","Prioritário","Não","Sim",1,"Município","UGRHI"]
["RB202024","Implantar 1 projeto de Pagamento por Serviços Ambientais (PSA)","4.2 - Soluções baseadas Natureza","Prioritário","Sim","Sim",1,"Município","Município"]
["RB212024","Fomentar a produção agroecológica e orgânica (02 projetos)","4.2 - Soluções baseadas Natureza","Prioritário","Não","Sim",1,"Sociedade Civil","UGRHI"]
["RB222024","Recuperar as APPs conforme diretrizes dos órgãos competentes","4.2 - Soluções baseadas Natureza","Prioritário","Sim","Sim",1,"Sociedade Civil","UGRHI"]
["RB232024","Execução de serviços e obras para contenção de inundações ou alagamentos","7.1 - Drenagem","Prioritário","Sim","Sim",1,"Município","UGRHI"]
["RB242024","Realizar capacitação sobre objetivos e atribuições do comitê e ferramentas de gestão dos recursos hídricos","8.1 - Capacitação","Não prioritário","Não","Não",null,"Estado","UGRHI"]
["RB252024","Realizar capacitação sobre gestão de águas para instituições com representação no CBH-RB, instituições parceiras, organizações da sociedade civil, comunidades rurais e jovens.","8.1 - Capacitação","Prioritário","Sim","Sim",1,"Estado","UGRHI"]
["RB262024","Realizar ações de educação ambiental (sensibilização e mobilização social) nos temas diversos. Via projetos Fehidro","8.2 - Educação","Não prioritário","Sim","Sim",1,"Sociedade Civil","UGRHI"]
["RB272024","Realizar a Semana da água do Vale do Ribeira","8.2 - Educação","Não prioritário","Sim","Não",null,"Estado","UGRHI"]
["RB282024","Apoiar realização do Diálogo Interbacias de Educação Ambiental em Recursos Hídricos","8.2 - Educação","Não prioritário","Sim","Não",null,"Estado","UGRHI"]
["RB292024","Realizar evento, na forma de seminário, para disseminar planos e programas municipais de educação ambiental","8.2 - Educação","Não prioritário","Sim","Não",null,"Estado","UGRHI"]
["RB302024","Reproduzir material de apoio (kit água)  para e de apoio a eventos de educação ambiental","8.2 - Educação","Prioritário","Sim","Sim",1,"Sociedade Civil","UGRHI"]
["RB312024","Adequar e equipar 1 centro de Educação Ambiental","8.2 - Educação","Prioritário","Sim","Sim",1,"Sociedade Civil","UGRHI"]
["RB322024","Execução de 2 projetos bienais de elaboração de releases, boletins informativos e operação das ferramentas de comunicação","8.3 - Comunicação","Prioritário","Sim","Sim",1,"Sociedade Civil","UGRHI"]
["RB332025","Realização de manutenção operacional nos postos de monitoramento fluviométrico e pluviométrico existentes e atualização do sistema de informação","2.5 - Redes de monitoramento e SI","PDC 1 e 2","Sim","Sim",1,"Estado","UGRHI"]
["RB342025","Fomentar a produção agroecológica e orgânica (01 projeto)","4.2 - Soluções baseadas Natureza","Prioritário","Sim","Sim",1,"Sociedade Civil","UGRHI"]
["RB352025","Capacitar os membros do CBH e CTs sobre conceitos, práticas e experiências em PSA","8.1 - Capacitação","Prioritário","Sim","Sim",1,"Sociedade Civil","UGRHI"]
["RB362025","Produzir série didática de vídeos com materiais educativos e informativos sobre educação ambiental e recursos hídricos, com identidade local,  para população leiga, em linguagem acessível e lúdica ( 1 temática a cada 2 anos)","8.2 - Educação","Prioritário","Sim","Sim",1,"Sociedade Civil","UGRHI"]
["RB372025","Oficinas de capacitação em recursos hídricos para educadores com sinergia ao currículo paulista","8.2 - Educação","Prioritário","Sim","Sim",1,"Sociedade Civil","UGRHI"]
["RB382026","Instalação de uma sala com equipamentos de informática e multimídia, para o funcionamento da CT-APRM-AJSL","2.7 - CORHI","PDC 1 e 2","Não","Sim",1,"Município","Sub-bacia","Alto Juquiá e São Lourenço"]
["RB392026","Divulgação na mídia regional  e palestras de conscientização/orientação aos produtores rurais sobre o uso adequado de agrotóxicos  e o manejo e recolhimento das embalagens de agrotóxico","8.2 - Educação","Não prioritário","Sim","Sim",1,"Sociedade Civil","UGRHI"]
["RB402027","Realizar o diagnóstico da situação atual dos corpos de água da UGRHI 11","2.4 - Enquadramento","PDC 1 e 2","Sim","Sim",1,"Estado","SUB-BACIA","Rio Jacupiranga"]

{"sheet":"Acompanhamento das metas 24-27","index":2,"n_rows":51,"n_cols":12,"rows_kept":51,"cut":false,"hidden":false,"merged":[]}
["ID","Descrição da ação","Meta do quadriênio","Meta 2024","% de execução física da meta (2024)","Meta 2025","% de execução física da meta (2025)","Meta 2026","% de execução física da meta (2026)","Meta 2027","% de execução física da meta (2027)","Observações"]
[{"$f":"IF(INDEX(IdentAcoes[],,1)=0,\"\",(INDEX(IdentAcoes[],,1)))","v":"RB012024"},{"$f":"IF(INDEX(IdentAcoes[],,4)=0,\"\",(INDEX(IdentAcoes[],,2)))","v":"Revisão/atualização de Plano com pelo menos 15 anos de existência"},"Revisão/atualização de 9 Planos de Macrodrenagem até 2027","Contratação de 1 projeto abrangendo 2 municípios, no valor máximo de R$ 300.000,00",null,"Contratação de 1 projeto abrangendo 3 municípios, no valor máximo de R$ 500.000,00",null,"Contratação de 1 projeto abrangendo 2 municípios, no valor máximo de R$ 400.000,00",null,"Contratação de 1 projeto abrangendo 2 municípios, no valor máximo de R$ 450.000,00"]
["RB022024","Desenvolver projetos executivos de microdrenagem para os municípios da UGRHI 11","Elaborar 8 projetos de microdrenagem até 2027","Execução de 1 projeto abrangendo 2 municípios, no valor estimado de R$ 300.000,00",null,"Execução de 1 projeto abrangendo 2 municípios, no valor estimado de R$ 350.000,00",null,"Execução de 1 projeto abrangendo 2 municípios, no valor estimado de R$ 400.000,00",null,"Execução de 1 projeto abrangendo 2 municípios, no valor estimado de R$ 450.000,00"]
["RB032024","Elaborar ou Revisar os Planos Municipais de Resíduos Sólidos","Elaborar e implantar 8 Planos Municipais de Resíduos Sólidos até 2027","Contratação de 1 projeto abrangendo 2 municípios, no valor máximo de R$ 300.000,00",null,"Contratação de 1 projeto abrangendo 2 municípios, no valor máximo de R$ 350.000,00",null,"Contratação de 1 projeto abrangendo 2 municípios, no valor máximo de R$ 400.000,00",null,"Contratação de 1 projeto abrangendo 2 municípios, no valor máximo de R$ 450.000,00"]
["RB042024","Revisao do mapeamento das áreas de risco e do Plano Municipal de Defesa Civil, realizado há mais de 5 anos,  com indicaçoes de ações estruturais e não estruturais","Revisão/atualização de 12 Planos Municipais de Defesa Civil até 2027","Contratação de 1 projeto abrangendo 3 municípios, no valor máximo de R$ 350.000,00",null,"Contratação de 1 projeto abrangendo 3 municípios, no valor máximo de R$ 375.000,00",null,"Contratação de 1 projeto abrangendo 3 municípios, no valor máximo de R$ 400.000,00",null,"Contratação de 1 projeto abrangendo 3 municípios, no valor máximo de R$ 450.000,00"]
["RB052024","Articular os espaços  educativos via site e ações presenciais","Atualizar e revisar Plano Diretor de Educação ambiental entre 2026 a 2027","Não depende de recursos do FEHIDRO",null,"Não depende de recursos do FEHIDRO",null,"Não depende de recursos do FEHIDRO",null,"Não depende de recursos do FEHIDRO"]
["RB062024","Manutenção, ampliação de funcionalidades do SIG-RB, com atualização de base de dados e informaçoes (repositório)","Manutenção do Sistema de Informações Geográficas com atualização tecnológica do sistema operacional até 2027","Contratação de 1 projeto no valor máximo de R$ 300.000,00",null,"Contratação de 1 projeto no valor máximo de R$ 315.000,00",null,"Contratação de 1 projeto no valor máximo de R$ 330.000,00",null,"Contratação de 1 projeto no valor máximo de R$ 345.000,00"]
["RB072024","Desenvolver base metodológica e elaborar estudos  para definição de indicadores de sazonalidade turística. (CBH-BS)","Indicadores de sazonalidades nos 3 CBHs definidos e aplicados pelos CBHs da Vertente Litorânea","Não depende de recursos do FEHIDRO",null,"Não depende de recursos do FEHIDRO",null,"Não depende de recursos do FEHIDRO",null,"Não depende de recursos do FEHIDRO"]
["RB082024","Realizar estudo sobre a atividade de mineração de areia no Vale do Ribeira","Realizar 1 estudo contemplando as áreas críticas na área de abrangência em 2024","Não depende de recursos do FEHIDRO"]
["RB092024","Elaborar diagnóstico da situação da Pesca profissional e amadora nos rios do Vale, considerando os aspectos positivos e negativos","Realizar 1 diagnóstico da situação da pesca em 2024","Não depende de recursos do FEHIDRO"]
["RB102024","Estudar a criação de um fundo permanente de pagamento por serviços ambientais, com recursos vindos de compensações ambientais, cobrança pelo uso da água, transposição de águas e outras fontes","Realizar 1 estudo para definição de fundo permanente para PSA até 2027","Não depende de recursos do FEHIDRO",null,"Não depende de recursos do FEHIDRO",null,"Não depende de recursos do FEHIDRO",null,"Não depende de recursos do FEHIDRO"]
["RB112024","Realização de estudos tecnicos para caracterização socioambiental da Bacia do Rio Jacupiranga","Realização de estudo de 1 sub-bacia até 2027","Contratação de 1 projeto no valor máximo de R$ 350.000,00"]
["RB122024","Promover o levantamento e a discussão das normativas relacionadas a viabilização de sistemas alternativos de captação e tratamento de esgoto","Construção de documento base para normatização de sistemas  alternativos de captação e tratamento de esgoto até 2027","Dar início aos entendimentos com os CBHs BS e LN",null,"Manter entendimentos com os CBHs BS e LN",null,"Manter entendimentos com os CBHs BS e LN",null,"Manter entendimentos com os CBHs BS e LN"]
["RB132024","Elaboração do Relatório de Situação de 2025 e elaboração/atualização do Plano de Bacia com horizonte de planejamento de 12 anos","Contratar em 2024 a elaboração Relatório de Situação de 2025 e elaboração/atualização do Plano de Bacia","Contratação de 1 projeto no valor máximo de R$ 600.000,00"]
["RB142024","Instalação de novos pontos de monitoramento de qualidade das águas superficiais","Manter, adequar e aumentar a rede de monitoramento qualitativo das águas da UGRHI 11 no período de 2024 a 2027","Não depende de recursos do FEHIDRO",null,"Não depende de recursos do FEHIDRO",null,"Não depende de recursos do FEHIDRO",null,"Não depende de recursos do FEHIDRO"]
["RB152024","Dar continuidade ao Projeto de Fortalecimento, Articulação e Integração dos CBHs da Vertente Litorânea (CBH-LN)","Realizar um encontro de avaliação e planejamento dos CBHs da Vertente, entre 2024 a 2027","Retomar os entendimentos com os CBHs BS e LN",null,"Manter entendimentos com os CBHs BS e LN",null,"Manter entendimentos com os CBHs BS e LN",null,"Manter entendimentos com os CBHs BS e LN"]
["RB162024","Contratação e execução de obras de saneamento básico na área rural e urbanizada","Implantação de 20 empreendimentos de saneamento na área rural da UGRHI 11 até 2027","Contratação de no mínimo 5 projetos, no valor máximo de R$ 500.000,00 por projeto",null,"Contratação de no mínimo 5 projetos, no valor máximo de R$ 550.000,00 por projeto",null,"Contratação de no mínimo 5 projetos, no valor máximo de R$ 600.000,00 por projeto",null,"Contratação de no mínimo 5 projetos, no valor máximo de R$ 650.000,00 por projeto"]
["RB172024","Implantar, ampliar ou manter ações de melhoria de gestão de resíduos sólidos, com ênfase na coleta seletiva","Implantação ou manutenção de 8 empreendimentos de coleta seletiva nos municípios da UGRHI até 2027","Contratação de de no mínimo 2 projetos, no valor máximo de R$ 300.000,00 por projeto",null,"Contratação de de no mínimo 2 projetos, no valor máximo de R$ 325.000,00 por projeto",null,"Contratação de de no mínimo 2 projetos, no valor máximo de R$ 350.000,00 por projeto",null,"Contratação de de no mínimo 2 projetos, no valor máximo de R$ 375.000,00 por projeto"]
["RB182024","Executar obra de Combate a erosão de cursos d'água","Realizar 4 Obras e ações de proteção e controle da erosão do solo ou do assoreamento dos corpos d'água até 2027","Contratação de 1 projeto no valor máximo de R$ 500.000,00",null,"Contratação de 1 projeto no valor máximo de R$ 550.000,00",null,"Contratação de 1 projeto no valor máximo de R$ 600.000,00",null,"Contratação de 1 projeto no valor máximo de R$ 650.000,00"]
["RB192024","Execução de obra de combate a erosão e/ou desassoreamento de cursos d'água","Realizar 8 Obras de proteção e controle da erosão do solo ou do assoreamento dos corpos d'água até 2027","Contratação de 2 projetos no valor estimado de R$ 500.000,00 por projeto. Não depende de recursos do FEHIDRO.",null,"Contratação de 2 projetos no valor estimado de R$ 550.000,00 por projeto. Não depende de recursos do FEHIDRO.",null,"Contratação de 2 projetos no valor estimado de R$ 600.000,00 por projeto. Não depende de recursos do FEHIDRO.",null,"Contratação de 2 projetos no valor estimado de R$ 650.000,00 por projeto. Não depende de recursos do FEHIDRO."]
["RB202024","Implantar 1 projeto de Pagamento por Serviços Ambientais (PSA)","Implantar pelo menos 1 projeto de Pagamentos por Serviços Ambientais  - PSA na UGRHI 11 em 2024","Contratação de 1 projeto no valor de R$ 360.000,00"]
["RB212024","Fomentar a produção agroecológica e orgânica (02 projetos)","Elaborar e executar 2 projetos piloto de produção de SAF ou sistema orgânico, com objetivo de formar unidade(s) demonstrativa(s) para fortalecimento e experimentação da técnica na bacia em 2024 e 2026","Contratação de 1 projeto no valor estimado de R$ 160.000,00. Não depende de recursos do FEHIDRO",null,null,null,"Contratação de 1 projeto no valor estimado de R$ 180.000,00. Não depende de recursos do FEHIDRO"]
["RB222024","Recuperar as APPs conforme diretrizes dos órgãos competentes","Elaborar e executar 1 projeto de recuperação de APPs em 2024","Contratação de 1 projeto no valor de R$ 300.000,00"]
["RB232024","Execução de serviços e obras para contenção de inundações ou alagamentos","Executar 12 empreendimentos estruturais visando mitigar os impactos das inundações até 2027","Contratação de no mínimo 3 projetos no valor máximo de R$ 500.000,00 por projeto",null,"Contratação de no mínimo 3 projetos no valor máximo de R$ 550.000,00 por projeto",null,"Contratação de no mínimo 3 projetos no valor máximo de R$ 600.000,00 por projeto",null,"Contratação de no mínimo 3 projetos no valor máximo de R$ 650.000,00 por projeto"]
["RB242024","Realizar capacitação sobre objetivos e atribuições do comitê e ferramentas de gestão dos recursos hídricos","Realizar eventos anuais de formação de membros do plenário, de câmaras técnicas e secretarias municipais visando levar o entendimento do funcionamento do colegiado e do papel dos membros e estimular a participação efetiva e a divulgação para as instituições que representam, entre 2024 e 2027","Não depende de recursos do FEHIDRO",null,"Não depende de recursos do FEHIDRO",null,"Não depende de recursos do FEHIDRO",null,"Não depende de recursos do FEHIDRO"]
["RB252024","Realizar capacitação sobre gestão de águas para instituições com representação no CBH-RB, instituições parceiras, organizações da sociedade civil, comunidades rurais e jovens.","Realizar eventos bienais de formação para instituições com representação no CBH-RB, instituições parceiras, organizações da sociedade civil, comunidades rurais e jovens em 2024 e 2026","Contratação de 1 projeto no valor de R$ 160.000,00",null,null,null,"Contratação de 1 projeto no valor de R$ 180.000,00"]
["RB262024","Realizar ações de educação ambiental (sensibilização e mobilização social) nos temas diversos. Via projetos Fehidro","Realizar 1 projeto por ano em 2024, 2025, 2026 e 2027, contemplando ações de educação ambiental","Contratação de 1 projeto no valor de R$ 160.000,00",null,"Contratação de 1 projeto no valor de R$ 170.000,00",null,"Contratação de 1 projeto no valor de R$ 180.000,00",null,"Contratação de 1 projeto no valor de R$ 190.000,00"]
["RB272024","Realizar a Semana da água do Vale do Ribeira","Realizar um evento por ano","Não requer recursos de investimento do FEHIDRO",null,"Não requer recursos de investimento do FEHIDRO",null,"Não requer recursos de investimento do FEHIDRO",null,"Não requer recursos de investimento do FEHIDRO"]
["RB282024","Apoiar realização do Diálogo Interbacias de Educação Ambiental em Recursos Hídricos","Apoiar o Diálogo Interbacias anualmente","Não requer recursos de investimento do FEHIDRO",null,"Não requer recursos de investimento do FEHIDRO",null,"Não requer recursos de investimento do FEHIDRO",null,"Não requer recursos de investimento do FEHIDRO"]
["RB292024","Realizar evento, na forma de seminário, para disseminar planos e programas municipais de educação ambiental","Realizar 1 evento sobre planos e programas municipais permanentes de educação ambiental a cada início de mandato municipal","Não requer recursos de investimento do FEHIDRO",null,"Não requer recursos de investimento do FEHIDRO",null,"Não requer recursos de investimento do FEHIDRO",null,"Não requer recursos de investimento do FEHIDRO"]
["RB302024","Reproduzir material de apoio (kit água)  para e de apoio a eventos de educação ambiental","Inserção da temática de água e meio ambiente na sociedade, por meio da contratação de 1 projeto em 2024.","Inserção da temática de água e meio ambiente na sociedade, por meio da contratação de 1 projeto em 2024 no valor de R$ 200.000,00.",null,null,null,"Contratação de 1 projeto no valor de R$ 220.000,00"]
["RB312024","Adequar e equipar 1 centro de Educação Ambiental","Incentivar e fomentar a criação de 1 centro de Educação Ambiental em 2024","Contratação de 1 projeto no valor de R$ 345.000,00"]
["RB322024","Execução de 2 projetos bienais de elaboração de releases, boletins informativos e operação das ferramentas de comunicação","Ampliar comunicação  do CBH internamente e com público em geral (plano de comunicação elaborado) em 2024 e 2026","Contratação de 1 projeto no valor de R$ 340.000,00",null,null,null,"Contratação de 1 projeto no valor de R$ 400.000,00"]
["RB332025","Realização de manutenção operacional nos postos de monitoramento fluviométrico e pluviométrico existentes e atualização do sistema de informação","Serviços de operação e manutenção sistemáticos nos postos hidrométricos",null,null,"Contratação de 1 projeto de manutenção operacional nos postos de monitoramento fluviométrico e pluviométrico existentes e atualização do sistema de informação",null,"Contratação de 1 projeto de manutenção operacional nos postos de monitoramento fluviométrico e pluviométrico existentes e atualização do sistema de informação, no valor máximo de R$ 300.000,00",null,"Contratação de 1 projeto de manutenção operacional nos postos de monitoramento fluviométrico e pluviométrico existentes e atualização do sistema de informação, no valor máximo de R$ 350.000,00"]
["RB342025","Fomentar a produção agroecológica e orgânica (01 projeto)","Implantar 1 projeto piloto de produção de SAF ou sistema orgânico, com objetivo de formar unidade(s) demonstrativa(s) para fortalecimento e experimentação da técnica na bacia em 2025",null,null,"Contratação de 1 projeto piloto de produção de SAF ou sistema orgânico, no valor de R$ 160.000,00"]
["RB352025","Capacitar os membros do CBH e CTs sobre conceitos, práticas e experiências em PSA","Realizar capacitação sobre PSA para os membros do CBH e CTs em 2025",null,null,"Contratação de 1 projeto psrs realização de capacitação sobre PSA para os membros do CBH e CTs em 2025, no valor de R$ 160.000,00"]
["RB362025","Produzir série didática de vídeos com materiais educativos e informativos sobre educação ambiental e recursos hídricos, com identidade local,  para população leiga, em linguagem acessível e lúdica ( 1 temática a cada 2 anos)","Produzir materiais educativos e informativos sobre 1 temática a cada 2 anos, em 2025 e 2027",null,null,"Contratação de 1 projeto de produção de materiais educativos e informativos sobre 1 temática, no valor máximo de R$ 250.000,00",null,null,null,"Contratação de 1 projeto de produção de materiais educativos e informativos sobre 1 temática, no valor máximo de R$ 300.000,00"]
["RB372025","Oficinas de capacitação em recursos hídricos para educadores com sinergia ao currículo paulista","Realizar 1 projeto em 2025 e 1 projeto em 2026",null,null,"Contratação de 1 projeto no valor máximo de R$ 220.000,00",null,"Contratação de 1 projeto no valor máximo de R$ 220.000,00"]
["RB382026","Instalação de uma sala com equipamentos de informática e multimídia, para o funcionamento da CT-APRM-AJSL","Consolidar a infrastrutura de apoio para CT-APRM-AJ/SL em 2026",null,null,null,null,"Contratação de 1 projeto no valor estimado de R$ 350.000,00. Não requer recursos do FEHIDRO."]
["RB392026","Divulgação na mídia regional  e palestras de conscientização/orientação aos produtores rurais sobre o uso adequado de agrotóxicos  e o manejo e recolhimento das embalagens de agrotóxico","Desenvolver 1 projeto de comunicação visando redução e utilização adequada dos agrotóxicos, em 2026",null,null,null,null,"Contratação de 1 projeto no valor de R$ 160.000,00"]
["RB402027","Realizar o diagnóstico da situação atual dos corpos de água da UGRHI 11","Realizar 1 levantamento em 1 sub-bacias da UGRHI 11 em 2027",null,null,null,null,null,null,"Contratação de 1 projeto para realização de levantamento em 1 sub-bacias da UGRHI 11, no valor máximo de R$ 350.000,00 "]
["",""]
["",""]
["",""]
["",""]
["",""]
["",""]
["",""]
["",""]
["",""]
["",""]

{"sheet":"Acomp. financeiro  24-27","index":3,"n_rows":50,"n_cols":17,"rows_kept":50,"cut":false,"hidden":false,"merged":[]}
["id_ação_Fonte_oculta","ID Ação","Descrição da ação","Fonte","R$  Planejado (2024)","R$  Disponibilizado (2024)","R$  Executado (2024)","R$  Planejado (2025)","R$  Disponibilizado (2025)","R$  Executado (2025)","R$  Planejado (2026)","R$  Disponibilizado (2026)","R$  Executado (2026)","R$  Planejado (2027)","R$  Disponibilizado (2027)","R$  Executado (2027)","Observações sobre execução financeira da meta"]
[{"$f":"Financeiro[[#This Row],[ID Ação]]&Financeiro[[#This Row],[Fonte]]","v":"RB012024FEHIDRO - Cobrança estadual"},{"$f":"IFERROR(INDEX(IdentAcoes[ID Ação],MATCH(0,INDEX(--(COUNTIF(B$1:B1,IdentAcoes[ID Ação])=IdentAcoes[[Quantidade de fontes de recursos ]]),0),0)),\"\")","v":"RB012024"},{"$f":"IFERROR(INDEX(IdentAcoes[Descrição da ação],MATCH(0,INDEX(--(COUNTIF(C$1:C1,IdentAcoes[Descrição da ação])=IdentAcoes[[Quantidade de fontes de recursos ]]),0),0)),\"\")","v":"Revisão/atualização de Plano com pelo menos 15 anos de existência"},"FEHIDRO - Cobrança estadual",300000,null,null,500000,null,null,400000,null,null,450000]
[{"$f":"Financeiro[[#This Row],[ID Ação]]&Financeiro[[#This Row],[Fonte]]","v":"RB022024Tesouro do Estado"},{"$f":"IFERROR(INDEX(IdentAcoes[ID Ação],MATCH(0,INDEX(--(COUNTIF(B$1:B2,IdentAcoes[ID Ação])=IdentAcoes[[Quantidade de fontes de recursos ]]),0),0)),\"\")","v":"RB022024"},{"$f":"IFERROR(INDEX(IdentAcoes[Descrição da ação],MATCH(0,INDEX(--(COUNTIF(C$1:C2,IdentAcoes[Descrição da ação])=IdentAcoes[[Quantidade de fontes de recursos ]]),0),0)),\"\")","v":"Desenvolver projetos executivos de microdrenagem para os municípios da UGRHI 11"},"Tesouro do Estado",300000,null,null,350000,null,null,400000,null,null,450000]
[{"$f":"Financeiro[[#This Row],[ID Ação]]&Financeiro[[#This Row],[Fonte]]","v":"RB032024FEHIDRO - Cobrança estadual"},{"$f":"IFERROR(INDEX(IdentAcoes[ID Ação],MATCH(0,INDEX(--(COUNTIF(B$1:B3,IdentAcoes[ID Ação])=IdentAcoes[[Quantidade de fontes de recursos ]]),0),0)),\"\")","v":"RB032024"},{"$f":"IFERROR(INDEX(IdentAcoes[Descrição da ação],MATCH(0,INDEX(--(COUNTIF(C$1:C3,IdentAcoes[Descrição da ação])=IdentAcoes[[Quantidade de fontes de recursos ]]),0),0)),\"\")","v":"Elaborar ou Revisar os Planos Municipais de Resíduos Sólidos"},"FEHIDRO - Cobrança estadual",300000,null,null,350000,null,null,400000,null,null,450000]
[{"$f":"Financeiro[[#This Row],[ID Ação]]&Financeiro[[#This Row],[Fonte]]","v":"RB042024FEHIDRO - Cobrança estadual"},{"$f":"IFERROR(INDEX(IdentAcoes[ID Ação],MATCH(0,INDEX(--(COUNTIF(B$1:B4,IdentAcoes[ID Ação])=IdentAcoes[[Quantidade de fontes de recursos ]]),0),0)),\"\")","v":"RB042024"},{"$f":"IFERROR(INDEX(IdentAcoes[Descrição da ação],MATCH(0,INDEX(--(COUNTIF(C$1:C4,IdentAcoes[Descrição da ação])=IdentAcoes[[Quantidade de fontes de recursos ]]),0),0)),\"\")","v":"Revisao do mapeamento das áreas de risco e do Plano Municipal de Defesa Civil, realizado há mais de 5 anos,  com indicaçoes de ações estruturais e não estruturais"},"FEHIDRO - Cobrança estadual",350000,null,null,375000,null,null,400000,null,null,450000]
[{"$f":"Financeiro[[#This Row],[ID Ação]]&Financeiro[[#This Row],[Fonte]]","v":"RB062024FEHIDRO - Cobrança estadual"},{"$f":"IFERROR(INDEX(IdentAcoes[ID Ação],MATCH(0,INDEX(--(COUNTIF(B$1:B5,IdentAcoes[ID Ação])=IdentAcoes[[Quantidade de fontes de recursos ]]),0),0)),\"\")","v":"RB062024"},{"$f":"IFERROR(INDEX(IdentAcoes[Descrição da ação],MATCH(0,INDEX(--(COUNTIF(C$1:C5,IdentAcoes[Descrição da ação])=IdentAcoes[[Quantidade de fontes de recursos ]]),0),0)),\"\")","v":"Manutenção, ampliação de funcionalidades do SIG-RB, com atualização de base de dados e informaçoes (repositório)"},"FEHIDRO - Cobrança estadual",300000,null,null,315000,null,null,330000,null,null,345000]
[{"$f":"Financeiro[[#This Row],[ID Ação]]&Financeiro[[#This Row],[Fonte]]","v":"RB082024Tesouro do Estado"},{"$f":"IFERROR(INDEX(IdentAcoes[ID Ação],MATCH(0,INDEX(--(COUNTIF(B$1:B6,IdentAcoes[ID Ação])=IdentAcoes[[Quantidade de fontes de recursos ]]),0),0)),\"\")","v":"RB082024"},{"$f":"IFERROR(INDEX(IdentAcoes[Descrição da ação],MATCH(0,INDEX(--(COUNTIF(C$1:C6,IdentAcoes[Descrição da ação])=IdentAcoes[[Quantidade de fontes de recursos ]]),0),0)),\"\")","v":"Realizar estudo sobre a atividade de mineração de areia no Vale do Ribeira"},"Tesouro do Estado",200000]
[{"$f":"Financeiro[[#This Row],[ID Ação]]&Financeiro[[#This Row],[Fonte]]","v":"RB092024Tesouro do Estado"},{"$f":"IFERROR(INDEX(IdentAcoes[ID Ação],MATCH(0,INDEX(--(COUNTIF(B$1:B7,IdentAcoes[ID Ação])=IdentAcoes[[Quantidade de fontes de recursos ]]),0),0)),\"\")","v":"RB092024"},{"$f":"IFERROR(INDEX(IdentAcoes[Descrição da ação],MATCH(0,INDEX(--(COUNTIF(C$1:C7,IdentAcoes[Descrição da ação])=IdentAcoes[[Quantidade de fontes de recursos ]]),0),0)),\"\")","v":"Elaborar diagnóstico da situação da Pesca profissional e amadora nos rios do Vale, considerando os aspectos positivos e negativos"},"Tesouro do Estado",200000]
[{"$f":"Financeiro[[#This Row],[ID Ação]]&Financeiro[[#This Row],[Fonte]]","v":"RB112024FEHIDRO - Cobrança estadual"},{"$f":"IFERROR(INDEX(IdentAcoes[ID Ação],MATCH(0,INDEX(--(COUNTIF(B$1:B8,IdentAcoes[ID Ação])=IdentAcoes[[Quantidade de fontes de recursos ]]),0),0)),\"\")","v":"RB112024"},{"$f":"IFERROR(INDEX(IdentAcoes[Descrição da ação],MATCH(0,INDEX(--(COUNTIF(C$1:C8,IdentAcoes[Descrição da ação])=IdentAcoes[[Quantidade de fontes de recursos ]]),0),0)),\"\")","v":"Realização de estudos tecnicos para caracterização socioambiental da Bacia do Rio Jacupiranga"},"FEHIDRO - Cobrança estadual",350000]
[{"$f":"Financeiro[[#This Row],[ID Ação]]&Financeiro[[#This Row],[Fonte]]","v":"RB132024FEHIDRO - Cobrança estadual"},{"$f":"IFERROR(INDEX(IdentAcoes[ID Ação],MATCH(0,INDEX(--(COUNTIF(B$1:B9,IdentAcoes[ID Ação])=IdentAcoes[[Quantidade de fontes de recursos ]]),0),0)),\"\")","v":"RB132024"},{"$f":"IFERROR(INDEX(IdentAcoes[Descrição da ação],MATCH(0,INDEX(--(COUNTIF(C$1:C9,IdentAcoes[Descrição da ação])=IdentAcoes[[Quantidade de fontes de recursos ]]),0),0)),\"\")","v":"Elaboração do Relatório de Situação de 2025 e elaboração/atualização do Plano de Bacia com horizonte de planejamento de 12 anos"},"FEHIDRO - Cobrança estadual",600000]
[{"$f":"Financeiro[[#This Row],[ID Ação]]&Financeiro[[#This Row],[Fonte]]","v":"RB162024FEHIDRO - Cobrança estadual"},{"$f":"IFERROR(INDEX(IdentAcoes[ID Ação],MATCH(0,INDEX(--(COUNTIF(B$1:B10,IdentAcoes[ID Ação])=IdentAcoes[[Quantidade de fontes de recursos ]]),0),0)),\"\")","v":"RB162024"},{"$f":"IFERROR(INDEX(IdentAcoes[Descrição da ação],MATCH(0,INDEX(--(COUNTIF(C$1:C10,IdentAcoes[Descrição da ação])=IdentAcoes[[Quantidade de fontes de recursos ]]),0),0)),\"\")","v":"Contratação e execução de obras de saneamento básico na área rural e urbanizada"},"FEHIDRO - Cobrança estadual",2500000,null,null,2750000,null,null,3000000,null,null,3250000]
[{"$f":"Financeiro[[#This Row],[ID Ação]]&Financeiro[[#This Row],[Fonte]]","v":"RB172024FEHIDRO - Cobrança estadual"},{"$f":"IFERROR(INDEX(IdentAcoes[ID Ação],MATCH(0,INDEX(--(COUNTIF(B$1:B11,IdentAcoes[ID Ação])=IdentAcoes[[Quantidade de fontes de recursos ]]),0),0)),\"\")","v":"RB172024"},{"$f":"IFERROR(INDEX(IdentAcoes[Descrição da ação],MATCH(0,INDEX(--(COUNTIF(C$1:C11,IdentAcoes[Descrição da ação])=IdentAcoes[[Quantidade de fontes de recursos ]]),0),0)),\"\")","v":"Implantar, ampliar ou manter ações de melhoria de gestão de resíduos sólidos, com ênfase na coleta seletiva"},"FEHIDRO - Cobrança estadual",600000,null,null,650000,null,null,700000,null,null,750000]
[{"$f":"Financeiro[[#This Row],[ID Ação]]&Financeiro[[#This Row],[Fonte]]","v":"RB182024FEHIDRO - Cobrança estadual"},{"$f":"IFERROR(INDEX(IdentAcoes[ID Ação],MATCH(0,INDEX(--(COUNTIF(B$1:B12,IdentAcoes[ID Ação])=IdentAcoes[[Quantidade de fontes de recursos ]]),0),0)),\"\")","v":"RB182024"},{"$f":"IFERROR(INDEX(IdentAcoes[Descrição da ação],MATCH(0,INDEX(--(COUNTIF(C$1:C12,IdentAcoes[Descrição da ação])=IdentAcoes[[Quantidade de fontes de recursos ]]),0),0)),\"\")","v":"Executar obra de Combate a erosão de cursos d'água"},"FEHIDRO - Cobrança estadual",500000,null,null,550000,null,null,600000,null,null,650000]
[{"$f":"Financeiro[[#This Row],[ID Ação]]&Financeiro[[#This Row],[Fonte]]","v":"RB192024Outras Fontes"},{"$f":"IFERROR(INDEX(IdentAcoes[ID Ação],MATCH(0,INDEX(--(COUNTIF(B$1:B13,IdentAcoes[ID Ação])=IdentAcoes[[Quantidade de fontes de recursos ]]),0),0)),\"\")","v":"RB192024"},{"$f":"IFERROR(INDEX(IdentAcoes[Descrição da ação],MATCH(0,INDEX(--(COUNTIF(C$1:C13,IdentAcoes[Descrição da ação])=IdentAcoes[[Quantidade de fontes de recursos ]]),0),0)),\"\")","v":"Execução de obra de combate a erosão e/ou desassoreamento de cursos d'água"},"Outras Fontes",1000000,null,null,1100000,null,null,1200000,null,null,1300000]
[{"$f":"Financeiro[[#This Row],[ID Ação]]&Financeiro[[#This Row],[Fonte]]","v":"RB202024FEHIDRO - Cobrança estadual"},{"$f":"IFERROR(INDEX(IdentAcoes[ID Ação],MATCH(0,INDEX(--(COUNTIF(B$1:B14,IdentAcoes[ID Ação])=IdentAcoes[[Quantidade de fontes de recursos ]]),0),0)),\"\")","v":"RB202024"},{"$f":"IFERROR(INDEX(IdentAcoes[Descrição da ação],MATCH(0,INDEX(--(COUNTIF(C$1:C14,IdentAcoes[Descrição da ação])=IdentAcoes[[Quantidade de fontes de recursos ]]),0),0)),\"\")","v":"Implantar 1 projeto de Pagamento por Serviços Ambientais (PSA)"},"FEHIDRO - Cobrança estadual",360000]
[{"$f":"Financeiro[[#This Row],[ID Ação]]&Financeiro[[#This Row],[Fonte]]","v":"RB212024Tesouro do Estado"},{"$f":"IFERROR(INDEX(IdentAcoes[ID Ação],MATCH(0,INDEX(--(COUNTIF(B$1:B15,IdentAcoes[ID Ação])=IdentAcoes[[Quantidade de fontes de recursos ]]),0),0)),\"\")","v":"RB212024"},{"$f":"IFERROR(INDEX(IdentAcoes[Descrição da ação],MATCH(0,INDEX(--(COUNTIF(C$1:C15,IdentAcoes[Descrição da ação])=IdentAcoes[[Quantidade de fontes de recursos ]]),0),0)),\"\")","v":"Fomentar a produção agroecológica e orgânica (02 projetos)"},"Tesouro do Estado",160000,null,null,null,null,null,180000]
[{"$f":"Financeiro[[#This Row],[ID Ação]]&Financeiro[[#This Row],[Fonte]]","v":"RB222024FEHIDRO - Cobrança estadual"},{"$f":"IFERROR(INDEX(IdentAcoes[ID Ação],MATCH(0,INDEX(--(COUNTIF(B$1:B16,IdentAcoes[ID Ação])=IdentAcoes[[Quantidade de fontes de recursos ]]),0),0)),\"\")","v":"RB222024"},{"$f":"IFERROR(INDEX(IdentAcoes[Descrição da ação],MATCH(0,INDEX(--(COUNTIF(C$1:C16,IdentAcoes[Descrição da ação])=IdentAcoes[[Quantidade de fontes de recursos ]]),0),0)),\"\")","v":"Recuperar as APPs conforme diretrizes dos órgãos competentes"},"FEHIDRO - Cobrança estadual",300000]
[{"$f":"Financeiro[[#This Row],[ID Ação]]&Financeiro[[#This Row],[Fonte]]","v":"RB232024FEHIDRO - Cobrança estadual"},{"$f":"IFERROR(INDEX(IdentAcoes[ID Ação],MATCH(0,INDEX(--(COUNTIF(B$1:B17,IdentAcoes[ID Ação])=IdentAcoes[[Quantidade de fontes de recursos ]]),0),0)),\"\")","v":"RB232024"},{"$f":"IFERROR(INDEX(IdentAcoes[Descrição da ação],MATCH(0,INDEX(--(COUNTIF(C$1:C17,IdentAcoes[Descrição da ação])=IdentAcoes[[Quantidade de fontes de recursos ]]),0),0)),\"\")","v":"Execução de serviços e obras para contenção de inundações ou alagamentos"},"FEHIDRO - Cobrança estadual",1500000,null,null,1650000,null,null,1800000,null,null,1950000]
[{"$f":"Financeiro[[#This Row],[ID Ação]]&Financeiro[[#This Row],[Fonte]]","v":"RB252024FEHIDRO - Cobrança estadual"},{"$f":"IFERROR(INDEX(IdentAcoes[ID Ação],MATCH(0,INDEX(--(COUNTIF(B$1:B18,IdentAcoes[ID Ação])=IdentAcoes[[Quantidade de fontes de recursos ]]),0),0)),\"\")","v":"RB252024"},{"$f":"IFERROR(INDEX(IdentAcoes[Descrição da ação],MATCH(0,INDEX(--(COUNTIF(C$1:C18,IdentAcoes[Descrição da ação])=IdentAcoes[[Quantidade de fontes de recursos ]]),0),0)),\"\")","v":"Realizar capacitação sobre gestão de águas para instituições com representação no CBH-RB, instituições parceiras, organizações da sociedade civil, comunidades rurais e jovens."},"FEHIDRO - Cobrança estadual",160000,null,null,null,null,null,180000]
[{"$f":"Financeiro[[#This Row],[ID Ação]]&Financeiro[[#This Row],[Fonte]]","v":"RB262024FEHIDRO - CFURH"},{"$f":"IFERROR(INDEX(IdentAcoes[ID Ação],MATCH(0,INDEX(--(COUNTIF(B$1:B19,IdentAcoes[ID Ação])=IdentAcoes[[Quantidade de fontes de recursos ]]),0),0)),\"\")","v":"RB262024"},{"$f":"IFERROR(INDEX(IdentAcoes[Descrição da ação],MATCH(0,INDEX(--(COUNTIF(C$1:C19,IdentAcoes[Descrição da ação])=IdentAcoes[[Quantidade de fontes de recursos ]]),0),0)),\"\")","v":"Realizar ações de educação ambiental (sensibilização e mobilização social) nos temas diversos. Via projetos Fehidro"},"FEHIDRO - CFURH",160000,null,null,170000,null,null,180000,null,null,190000]
[{"$f":"Financeiro[[#This Row],[ID Ação]]&Financeiro[[#This Row],[Fonte]]","v":"RB302024FEHIDRO - Cobrança estadual"},{"$f":"IFERROR(INDEX(IdentAcoes[ID Ação],MATCH(0,INDEX(--(COUNTIF(B$1:B20,IdentAcoes[ID Ação])=IdentAcoes[[Quantidade de fontes de recursos ]]),0),0)),\"\")","v":"RB302024"},{"$f":"IFERROR(INDEX(IdentAcoes[Descrição da ação],MATCH(0,INDEX(--(COUNTIF(C$1:C20,IdentAcoes[Descrição da ação])=IdentAcoes[[Quantidade de fontes de recursos ]]),0),0)),\"\")","v":"Reproduzir material de apoio (kit água)  para e de apoio a eventos de educação ambiental"},"FEHIDRO - Cobrança estadual",200000,null,null,null,null,null,220000]
[{"$f":"Financeiro[[#This Row],[ID Ação]]&Financeiro[[#This Row],[Fonte]]","v":"RB312024FEHIDRO - Cobrança estadual"},{"$f":"IFERROR(INDEX(IdentAcoes[ID Ação],MATCH(0,INDEX(--(COUNTIF(B$1:B21,IdentAcoes[ID Ação])=IdentAcoes[[Quantidade de fontes de recursos ]]),0),0)),\"\")","v":"RB312024"},{"$f":"IFERROR(INDEX(IdentAcoes[Descrição da ação],MATCH(0,INDEX(--(COUNTIF(C$1:C21,IdentAcoes[Descrição da ação])=IdentAcoes[[Quantidade de fontes de recursos ]]),0),0)),\"\")","v":"Adequar e equipar 1 centro de Educação Ambiental"},"FEHIDRO - Cobrança estadual",345000]
[{"$f":"Financeiro[[#This Row],[ID Ação]]&Financeiro[[#This Row],[Fonte]]","v":"RB322024FEHIDRO - Cobrança estadual"},{"$f":"IFERROR(INDEX(IdentAcoes[ID Ação],MATCH(0,INDEX(--(COUNTIF(B$1:B22,IdentAcoes[ID Ação])=IdentAcoes[[Quantidade de fontes de recursos ]]),0),0)),\"\")","v":"RB322024"},{"$f":"IFERROR(INDEX(IdentAcoes[Descrição da ação],MATCH(0,INDEX(--(COUNTIF(C$1:C22,IdentAcoes[Descrição da ação])=IdentAcoes[[Quantidade de fontes de recursos ]]),0),0)),\"\")","v":"Execução de 2 projetos bienais de elaboração de releases, boletins informativos e operação das ferramentas de comunicação"},"FEHIDRO - Cobrança estadual",340000,null,null,null,null,null,400000]
[{"$f":"Financeiro[[#This Row],[ID Ação]]&Financeiro[[#This Row],[Fonte]]","v":"RB332025FEHIDRO - Cobrança estadual"},{"$f":"IFERROR(INDEX(IdentAcoes[ID Ação],MATCH(0,INDEX(--(COUNTIF(B$1:B23,IdentAcoes[ID Ação])=IdentAcoes[[Quantidade de fontes de recursos ]]),0),0)),\"\")","v":"RB332025"},{"$f":"IFERROR(INDEX(IdentAcoes[Descrição da ação],MATCH(0,INDEX(--(COUNTIF(C$1:C23,IdentAcoes[Descrição da ação])=IdentAcoes[[Quantidade de fontes de recursos ]]),0),0)),\"\")","v":"Realização de manutenção operacional nos postos de monitoramento fluviométrico e pluviométrico existentes e atualização do sistema de informação"},"FEHIDRO - Cobrança estadual",null,null,null,250000,null,null,300000,null,null,350000]
[{"$f":"Financeiro[[#This Row],[ID Ação]]&Financeiro[[#This Row],[Fonte]]","v":"RB342025FEHIDRO - CFURH"},{"$f":"IFERROR(INDEX(IdentAcoes[ID Ação],MATCH(0,INDEX(--(COUNTIF(B$1:B24,IdentAcoes[ID Ação])=IdentAcoes[[Quantidade de fontes de recursos ]]),0),0)),\"\")","v":"RB342025"},{"$f":"IFERROR(INDEX(IdentAcoes[Descrição da ação],MATCH(0,INDEX(--(COUNTIF(C$1:C24,IdentAcoes[Descrição da ação])=IdentAcoes[[Quantidade de fontes de recursos ]]),0),0)),\"\")","v":"Fomentar a produção agroecológica e orgânica (01 projeto)"},"FEHIDRO - CFURH",null,null,null,160000]
[{"$f":"Financeiro[[#This Row],[ID Ação]]&Financeiro[[#This Row],[Fonte]]","v":"RB352025FEHIDRO - Cobrança estadual"},{"$f":"IFERROR(INDEX(IdentAcoes[ID Ação],MATCH(0,INDEX(--(COUNTIF(B$1:B25,IdentAcoes[ID Ação])=IdentAcoes[[Quantidade de fontes de recursos ]]),0),0)),\"\")","v":"RB352025"},{"$f":"IFERROR(INDEX(IdentAcoes[Descrição da ação],MATCH(0,INDEX(--(COUNTIF(C$1:C25,IdentAcoes[Descrição da ação])=IdentAcoes[[Quantidade de fontes de recursos ]]),0),0)),\"\")","v":"Capacitar os membros do CBH e CTs sobre conceitos, práticas e experiências em PSA"},"FEHIDRO - Cobrança estadual",null,null,null,160000]
[{"$f":"Financeiro[[#This Row],[ID Ação]]&Financeiro[[#This Row],[Fonte]]","v":"RB362025FEHIDRO - Cobrança estadual"},{"$f":"IFERROR(INDEX(IdentAcoes[ID Ação],MATCH(0,INDEX(--(COUNTIF(B$1:B26,IdentAcoes[ID Ação])=IdentAcoes[[Quantidade de fontes de recursos ]]),0),0)),\"\")","v":"RB362025"},{"$f":"IFERROR(INDEX(IdentAcoes[Descrição da ação],MATCH(0,INDEX(--(COUNTIF(C$1:C26,IdentAcoes[Descrição da ação])=IdentAcoes[[Quantidade de fontes de recursos ]]),0),0)),\"\")","v":"Produzir série didática de vídeos com materiais educativos e informativos sobre educação ambiental e recursos hídricos, com identidade local,  para população leiga, em linguagem acessível e lúdica ( 1 temática a cada 2 anos)"},"FEHIDRO - Cobrança estadual",null,null,null,250000,null,null,null,null,null,300000]
[{"$f":"Financeiro[[#This Row],[ID Ação]]&Financeiro[[#This Row],[Fonte]]","v":"RB372025FEHIDRO - Cobrança estadual"},{"$f":"IFERROR(INDEX(IdentAcoes[ID Ação],MATCH(0,INDEX(--(COUNTIF(B$1:B27,IdentAcoes[ID Ação])=IdentAcoes[[Quantidade de fontes de recursos ]]),0),0)),\"\")","v":"RB372025"},{"$f":"IFERROR(INDEX(IdentAcoes[Descrição da ação],MATCH(0,INDEX(--(COUNTIF(C$1:C27,IdentAcoes[Descrição da ação])=IdentAcoes[[Quantidade de fontes de recursos ]]),0),0)),\"\")","v":"Oficinas de capacitação em recursos hídricos para educadores com sinergia ao currículo paulista"},"FEHIDRO - Cobrança estadual",null,null,null,220000,null,null,220000]
[{"$f":"Financeiro[[#This Row],[ID Ação]]&Financeiro[[#This Row],[Fonte]]","v":"RB382026Tesouro do Estado"},{"$f":"IFERROR(INDEX(IdentAcoes[ID Ação],MATCH(0,INDEX(--(COUNTIF(B$1:B28,IdentAcoes[ID Ação])=IdentAcoes[[Quantidade de fontes de recursos ]]),0),0)),\"\")","v":"RB382026"},{"$f":"IFERROR(INDEX(IdentAcoes[Descrição da ação],MATCH(0,INDEX(--(COUNTIF(C$1:C28,IdentAcoes[Descrição da ação])=IdentAcoes[[Quantidade de fontes de recursos ]]),0),0)),\"\")","v":"Instalação de uma sala com equipamentos de informática e multimídia, para o funcionamento da CT-APRM-AJSL"},"Tesouro do Estado",null,null,null,null,null,null,350000]
[{"$f":"Financeiro[[#This Row],[ID Ação]]&Financeiro[[#This Row],[Fonte]]","v":"RB392026FEHIDRO - Cobrança estadual"},{"$f":"IFERROR(INDEX(IdentAcoes[ID Ação],MATCH(0,INDEX(--(COUNTIF(B$1:B29,IdentAcoes[ID Ação])=IdentAcoes[[Quantidade de fontes de recursos ]]),0),0)),\"\")","v":"RB392026"},{"$f":"IFERROR(INDEX(IdentAcoes[Descrição da ação],MATCH(0,INDEX(--(COUNTIF(C$1:C29,IdentAcoes[Descrição da ação])=IdentAcoes[[Quantidade de fontes de recursos ]]),0),0)),\"\")","v":"Divulgação na mídia regional  e palestras de conscientização/orientação aos produtores rurais sobre o uso adequado de agrotóxicos  e o manejo e recolhimento das embalagens de agrotóxico"},"FEHIDRO - Cobrança estadual",null,null,null,null,null,null,160000]
[{"$f":"Financeiro[[#This Row],[ID Ação]]&Financeiro[[#This Row],[Fonte]]","v":"RB402027FEHIDRO - Cobrança estadual"},{"$f":"IFERROR(INDEX(IdentAcoes[ID Ação],MATCH(0,INDEX(--(COUNTIF(B$1:B30,IdentAcoes[ID Ação])=IdentAcoes[[Quantidade de fontes de recursos ]]),0),0)),\"\")","v":"RB402027"},{"$f":"IFERROR(INDEX(IdentAcoes[Descrição da ação],MATCH(0,INDEX(--(COUNTIF(C$1:C30,IdentAcoes[Descrição da ação])=IdentAcoes[[Quantidade de fontes de recursos ]]),0),0)),\"\")","v":"Realizar o diagnóstico da situação atual dos corpos de água da UGRHI 11"},"FEHIDRO - Cobrança estadual",null,null,null,null,null,null,null,null,null,350000]
[{"$f":"Financeiro[[#This Row],[ID Ação]]&Financeiro[[#This Row],[Fonte]]","v":""},{"$f":"IFERROR(INDEX(IdentAcoes[ID Ação],MATCH(0,INDEX(--(COUNTIF(B$1:B31,IdentAcoes[ID Ação])=IdentAcoes[[Quantidade de fontes de recursos ]]),0),0)),\"\")","v":""},{"$f":"IFERROR(INDEX(IdentAcoes[Descrição da ação],MATCH(0,INDEX(--(COUNTIF(C$1:C31,IdentAcoes[Descrição da ação])=IdentAcoes[[Quantidade de fontes de recursos ]]),0),0)),\"\")","v":""}]
[{"$f":"Financeiro[[#This Row],[ID Ação]]&Financeiro[[#This Row],[Fonte]]","v":""},{"$f":"IFERROR(INDEX(IdentAcoes[ID Ação],MATCH(0,INDEX(--(COUNTIF(B$1:B32,IdentAcoes[ID Ação])=IdentAcoes[[Quantidade de fontes de recursos ]]),0),0)),\"\")","v":""},{"$f":"IFERROR(INDEX(IdentAcoes[Descrição da ação],MATCH(0,INDEX(--(COUNTIF(C$1:C32,IdentAcoes[Descrição da ação])=IdentAcoes[[Quantidade de fontes de recursos ]]),0),0)),\"\")","v":""}]
[{"$f":"Financeiro[[#This Row],[ID Ação]]&Financeiro[[#This Row],[Fonte]]","v":""},{"$f":"IFERROR(INDEX(IdentAcoes[ID Ação],MATCH(0,INDEX(--(COUNTIF(B$1:B33,IdentAcoes[ID Ação])=IdentAcoes[[Quantidade de fontes de recursos ]]),0),0)),\"\")","v":""},{"$f":"IFERROR(INDEX(IdentAcoes[Descrição da ação],MATCH(0,INDEX(--(COUNTIF(C$1:C33,IdentAcoes[Descrição da ação])=IdentAcoes[[Quantidade de fontes de recursos ]]),0),0)),\"\")","v":""}]
[{"$f":"Financeiro[[#This Row],[ID Ação]]&Financeiro[[#This Row],[Fonte]]","v":""},{"$f":"IFERROR(INDEX(IdentAcoes[ID Ação],MATCH(0,INDEX(--(COUNTIF(B$1:B34,IdentAcoes[ID Ação])=IdentAcoes[[Quantidade de fontes de recursos ]]),0),0)),\"\")","v":""},{"$f":"IFERROR(INDEX(IdentAcoes[Descrição da ação],MATCH(0,INDEX(--(COUNTIF(C$1:C34,IdentAcoes[Descrição da ação])=IdentAcoes[[Quantidade de fontes de recursos ]]),0),0)),\"\")","v":""}]
[{"$f":"Financeiro[[#This Row],[ID Ação]]&Financeiro[[#This Row],[Fonte]]","v":""},{"$f":"IFERROR(INDEX(IdentAcoes[ID Ação],MATCH(0,INDEX(--(COUNTIF(B$1:B35,IdentAcoes[ID Ação])=IdentAcoes[[Quantidade de fontes de recursos ]]),0),0)),\"\")","v":""},{"$f":"IFERROR(INDEX(IdentAcoes[Descrição da ação],MATCH(0,INDEX(--(COUNTIF(C$1:C35,IdentAcoes[Descrição da ação])=IdentAcoes[[Quantidade de fontes de recursos ]]),0),0)),\"\")","v":""}]
[{"$f":"Financeiro[[#This Row],[ID Ação]]&Financeiro[[#This Row],[Fonte]]","v":""},{"$f":"IFERROR(INDEX(IdentAcoes[ID Ação],MATCH(0,INDEX(--(COUNTIF(B$1:B36,IdentAcoes[ID Ação])=IdentAcoes[[Quantidade de fontes de recursos ]]),0),0)),\"\")","v":""},{"$f":"IFERROR(INDEX(IdentAcoes[Descrição da ação],MATCH(0,INDEX(--(COUNTIF(C$1:C36,IdentAcoes[Descrição da ação])=IdentAcoes[[Quantidade de fontes de recursos ]]),0),0)),\"\")","v":""}]
[{"$f":"Financeiro[[#This Row],[ID Ação]]&Financeiro[[#This Row],[Fonte]]","v":""},{"$f":"IFERROR(INDEX(IdentAcoes[ID Ação],MATCH(0,INDEX(--(COUNTIF(B$1:B37,IdentAcoes[ID Ação])=IdentAcoes[[Quantidade de fontes de recursos ]]),0),0)),\"\")","v":""},{"$f":"IFERROR(INDEX(IdentAcoes[Descrição da ação],MATCH(0,INDEX(--(COUNTIF(C$1:C37,IdentAcoes[Descrição da ação])=IdentAcoes[[Quantidade de fontes de recursos ]]),0),0)),\"\")","v":""}]
[{"$f":"Financeiro[[#This Row],[ID Ação]]&Financeiro[[#This Row],[Fonte]]","v":""},{"$f":"IFERROR(INDEX(IdentAcoes[ID Ação],MATCH(0,INDEX(--(COUNTIF(B$1:B38,IdentAcoes[ID Ação])=IdentAcoes[[Quantidade de fontes de recursos ]]),0),0)),\"\")","v":""},{"$f":"IFERROR(INDEX(IdentAcoes[Descrição da ação],MATCH(0,INDEX(--(COUNTIF(C$1:C38,IdentAcoes[Descrição da ação])=IdentAcoes[[Quantidade de fontes de recursos ]]),0),0)),\"\")","v":""}]
[{"$f":"Financeiro[[#This Row],[ID Ação]]&Financeiro[[#This Row],[Fonte]]","v":""},{"$f":"IFERROR(INDEX(IdentAcoes[ID Ação],MATCH(0,INDEX(--(COUNTIF(B$1:B39,IdentAcoes[ID Ação])=IdentAcoes[[Quantidade de fontes de recursos ]]),0),0)),\"\")","v":""},{"$f":"IFERROR(INDEX(IdentAcoes[Descrição da ação],MATCH(0,INDEX(--(COUNTIF(C$1:C39,IdentAcoes[Descrição da ação])=IdentAcoes[[Quantidade de fontes de recursos ]]),0),0)),\"\")","v":""}]
[{"$f":"Financeiro[[#This Row],[ID Ação]]&Financeiro[[#This Row],[Fonte]]","v":""},{"$f":"IFERROR(INDEX(IdentAcoes[ID Ação],MATCH(0,INDEX(--(COUNTIF(B$1:B40,IdentAcoes[ID Ação])=IdentAcoes[[Quantidade de fontes de recursos ]]),0),0)),\"\")","v":""},{"$f":"IFERROR(INDEX(IdentAcoes[Descrição da ação],MATCH(0,INDEX(--(COUNTIF(C$1:C40,IdentAcoes[Descrição da ação])=IdentAcoes[[Quantidade de fontes de recursos ]]),0),0)),\"\")","v":""}]
[{"$f":"Financeiro[[#This Row],[ID Ação]]&Financeiro[[#This Row],[Fonte]]","v":""},{"$f":"IFERROR(INDEX(IdentAcoes[ID Ação],MATCH(0,INDEX(--(COUNTIF(B$1:B41,IdentAcoes[ID Ação])=IdentAcoes[[Quantidade de fontes de recursos ]]),0),0)),\"\")","v":""},{"$f":"IFERROR(INDEX(IdentAcoes[Descrição da ação],MATCH(0,INDEX(--(COUNTIF(C$1:C41,IdentAcoes[Descrição da ação])=IdentAcoes[[Quantidade de fontes de recursos ]]),0),0)),\"\")","v":""}]
[{"$f":"Financeiro[[#This Row],[ID Ação]]&Financeiro[[#This Row],[Fonte]]","v":""},{"$f":"IFERROR(INDEX(IdentAcoes[ID Ação],MATCH(0,INDEX(--(COUNTIF(B$1:B42,IdentAcoes[ID Ação])=IdentAcoes[[Quantidade de fontes de recursos ]]),0),0)),\"\")","v":""},{"$f":"IFERROR(INDEX(IdentAcoes[Descrição da ação],MATCH(0,INDEX(--(COUNTIF(C$1:C42,IdentAcoes[Descrição da ação])=IdentAcoes[[Quantidade de fontes de recursos ]]),0),0)),\"\")","v":""}]
[{"$f":"Financeiro[[#This Row],[ID Ação]]&Financeiro[[#This Row],[Fonte]]","v":""},{"$f":"IFERROR(INDEX(IdentAcoes[ID Ação],MATCH(0,INDEX(--(COUNTIF(B$1:B43,IdentAcoes[ID Ação])=IdentAcoes[[Quantidade de fontes de recursos ]]),0),0)),\"\")","v":""},{"$f":"IFERROR(INDEX(IdentAcoes[Descrição da ação],MATCH(0,INDEX(--(COUNTIF(C$1:C43,IdentAcoes[Descrição da ação])=IdentAcoes[[Quantidade de fontes de recursos ]]),0),0)),\"\")","v":""}]
[{"$f":"Financeiro[[#This Row],[ID Ação]]&Financeiro[[#This Row],[Fonte]]","v":""},{"$f":"IFERROR(INDEX(IdentAcoes[ID Ação],MATCH(0,INDEX(--(COUNTIF(B$1:B44,IdentAcoes[ID Ação])=IdentAcoes[[Quantidade de fontes de recursos ]]),0),0)),\"\")","v":""},{"$f":"IFERROR(INDEX(IdentAcoes[Descrição da ação],MATCH(0,INDEX(--(COUNTIF(C$1:C44,IdentAcoes[Descrição da ação])=IdentAcoes[[Quantidade de fontes de recursos ]]),0),0)),\"\")","v":""}]
[{"$f":"Financeiro[[#This Row],[ID Ação]]&Financeiro[[#This Row],[Fonte]]","v":""},{"$f":"IFERROR(INDEX(IdentAcoes[ID Ação],MATCH(0,INDEX(--(COUNTIF(B$1:B45,IdentAcoes[ID Ação])=IdentAcoes[[Quantidade de fontes de recursos ]]),0),0)),\"\")","v":""},{"$f":"IFERROR(INDEX(IdentAcoes[Descrição da ação],MATCH(0,INDEX(--(COUNTIF(C$1:C45,IdentAcoes[Descrição da ação])=IdentAcoes[[Quantidade de fontes de recursos ]]),0),0)),\"\")","v":""}]
[{"$f":"Financeiro[[#This Row],[ID Ação]]&Financeiro[[#This Row],[Fonte]]","v":""},{"$f":"IFERROR(INDEX(IdentAcoes[ID Ação],MATCH(0,INDEX(--(COUNTIF(B$1:B46,IdentAcoes[ID Ação])=IdentAcoes[[Quantidade de fontes de recursos ]]),0),0)),\"\")","v":""},{"$f":"IFERROR(INDEX(IdentAcoes[Descrição da ação],MATCH(0,INDEX(--(COUNTIF(C$1:C46,IdentAcoes[Descrição da ação])=IdentAcoes[[Quantidade de fontes de recursos ]]),0),0)),\"\")","v":""}]
[{"$f":"Financeiro[[#This Row],[ID Ação]]&Financeiro[[#This Row],[Fonte]]","v":""},{"$f":"IFERROR(INDEX(IdentAcoes[ID Ação],MATCH(0,INDEX(--(COUNTIF(B$1:B47,IdentAcoes[ID Ação])=IdentAcoes[[Quantidade de fontes de recursos ]]),0),0)),\"\")","v":""},{"$f":"IFERROR(INDEX(IdentAcoes[Descrição da ação],MATCH(0,INDEX(--(COUNTIF(C$1:C47,IdentAcoes[Descrição da ação])=IdentAcoes[[Quantidade de fontes de recursos ]]),0),0)),\"\")","v":""}]
[{"$f":"Financeiro[[#This Row],[ID Ação]]&Financeiro[[#This Row],[Fonte]]","v":""},{"$f":"IFERROR(INDEX(IdentAcoes[ID Ação],MATCH(0,INDEX(--(COUNTIF(B$1:B48,IdentAcoes[ID Ação])=IdentAcoes[[Quantidade de fontes de recursos ]]),0),0)),\"\")","v":""},{"$f":"IFERROR(INDEX(IdentAcoes[Descrição da ação],MATCH(0,INDEX(--(COUNTIF(C$1:C48,IdentAcoes[Descrição da ação])=IdentAcoes[[Quantidade de fontes de recursos ]]),0),0)),\"\")","v":""}]
[{"$f":"Financeiro[[#This Row],[ID Ação]]&Financeiro[[#This Row],[Fonte]]","v":""},{"$f":"IFERROR(INDEX(IdentAcoes[ID Ação],MATCH(0,INDEX(--(COUNTIF(B$1:B49,IdentAcoes[ID Ação])=IdentAcoes[[Quantidade de fontes de recursos ]]),0),0)),\"\")","v":""},{"$f":"IFERROR(INDEX(IdentAcoes[Descrição da ação],MATCH(0,INDEX(--(COUNTIF(C$1:C49,IdentAcoes[Descrição da ação])=IdentAcoes[[Quantidade de fontes de recursos ]]),0),0)),\"\")","v":""}]

{"sheet":"PAPI 2024-2027","index":4,"n_rows":51,"n_cols":15,"rows_kept":51,"cut":false,"hidden":false,"merged":[]}
[null,null,null,null,null,"R$ Planejado"]
["id_ação_Fonte_oculta","ID Ação","Descrição da ação","Meta","Fonte",2024,2025,2026,2027,"Total","SubPDC","Prioridade do PDC","Segmento do executor","Área de abrangência","Nome da área de abrangência"]
[{"$f":"IF(INDEX(Financeiro[],,1)=0,\"\",(INDEX(Financeiro[],,1)))","v":"RB012024FEHIDRO - Cobrança estadual"},{"$f":"IF(INDEX(Financeiro[],,2)=0,\"\",(INDEX(Financeiro[],,2)))","v":"RB012024"},{"$f":"INDEX(Financeiro[Descrição da ação],MATCH(B3,Financeiro[ID Ação], 0))","v":"Revisão/atualização de Plano com pelo menos 15 anos de existência"},{"$f":"IF(INDEX('Acompanhamento das metas 24-27'!$C$2:$C$50,MATCH(B3,'Acompanhamento das metas 24-27'!$A$2:$A$50,0))<>0,INDEX('Acompanhamento das metas 24-27'!$C$2:$C$50,MATCH(B3,'Acompanhamento das metas 24-27'!$A$2:$A$50,0)),\"\")","v":"Revisão/atualização de 9 Planos de Macrodrenagem até 2027"},{"$f":"IF(VLOOKUP(A3,Financeiro[[id_ação_Fonte_oculta]:[R$  Executado (2027)]],4,FALSE)=0,\"\",VLOOKUP(A3,Financeiro[[id_ação_Fonte_oculta]:[R$  Executado (2027)]],4,FALSE))","v":"FEHIDRO - Cobrança estadual"},{"$f":"IF(VLOOKUP(A3,Financeiro[[id_ação_Fonte_oculta]:[R$  Executado (2027)]],4,FALSE)=0,\"\",VLOOKUP(A3,Financeiro[[id_ação_Fonte_oculta]:[R$  Executado (2027)]],5,FALSE))","v":300000},{"$f":"IF(VLOOKUP(A3,Financeiro[[id_ação_Fonte_oculta]:[R$  Executado (2027)]],4,FALSE)=0,\"\",VLOOKUP(A3,Financeiro[[id_ação_Fonte_oculta]:[R$  Executado (2027)]],8,FALSE))","v":500000},{"$f":"IF(VLOOKUP(A3,Financeiro[[id_ação_Fonte_oculta]:[R$  Executado (2027)]],4,FALSE)=0,\"\",VLOOKUP(A3,Financeiro[[id_ação_Fonte_oculta]:[R$  Executado (2027)]],11,FALSE))","v":400000},{"$f":"IF(VLOOKUP(A3,Financeiro[[id_ação_Fonte_oculta]:[R$  Executado (2027)]],4,FALSE)=0,\"\",VLOOKUP(A3,Financeiro[[id_ação_Fonte_oculta]:[R$  Executado (2027)]],14,FALSE))","v":450000},{"$f":"SUM(F3:I3)","v":1650000},{"$f":"IFERROR(INDEX(IdentAcoes[SubPDC],MATCH(B3,IdentAcoes[ID Ação],0)),\"\")","v":"1.2 - Planejamento"},{"$f":"IFERROR(INDEX(IdentAcoes[Prioridade do PDC],MATCH($B3,IdentAcoes[ID Ação],0)),\"\")","v":"PDC 1 e 2"},{"$f":"IFERROR(INDEX(IdentAcoes[Segmento do executor],MATCH($B3,IdentAcoes[ID Ação],0)),\"\")","v":"Sociedade Civil"},{"$f":"IFERROR(INDEX(IdentAcoes[Área de abrangência],MATCH($B3,IdentAcoes[ID Ação],0)),\"\")","v":"UGRHI"},{"$f":"IFERROR(INDEX(IdentAcoes[Detalhamento da área de abrangência],MATCH($B3,IdentAcoes[ID Ação],0)),\"\")","v":"Municípios"}]
["RB022024Tesouro do Estado","RB022024",{"$f":"INDEX(Financeiro[Descrição da ação],MATCH(B4,Financeiro[ID Ação], 0))","v":"Desenvolver projetos executivos de microdrenagem para os municípios da UGRHI 11"},{"$f":"IF(INDEX('Acompanhamento das metas 24-27'!$C$2:$C$50,MATCH(B4,'Acompanhamento das metas 24-27'!$A$2:$A$50,0))<>0,INDEX('Acompanhamento das metas 24-27'!$C$2:$C$50,MATCH(B4,'Acompanhamento das metas 24-27'!$A$2:$A$50,0)),\"\")","v":"Elaborar 8 projetos de microdrenagem até 2027"},{"$f":"IF(VLOOKUP(A4,Financeiro[[id_ação_Fonte_oculta]:[R$  Executado (2027)]],4,FALSE)=0,\"\",VLOOKUP(A4,Financeiro[[id_ação_Fonte_oculta]:[R$  Executado (2027)]],4,FALSE))","v":"Tesouro do Estado"},{"$f":"IF(VLOOKUP(A4,Financeiro[[id_ação_Fonte_oculta]:[R$  Executado (2027)]],4,FALSE)=0,\"\",VLOOKUP(A4,Financeiro[[id_ação_Fonte_oculta]:[R$  Executado (2027)]],5,FALSE))","v":300000},{"$f":"IF(VLOOKUP(A4,Financeiro[[id_ação_Fonte_oculta]:[R$  Executado (2027)]],4,FALSE)=0,\"\",VLOOKUP(A4,Financeiro[[id_ação_Fonte_oculta]:[R$  Executado (2027)]],8,FALSE))","v":350000},{"$f":"IF(VLOOKUP(A4,Financeiro[[id_ação_Fonte_oculta]:[R$  Executado (2027)]],4,FALSE)=0,\"\",VLOOKUP(A4,Financeiro[[id_ação_Fonte_oculta]:[R$  Executado (2027)]],11,FALSE))","v":400000},{"$f":"IF(VLOOKUP(A4,Financeiro[[id_ação_Fonte_oculta]:[R$  Executado (2027)]],4,FALSE)=0,\"\",VLOOKUP(A4,Financeiro[[id_ação_Fonte_oculta]:[R$  Executado (2027)]],14,FALSE))","v":450000},{"$f":"SUM(F4:I4)","v":1500000},{"$f":"IFERROR(INDEX(IdentAcoes[SubPDC],MATCH(B4,IdentAcoes[ID Ação],0)),\"\")","v":"1.2 - Planejamento"},{"$f":"IFERROR(INDEX(IdentAcoes[Prioridade do PDC],MATCH(B4,IdentAcoes[ID Ação],0)),\"\")","v":"PDC 1 e 2"},{"$f":"IFERROR(INDEX(IdentAcoes[Segmento do executor],MATCH($B4,IdentAcoes[ID Ação],0)),\"\")","v":"Município"},{"$f":"IFERROR(INDEX(IdentAcoes[Área de abrangência],MATCH($B4,IdentAcoes[ID Ação],0)),\"\")","v":"UGRHI"},{"$f":"IFERROR(INDEX(IdentAcoes[Detalhamento da área de abrangência],MATCH($B4,IdentAcoes[ID Ação],0)),\"\")","v":"Municípios"}]
["RB032024FEHIDRO - Cobrança estadual","RB032024",{"$f":"INDEX(Financeiro[Descrição da ação],MATCH(B5,Financeiro[ID Ação], 0))","v":"Elaborar ou Revisar os Planos Municipais de Resíduos Sólidos"},{"$f":"IF(INDEX('Acompanhamento das metas 24-27'!$C$2:$C$50,MATCH(B5,'Acompanhamento das metas 24-27'!$A$2:$A$50,0))<>0,INDEX('Acompanhamento das metas 24-27'!$C$2:$C$50,MATCH(B5,'Acompanhamento das metas 24-27'!$A$2:$A$50,0)),\"\")","v":"Elaborar e implantar 8 Planos Municipais de Resíduos Sólidos até 2027"},{"$f":"IF(VLOOKUP(A5,Financeiro[[id_ação_Fonte_oculta]:[R$  Executado (2027)]],4,FALSE)=0,\"\",VLOOKUP(A5,Financeiro[[id_ação_Fonte_oculta]:[R$  Executado (2027)]],4,FALSE))","v":"FEHIDRO - Cobrança estadual"},{"$f":"IF(VLOOKUP(A5,Financeiro[[id_ação_Fonte_oculta]:[R$  Executado (2027)]],4,FALSE)=0,\"\",VLOOKUP(A5,Financeiro[[id_ação_Fonte_oculta]:[R$  Executado (2027)]],5,FALSE))","v":300000},{"$f":"IF(VLOOKUP(A5,Financeiro[[id_ação_Fonte_oculta]:[R$  Executado (2027)]],4,FALSE)=0,\"\",VLOOKUP(A5,Financeiro[[id_ação_Fonte_oculta]:[R$  Executado (2027)]],8,FALSE))","v":350000},{"$f":"IF(VLOOKUP(A5,Financeiro[[id_ação_Fonte_oculta]:[R$  Executado (2027)]],4,FALSE)=0,\"\",VLOOKUP(A5,Financeiro[[id_ação_Fonte_oculta]:[R$  Executado (2027)]],11,FALSE))","v":400000},{"$f":"IF(VLOOKUP(A5,Financeiro[[id_ação_Fonte_oculta]:[R$  Executado (2027)]],4,FALSE)=0,\"\",VLOOKUP(A5,Financeiro[[id_ação_Fonte_oculta]:[R$  Executado (2027)]],14,FALSE))","v":450000},1500000,{"$f":"IFERROR(INDEX(IdentAcoes[SubPDC],MATCH(B5,IdentAcoes[ID Ação],0)),\"\")","v":"1.2 - Planejamento"},{"$f":"IFERROR(INDEX(IdentAcoes[Prioridade do PDC],MATCH(B5,IdentAcoes[ID Ação],0)),\"\")","v":"PDC 1 e 2"},{"$f":"IFERROR(INDEX(IdentAcoes[Segmento do executor],MATCH($B5,IdentAcoes[ID Ação],0)),\"\")","v":"Sociedade Civil"},{"$f":"IFERROR(INDEX(IdentAcoes[Área de abrangência],MATCH($B5,IdentAcoes[ID Ação],0)),\"\")","v":"UGRHI"},{"$f":"IFERROR(INDEX(IdentAcoes[Detalhamento da área de abrangência],MATCH($B5,IdentAcoes[ID Ação],0)),\"\")","v":"Municípios"}]
["RB042024FEHIDRO - Cobrança estadual","RB042024",{"$f":"INDEX(Financeiro[Descrição da ação],MATCH(B6,Financeiro[ID Ação], 0))","v":"Revisao do mapeamento das áreas de risco e do Plano Municipal de Defesa Civil, realizado há mais de 5 anos,  com indicaçoes de ações estruturais e não estruturais"},{"$f":"IF(INDEX('Acompanhamento das metas 24-27'!$C$2:$C$50,MATCH(B6,'Acompanhamento das metas 24-27'!$A$2:$A$50,0))<>0,INDEX('Acompanhamento das metas 24-27'!$C$2:$C$50,MATCH(B6,'Acompanhamento das metas 24-27'!$A$2:$A$50,0)),\"\")","v":"Revisão/atualização de 12 Planos Municipais de Defesa Civil até 2027"},{"$f":"IF(VLOOKUP(A6,Financeiro[[id_ação_Fonte_oculta]:[R$  Executado (2027)]],4,FALSE)=0,\"\",VLOOKUP(A6,Financeiro[[id_ação_Fonte_oculta]:[R$  Executado (2027)]],4,FALSE))","v":"FEHIDRO - Cobrança estadual"},{"$f":"IF(VLOOKUP(A6,Financeiro[[id_ação_Fonte_oculta]:[R$  Executado (2027)]],4,FALSE)=0,\"\",VLOOKUP(A6,Financeiro[[id_ação_Fonte_oculta]:[R$  Executado (2027)]],5,FALSE))","v":350000},{"$f":"IF(VLOOKUP(A6,Financeiro[[id_ação_Fonte_oculta]:[R$  Executado (2027)]],4,FALSE)=0,\"\",VLOOKUP(A6,Financeiro[[id_ação_Fonte_oculta]:[R$  Executado (2027)]],8,FALSE))","v":375000},{"$f":"IF(VLOOKUP(A6,Financeiro[[id_ação_Fonte_oculta]:[R$  Executado (2027)]],4,FALSE)=0,\"\",VLOOKUP(A6,Financeiro[[id_ação_Fonte_oculta]:[R$  Executado (2027)]],11,FALSE))","v":400000},{"$f":"IF(VLOOKUP(A6,Financeiro[[id_ação_Fonte_oculta]:[R$  Executado (2027)]],4,FALSE)=0,\"\",VLOOKUP(A6,Financeiro[[id_ação_Fonte_oculta]:[R$  Executado (2027)]],14,FALSE))","v":450000},1575000,{"$f":"IFERROR(INDEX(IdentAcoes[SubPDC],MATCH(B6,IdentAcoes[ID Ação],0)),\"\")","v":"1.2 - Planejamento"},{"$f":"IFERROR(INDEX(IdentAcoes[Prioridade do PDC],MATCH(B6,IdentAcoes[ID Ação],0)),\"\")","v":"PDC 1 e 2"},{"$f":"IFERROR(INDEX(IdentAcoes[Segmento do executor],MATCH($B6,IdentAcoes[ID Ação],0)),\"\")","v":"Sociedade Civil"},{"$f":"IFERROR(INDEX(IdentAcoes[Área de abrangência],MATCH($B6,IdentAcoes[ID Ação],0)),\"\")","v":"UGRHI"},{"$f":"IFERROR(INDEX(IdentAcoes[Detalhamento da área de abrangência],MATCH($B6,IdentAcoes[ID Ação],0)),\"\")","v":"Municípios"}]
["RB062024FEHIDRO - Cobrança estadual","RB062024",{"$f":"INDEX(Financeiro[Descrição da ação],MATCH(B7,Financeiro[ID Ação], 0))","v":"Manutenção, ampliação de funcionalidades do SIG-RB, com atualização de base de dados e informaçoes (repositório)"},{"$f":"IF(INDEX('Acompanhamento das metas 24-27'!$C$2:$C$50,MATCH(B7,'Acompanhamento das metas 24-27'!$A$2:$A$50,0))<>0,INDEX('Acompanhamento das metas 24-27'!$C$2:$C$50,MATCH(B7,'Acompanhamento das metas 24-27'!$A$2:$A$50,0)),\"\")","v":"Manutenção do Sistema de Informações Geográficas com atualização tecnológica do sistema operacional até 2027"},{"$f":"IF(VLOOKUP(A7,Financeiro[[id_ação_Fonte_oculta]:[R$  Executado (2027)]],4,FALSE)=0,\"\",VLOOKUP(A7,Financeiro[[id_ação_Fonte_oculta]:[R$  Executado (2027)]],4,FALSE))","v":"FEHIDRO - Cobrança estadual"},{"$f":"IF(VLOOKUP(A7,Financeiro[[id_ação_Fonte_oculta]:[R$  Executado (2027)]],4,FALSE)=0,\"\",VLOOKUP(A7,Financeiro[[id_ação_Fonte_oculta]:[R$  Executado (2027)]],5,FALSE))","v":300000},{"$f":"IF(VLOOKUP(A7,Financeiro[[id_ação_Fonte_oculta]:[R$  Executado (2027)]],4,FALSE)=0,\"\",VLOOKUP(A7,Financeiro[[id_ação_Fonte_oculta]:[R$  Executado (2027)]],8,FALSE))","v":315000},{"$f":"IF(VLOOKUP(A7,Financeiro[[id_ação_Fonte_oculta]:[R$  Executado (2027)]],4,FALSE)=0,\"\",VLOOKUP(A7,Financeiro[[id_ação_Fonte_oculta]:[R$  Executado (2027)]],11,FALSE))","v":330000},{"$f":"IF(VLOOKUP(A7,Financeiro[[id_ação_Fonte_oculta]:[R$  Executado (2027)]],4,FALSE)=0,\"\",VLOOKUP(A7,Financeiro[[id_ação_Fonte_oculta]:[R$  Executado (2027)]],14,FALSE))","v":345000},1290000,{"$f":"IFERROR(INDEX(IdentAcoes[SubPDC],MATCH(B7,IdentAcoes[ID Ação],0)),\"\")","v":"1.2 - Planejamento"},{"$f":"IFERROR(INDEX(IdentAcoes[Prioridade do PDC],MATCH(B7,IdentAcoes[ID Ação],0)),\"\")","v":"PDC 1 e 2"},{"$f":"IFERROR(INDEX(IdentAcoes[Segmento do executor],MATCH($B7,IdentAcoes[ID Ação],0)),\"\")","v":"Sociedade Civil"},{"$f":"IFERROR(INDEX(IdentAcoes[Área de abrangência],MATCH($B7,IdentAcoes[ID Ação],0)),\"\")","v":"Outra"},{"$f":"IFERROR(INDEX(IdentAcoes[Detalhamento da área de abrangência],MATCH($B7,IdentAcoes[ID Ação],0)),\"\")","v":0}]
["RB082024Tesouro do Estado","RB082024",{"$f":"INDEX(Financeiro[Descrição da ação],MATCH(B8,Financeiro[ID Ação], 0))","v":"Realizar estudo sobre a atividade de mineração de areia no Vale do Ribeira"},{"$f":"IF(INDEX('Acompanhamento das metas 24-27'!$C$2:$C$50,MATCH(B8,'Acompanhamento das metas 24-27'!$A$2:$A$50,0))<>0,INDEX('Acompanhamento das metas 24-27'!$C$2:$C$50,MATCH(B8,'Acompanhamento das metas 24-27'!$A$2:$A$50,0)),\"\")","v":"Realizar 1 estudo contemplando as áreas críticas na área de abrangência em 2024"},{"$f":"IF(VLOOKUP(A8,Financeiro[[id_ação_Fonte_oculta]:[R$  Executado (2027)]],4,FALSE)=0,\"\",VLOOKUP(A8,Financeiro[[id_ação_Fonte_oculta]:[R$  Executado (2027)]],4,FALSE))","v":"Tesouro do Estado"},{"$f":"IF(VLOOKUP(A8,Financeiro[[id_ação_Fonte_oculta]:[R$  Executado (2027)]],4,FALSE)=0,\"\",VLOOKUP(A8,Financeiro[[id_ação_Fonte_oculta]:[R$  Executado (2027)]],5,FALSE))","v":200000},{"$f":"IF(VLOOKUP(A8,Financeiro[[id_ação_Fonte_oculta]:[R$  Executado (2027)]],4,FALSE)=0,\"\",VLOOKUP(A8,Financeiro[[id_ação_Fonte_oculta]:[R$  Executado (2027)]],8,FALSE))","v":0},{"$f":"IF(VLOOKUP(A8,Financeiro[[id_ação_Fonte_oculta]:[R$  Executado (2027)]],4,FALSE)=0,\"\",VLOOKUP(A8,Financeiro[[id_ação_Fonte_oculta]:[R$  Executado (2027)]],11,FALSE))","v":0},{"$f":"IF(VLOOKUP(A8,Financeiro[[id_ação_Fonte_oculta]:[R$  Executado (2027)]],4,FALSE)=0,\"\",VLOOKUP(A8,Financeiro[[id_ação_Fonte_oculta]:[R$  Executado (2027)]],14,FALSE))","v":0},200000,{"$f":"IFERROR(INDEX(IdentAcoes[SubPDC],MATCH(B8,IdentAcoes[ID Ação],0)),\"\")","v":"1.2 - Planejamento"},{"$f":"IFERROR(INDEX(IdentAcoes[Prioridade do PDC],MATCH(B8,IdentAcoes[ID Ação],0)),\"\")","v":"PDC 1 e 2"},{"$f":"IFERROR(INDEX(IdentAcoes[Segmento do executor],MATCH($B8,IdentAcoes[ID Ação],0)),\"\")","v":"Estado"},{"$f":"IFERROR(INDEX(IdentAcoes[Área de abrangência],MATCH($B8,IdentAcoes[ID Ação],0)),\"\")","v":"Sub-bacia"},{"$f":"IFERROR(INDEX(IdentAcoes[Detalhamento da área de abrangência],MATCH($B8,IdentAcoes[ID Ação],0)),\"\")","v":"Médio e Baixo Ribeira, Juquiá e Jacupiranga"}]
["RB092024Tesouro do Estado","RB092024",{"$f":"INDEX(Financeiro[Descrição da ação],MATCH(B9,Financeiro[ID Ação], 0))","v":"Elaborar diagnóstico da situação da Pesca profissional e amadora nos rios do Vale, considerando os aspectos positivos e negativos"},{"$f":"IF(INDEX('Acompanhamento das metas 24-27'!$C$2:$C$50,MATCH(B9,'Acompanhamento das metas 24-27'!$A$2:$A$50,0))<>0,INDEX('Acompanhamento das metas 24-27'!$C$2:$C$50,MATCH(B9,'Acompanhamento das metas 24-27'!$A$2:$A$50,0)),\"\")","v":"Realizar 1 diagnóstico da situação da pesca em 2024"},{"$f":"IF(VLOOKUP(A9,Financeiro[[id_ação_Fonte_oculta]:[R$  Executado (2027)]],4,FALSE)=0,\"\",VLOOKUP(A9,Financeiro[[id_ação_Fonte_oculta]:[R$  Executado (2027)]],4,FALSE))","v":"Tesouro do Estado"},{"$f":"IF(VLOOKUP(A9,Financeiro[[id_ação_Fonte_oculta]:[R$  Executado (2027)]],4,FALSE)=0,\"\",VLOOKUP(A9,Financeiro[[id_ação_Fonte_oculta]:[R$  Executado (2027)]],5,FALSE))","v":200000},{"$f":"IF(VLOOKUP(A9,Financeiro[[id_ação_Fonte_oculta]:[R$  Executado (2027)]],4,FALSE)=0,\"\",VLOOKUP(A9,Financeiro[[id_ação_Fonte_oculta]:[R$  Executado (2027)]],8,FALSE))","v":0},{"$f":"IF(VLOOKUP(A9,Financeiro[[id_ação_Fonte_oculta]:[R$  Executado (2027)]],4,FALSE)=0,\"\",VLOOKUP(A9,Financeiro[[id_ação_Fonte_oculta]:[R$  Executado (2027)]],11,FALSE))","v":0},{"$f":"IF(VLOOKUP(A9,Financeiro[[id_ação_Fonte_oculta]:[R$  Executado (2027)]],4,FALSE)=0,\"\",VLOOKUP(A9,Financeiro[[id_ação_Fonte_oculta]:[R$  Executado (2027)]],14,FALSE))","v":0},200000,{"$f":"IFERROR(INDEX(IdentAcoes[SubPDC],MATCH(B9,IdentAcoes[ID Ação],0)),\"\")","v":"1.2 - Planejamento"},{"$f":"IFERROR(INDEX(IdentAcoes[Prioridade do PDC],MATCH(B9,IdentAcoes[ID Ação],0)),\"\")","v":"PDC 1 e 2"},{"$f":"IFERROR(INDEX(IdentAcoes[Segmento do executor],MATCH($B9,IdentAcoes[ID Ação],0)),\"\")","v":"Estado"},{"$f":"IFERROR(INDEX(IdentAcoes[Área de abrangência],MATCH($B9,IdentAcoes[ID Ação],0)),\"\")","v":"UGRHI"},{"$f":"IFERROR(INDEX(IdentAcoes[Detalhamento da área de abrangência],MATCH($B9,IdentAcoes[ID Ação],0)),\"\")","v":0}]
["RB112024FEHIDRO - Cobrança estadual","RB112024",{"$f":"INDEX(Financeiro[Descrição da ação],MATCH(B10,Financeiro[ID Ação], 0))","v":"Realização de estudos tecnicos para caracterização socioambiental da Bacia do Rio Jacupiranga"},null,{"$f":"IF(VLOOKUP(A10,Financeiro[[id_ação_Fonte_oculta]:[R$  Executado (2027)]],4,FALSE)=0,\"\",VLOOKUP(A10,Financeiro[[id_ação_Fonte_oculta]:[R$  Executado (2027)]],4,FALSE))","v":"FEHIDRO - Cobrança estadual"},{"$f":"IF(VLOOKUP(A10,Financeiro[[id_ação_Fonte_oculta]:[R$  Executado (2027)]],4,FALSE)=0,\"\",VLOOKUP(A10,Financeiro[[id_ação_Fonte_oculta]:[R$  Executado (2027)]],5,FALSE))","v":350000},{"$f":"IF(VLOOKUP(A10,Financeiro[[id_ação_Fonte_oculta]:[R$  Executado (2027)]],4,FALSE)=0,\"\",VLOOKUP(A10,Financeiro[[id_ação_Fonte_oculta]:[R$  Executado (2027)]],8,FALSE))","v":0},{"$f":"IF(VLOOKUP(A10,Financeiro[[id_ação_Fonte_oculta]:[R$  Executado (2027)]],4,FALSE)=0,\"\",VLOOKUP(A10,Financeiro[[id_ação_Fonte_oculta]:[R$  Executado (2027)]],11,FALSE))","v":0},{"$f":"IF(VLOOKUP(A10,Financeiro[[id_ação_Fonte_oculta]:[R$  Executado (2027)]],4,FALSE)=0,\"\",VLOOKUP(A10,Financeiro[[id_ação_Fonte_oculta]:[R$  Executado (2027)]],14,FALSE))","v":0},350000,{"$f":"IFERROR(INDEX(IdentAcoes[SubPDC],MATCH(B10,IdentAcoes[ID Ação],0)),\"\")","v":"1.2 - Planejamento"},{"$f":"IFERROR(INDEX(IdentAcoes[Prioridade do PDC],MATCH(B10,IdentAcoes[ID Ação],0)),\"\")","v":"PDC 1 e 2"},{"$f":"IFERROR(INDEX(IdentAcoes[Segmento do executor],MATCH($B10,IdentAcoes[ID Ação],0)),\"\")","v":"Sociedade Civil"},{"$f":"IFERROR(INDEX(IdentAcoes[Área de abrangência],MATCH($B10,IdentAcoes[ID Ação],0)),\"\")","v":"Sub-bacia"},{"$f":"IFERROR(INDEX(IdentAcoes[Detalhamento da área de abrangência],MATCH($B10,IdentAcoes[ID Ação],0)),\"\")","v":"Bacia do Rio Jacupiranga"}]
["RB132024FEHIDRO - Cobrança estadual","RB132024",{"$f":"INDEX(Financeiro[Descrição da ação],MATCH(B11,Financeiro[ID Ação], 0))","v":"Elaboração do Relatório de Situação de 2025 e elaboração/atualização do Plano de Bacia com horizonte de planejamento de 12 anos"},{"$f":"IF(INDEX('Acompanhamento das metas 24-27'!$C$2:$C$50,MATCH(B11,'Acompanhamento das metas 24-27'!$A$2:$A$50,0))<>0,INDEX('Acompanhamento das metas 24-27'!$C$2:$C$50,MATCH(B11,'Acompanhamento das metas 24-27'!$A$2:$A$50,0)),\"\")","v":"Contratar em 2024 a elaboração Relatório de Situação de 2025 e elaboração/atualização do Plano de Bacia"},{"$f":"IF(VLOOKUP(A11,Financeiro[[id_ação_Fonte_oculta]:[R$  Executado (2027)]],4,FALSE)=0,\"\",VLOOKUP(A11,Financeiro[[id_ação_Fonte_oculta]:[R$  Executado (2027)]],4,FALSE))","v":"FEHIDRO - Cobrança estadual"},{"$f":"IF(VLOOKUP(A11,Financeiro[[id_ação_Fonte_oculta]:[R$  Executado (2027)]],4,FALSE)=0,\"\",VLOOKUP(A11,Financeiro[[id_ação_Fonte_oculta]:[R$  Executado (2027)]],5,FALSE))","v":600000},{"$f":"IF(VLOOKUP(A11,Financeiro[[id_ação_Fonte_oculta]:[R$  Executado (2027)]],4,FALSE)=0,\"\",VLOOKUP(A11,Financeiro[[id_ação_Fonte_oculta]:[R$  Executado (2027)]],8,FALSE))","v":0},{"$f":"IF(VLOOKUP(A11,Financeiro[[id_ação_Fonte_oculta]:[R$  Executado (2027)]],4,FALSE)=0,\"\",VLOOKUP(A11,Financeiro[[id_ação_Fonte_oculta]:[R$  Executado (2027)]],11,FALSE))","v":0},{"$f":"IF(VLOOKUP(A11,Financeiro[[id_ação_Fonte_oculta]:[R$  Executado (2027)]],4,FALSE)=0,\"\",VLOOKUP(A11,Financeiro[[id_ação_Fonte_oculta]:[R$  Executado (2027)]],14,FALSE))","v":0},600000,{"$f":"IFERROR(INDEX(IdentAcoes[SubPDC],MATCH(B11,IdentAcoes[ID Ação],0)),\"\")","v":"2.1 - Plano"},{"$f":"IFERROR(INDEX(IdentAcoes[Prioridade do PDC],MATCH(B11,IdentAcoes[ID Ação],0)),\"\")","v":"PDC 1 e 2"},{"$f":"IFERROR(INDEX(IdentAcoes[Segmento do executor],MATCH($B11,IdentAcoes[ID Ação],0)),\"\")","v":"Sociedade Civil"},{"$f":"IFERROR(INDEX(IdentAcoes[Área de abrangência],MATCH($B11,IdentAcoes[ID Ação],0)),\"\")","v":"UGRHI"},{"$f":"IFERROR(INDEX(IdentAcoes[Detalhamento da área de abrangência],MATCH($B11,IdentAcoes[ID Ação],0)),\"\")","v":0}]
["RB162024FEHIDRO - Cobrança estadual","RB162024",{"$f":"INDEX(Financeiro[Descrição da ação],MATCH(B12,Financeiro[ID Ação], 0))","v":"Contratação e execução de obras de saneamento básico na área rural e urbanizada"},{"$f":"IF(INDEX('Acompanhamento das metas 24-27'!$C$2:$C$50,MATCH(B12,'Acompanhamento das metas 24-27'!$A$2:$A$50,0))<>0,INDEX('Acompanhamento das metas 24-27'!$C$2:$C$50,MATCH(B12,'Acompanhamento das metas 24-27'!$A$2:$A$50,0)),\"\")","v":"Implantação de 20 empreendimentos de saneamento na área rural da UGRHI 11 até 2027"},{"$f":"IF(VLOOKUP(A12,Financeiro[[id_ação_Fonte_oculta]:[R$  Executado (2027)]],4,FALSE)=0,\"\",VLOOKUP(A12,Financeiro[[id_ação_Fonte_oculta]:[R$  Executado (2027)]],4,FALSE))","v":"FEHIDRO - Cobrança estadual"},{"$f":"IF(VLOOKUP(A12,Financeiro[[id_ação_Fonte_oculta]:[R$  Executado (2027)]],4,FALSE)=0,\"\",VLOOKUP(A12,Financeiro[[id_ação_Fonte_oculta]:[R$  Executado (2027)]],5,FALSE))","v":2500000},{"$f":"IF(VLOOKUP(A12,Financeiro[[id_ação_Fonte_oculta]:[R$  Executado (2027)]],4,FALSE)=0,\"\",VLOOKUP(A12,Financeiro[[id_ação_Fonte_oculta]:[R$  Executado (2027)]],8,FALSE))","v":2750000},{"$f":"IF(VLOOKUP(A12,Financeiro[[id_ação_Fonte_oculta]:[R$  Executado (2027)]],4,FALSE)=0,\"\",VLOOKUP(A12,Financeiro[[id_ação_Fonte_oculta]:[R$  Executado (2027)]],11,FALSE))","v":3000000},{"$f":"IF(VLOOKUP(A12,Financeiro[[id_ação_Fonte_oculta]:[R$  Executado (2027)]],4,FALSE)=0,\"\",VLOOKUP(A12,Financeiro[[id_ação_Fonte_oculta]:[R$  Executado (2027)]],14,FALSE))","v":3250000},11500000,{"$f":"IFERROR(INDEX(IdentAcoes[SubPDC],MATCH(B12,IdentAcoes[ID Ação],0)),\"\")","v":"3.1 - Efluentes"},{"$f":"IFERROR(INDEX(IdentAcoes[Prioridade do PDC],MATCH(B12,IdentAcoes[ID Ação],0)),\"\")","v":"Prioritário"},{"$f":"IFERROR(INDEX(IdentAcoes[Segmento do executor],MATCH($B12,IdentAcoes[ID Ação],0)),\"\")","v":"Município"},{"$f":"IFERROR(INDEX(IdentAcoes[Área de abrangência],MATCH($B12,IdentAcoes[ID Ação],0)),\"\")","v":"UGRHI"},{"$f":"IFERROR(INDEX(IdentAcoes[Detalhamento da área de abrangência],MATCH($B12,IdentAcoes[ID Ação],0)),\"\")","v":0}]
["RB172024FEHIDRO - Cobrança estadual","RB172024",{"$f":"INDEX(Financeiro[Descrição da ação],MATCH(B13,Financeiro[ID Ação], 0))","v":"Implantar, ampliar ou manter ações de melhoria de gestão de resíduos sólidos, com ênfase na coleta seletiva"},{"$f":"IF(INDEX('Acompanhamento das metas 24-27'!$C$2:$C$50,MATCH(B13,'Acompanhamento das metas 24-27'!$A$2:$A$50,0))<>0,INDEX('Acompanhamento das metas 24-27'!$C$2:$C$50,MATCH(B13,'Acompanhamento das metas 24-27'!$A$2:$A$50,0)),\"\")","v":"Implantação ou manutenção de 8 empreendimentos de coleta seletiva nos municípios da UGRHI até 2027"},{"$f":"IF(VLOOKUP(A13,Financeiro[[id_ação_Fonte_oculta]:[R$  Executado (2027)]],4,FALSE)=0,\"\",VLOOKUP(A13,Financeiro[[id_ação_Fonte_oculta]:[R$  Executado (2027)]],4,FALSE))","v":"FEHIDRO - Cobrança estadual"},{"$f":"IF(VLOOKUP(A13,Financeiro[[id_ação_Fonte_oculta]:[R$  Executado (2027)]],4,FALSE)=0,\"\",VLOOKUP(A13,Financeiro[[id_ação_Fonte_oculta]:[R$  Executado (2027)]],5,FALSE))","v":600000},{"$f":"IF(VLOOKUP(A13,Financeiro[[id_ação_Fonte_oculta]:[R$  Executado (2027)]],4,FALSE)=0,\"\",VLOOKUP(A13,Financeiro[[id_ação_Fonte_oculta]:[R$  Executado (2027)]],8,FALSE))","v":650000},{"$f":"IF(VLOOKUP(A13,Financeiro[[id_ação_Fonte_oculta]:[R$  Executado (2027)]],4,FALSE)=0,\"\",VLOOKUP(A13,Financeiro[[id_ação_Fonte_oculta]:[R$  Executado (2027)]],11,FALSE))","v":700000},{"$f":"IF(VLOOKUP(A13,Financeiro[[id_ação_Fonte_oculta]:[R$  Executado (2027)]],4,FALSE)=0,\"\",VLOOKUP(A13,Financeiro[[id_ação_Fonte_oculta]:[R$  Executado (2027)]],14,FALSE))","v":750000},2700000,{"$f":"IFERROR(INDEX(IdentAcoes[SubPDC],MATCH(B13,IdentAcoes[ID Ação],0)),\"\")","v":"3.3 - Resíduos"},{"$f":"IFERROR(INDEX(IdentAcoes[Prioridade do PDC],MATCH(B13,IdentAcoes[ID Ação],0)),\"\")","v":"Prioritário"},{"$f":"IFERROR(INDEX(IdentAcoes[Segmento do executor],MATCH($B13,IdentAcoes[ID Ação],0)),\"\")","v":"Município"},{"$f":"IFERROR(INDEX(IdentAcoes[Área de abrangência],MATCH($B13,IdentAcoes[ID Ação],0)),\"\")","v":"UGRHI"},{"$f":"IFERROR(INDEX(IdentAcoes[Detalhamento da área de abrangência],MATCH($B13,IdentAcoes[ID Ação],0)),\"\")","v":0}]
["RB182024FEHIDRO - Cobrança estadual","RB182024",{"$f":"INDEX(Financeiro[Descrição da ação],MATCH(B14,Financeiro[ID Ação], 0))","v":"Executar obra de Combate a erosão de cursos d'água"},{"$f":"IF(INDEX('Acompanhamento das metas 24-27'!$C$2:$C$50,MATCH(B14,'Acompanhamento das metas 24-27'!$A$2:$A$50,0))<>0,INDEX('Acompanhamento das metas 24-27'!$C$2:$C$50,MATCH(B14,'Acompanhamento das metas 24-27'!$A$2:$A$50,0)),\"\")","v":"Realizar 4 Obras e ações de proteção e controle da erosão do solo ou do assoreamento dos corpos d'água até 2027"},{"$f":"IF(VLOOKUP(A14,Financeiro[[id_ação_Fonte_oculta]:[R$  Executado (2027)]],4,FALSE)=0,\"\",VLOOKUP(A14,Financeiro[[id_ação_Fonte_oculta]:[R$  Executado (2027)]],4,FALSE))","v":"FEHIDRO - Cobrança estadual"},{"$f":"IF(VLOOKUP(A14,Financeiro[[id_ação_Fonte_oculta]:[R$  Executado (2027)]],4,FALSE)=0,\"\",VLOOKUP(A14,Financeiro[[id_ação_Fonte_oculta]:[R$  Executado (2027)]],5,FALSE))","v":500000},{"$f":"IF(VLOOKUP(A14,Financeiro[[id_ação_Fonte_oculta]:[R$  Executado (2027)]],4,FALSE)=0,\"\",VLOOKUP(A14,Financeiro[[id_ação_Fonte_oculta]:[R$  Executado (2027)]],8,FALSE))","v":550000},{"$f":"IF(VLOOKUP(A14,Financeiro[[id_ação_Fonte_oculta]:[R$  Executado (2027)]],4,FALSE)=0,\"\",VLOOKUP(A14,Financeiro[[id_ação_Fonte_oculta]:[R$  Executado (2027)]],11,FALSE))","v":600000},{"$f":"IF(VLOOKUP(A14,Financeiro[[id_ação_Fonte_oculta]:[R$  Executado (2027)]],4,FALSE)=0,\"\",VLOOKUP(A14,Financeiro[[id_ação_Fonte_oculta]:[R$  Executado (2027)]],14,FALSE))","v":650000},2300000,{"$f":"IFERROR(INDEX(IdentAcoes[SubPDC],MATCH(B14,IdentAcoes[ID Ação],0)),\"\")","v":"4.1 - Controle erosão"},{"$f":"IFERROR(INDEX(IdentAcoes[Prioridade do PDC],MATCH(B14,IdentAcoes[ID Ação],0)),\"\")","v":"Prioritário"},{"$f":"IFERROR(INDEX(IdentAcoes[Segmento do executor],MATCH($B14,IdentAcoes[ID Ação],0)),\"\")","v":"Município"},{"$f":"IFERROR(INDEX(IdentAcoes[Área de abrangência],MATCH($B14,IdentAcoes[ID Ação],0)),\"\")","v":"UGRHI"},{"$f":"IFERROR(INDEX(IdentAcoes[Detalhamento da área de abrangência],MATCH($B14,IdentAcoes[ID Ação],0)),\"\")","v":0}]
["RB192024Outras Fontes","RB192024",{"$f":"INDEX(Financeiro[Descrição da ação],MATCH(B15,Financeiro[ID Ação], 0))","v":"Execução de obra de combate a erosão e/ou desassoreamento de cursos d'água"},{"$f":"IF(INDEX('Acompanhamento das metas 24-27'!$C$2:$C$50,MATCH(B15,'Acompanhamento das metas 24-27'!$A$2:$A$50,0))<>0,INDEX('Acompanhamento das metas 24-27'!$C$2:$C$50,MATCH(B15,'Acompanhamento das metas 24-27'!$A$2:$A$50,0)),\"\")","v":"Realizar 8 Obras de proteção e controle da erosão do solo ou do assoreamento dos corpos d'água até 2027"},{"$f":"IF(VLOOKUP(A15,Financeiro[[id_ação_Fonte_oculta]:[R$  Executado (2027)]],4,FALSE)=0,\"\",VLOOKUP(A15,Financeiro[[id_ação_Fonte_oculta]:[R$  Executado (2027)]],4,FALSE))","v":"Outras Fontes"},{"$f":"IF(VLOOKUP(A15,Financeiro[[id_ação_Fonte_oculta]:[R$  Executado (2027)]],4,FALSE)=0,\"\",VLOOKUP(A15,Financeiro[[id_ação_Fonte_oculta]:[R$  Executado (2027)]],5,FALSE))","v":1000000},{"$f":"IF(VLOOKUP(A15,Financeiro[[id_ação_Fonte_oculta]:[R$  Executado (2027)]],4,FALSE)=0,\"\",VLOOKUP(A15,Financeiro[[id_ação_Fonte_oculta]:[R$  Executado (2027)]],8,FALSE))","v":1100000},{"$f":"IF(VLOOKUP(A15,Financeiro[[id_ação_Fonte_oculta]:[R$  Executado (2027)]],4,FALSE)=0,\"\",VLOOKUP(A15,Financeiro[[id_ação_Fonte_oculta]:[R$  Executado (2027)]],11,FALSE))","v":1200000},{"$f":"IF(VLOOKUP(A15,Financeiro[[id_ação_Fonte_oculta]:[R$  Executado (2027)]],4,FALSE)=0,\"\",VLOOKUP(A15,Financeiro[[id_ação_Fonte_oculta]:[R$  Executado (2027)]],14,FALSE))","v":1300000},4600000,{"$f":"IFERROR(INDEX(IdentAcoes[SubPDC],MATCH(B15,IdentAcoes[ID Ação],0)),\"\")","v":"4.1 - Controle erosão"},{"$f":"IFERROR(INDEX(IdentAcoes[Prioridade do PDC],MATCH(B15,IdentAcoes[ID Ação],0)),\"\")","v":"Prioritário"},{"$f":"IFERROR(INDEX(IdentAcoes[Segmento do executor],MATCH($B15,IdentAcoes[ID Ação],0)),\"\")","v":"Município"},{"$f":"IFERROR(INDEX(IdentAcoes[Área de abrangência],MATCH($B15,IdentAcoes[ID Ação],0)),\"\")","v":"UGRHI"},{"$f":"IFERROR(INDEX(IdentAcoes[Detalhamento da área de abrangência],MATCH($B15,IdentAcoes[ID Ação],0)),\"\")","v":0}]
["RB202024FEHIDRO - Cobrança estadual","RB202024",{"$f":"INDEX(Financeiro[Descrição da ação],MATCH(B16,Financeiro[ID Ação], 0))","v":"Implantar 1 projeto de Pagamento por Serviços Ambientais (PSA)"},{"$f":"IF(INDEX('Acompanhamento das metas 24-27'!$C$2:$C$50,MATCH(B16,'Acompanhamento das metas 24-27'!$A$2:$A$50,0))<>0,INDEX('Acompanhamento das metas 24-27'!$C$2:$C$50,MATCH(B16,'Acompanhamento das metas 24-27'!$A$2:$A$50,0)),\"\")","v":"Implantar pelo menos 1 projeto de Pagamentos por Serviços Ambientais  - PSA na UGRHI 11 em 2024"},{"$f":"IF(VLOOKUP(A16,Financeiro[[id_ação_Fonte_oculta]:[R$  Executado (2027)]],4,FALSE)=0,\"\",VLOOKUP(A16,Financeiro[[id_ação_Fonte_oculta]:[R$  Executado (2027)]],4,FALSE))","v":"FEHIDRO - Cobrança estadual"},{"$f":"IF(VLOOKUP(A16,Financeiro[[id_ação_Fonte_oculta]:[R$  Executado (2027)]],4,FALSE)=0,\"\",VLOOKUP(A16,Financeiro[[id_ação_Fonte_oculta]:[R$  Executado (2027)]],5,FALSE))","v":360000},{"$f":"IF(VLOOKUP(A16,Financeiro[[id_ação_Fonte_oculta]:[R$  Executado (2027)]],4,FALSE)=0,\"\",VLOOKUP(A16,Financeiro[[id_ação_Fonte_oculta]:[R$  Executado (2027)]],8,FALSE))","v":0},{"$f":"IF(VLOOKUP(A16,Financeiro[[id_ação_Fonte_oculta]:[R$  Executado (2027)]],4,FALSE)=0,\"\",VLOOKUP(A16,Financeiro[[id_ação_Fonte_oculta]:[R$  Executado (2027)]],11,FALSE))","v":0},{"$f":"IF(VLOOKUP(A16,Financeiro[[id_ação_Fonte_oculta]:[R$  Executado (2027)]],4,FALSE)=0,\"\",VLOOKUP(A16,Financeiro[[id_ação_Fonte_oculta]:[R$  Executado (2027)]],14,FALSE))","v":0},360000,{"$f":"IFERROR(INDEX(IdentAcoes[SubPDC],MATCH(B16,IdentAcoes[ID Ação],0)),\"\")","v":"4.2 - Soluções baseadas Natureza"},{"$f":"IFERROR(INDEX(IdentAcoes[Prioridade do PDC],MATCH(B16,IdentAcoes[ID Ação],0)),\"\")","v":"Prioritário"},{"$f":"IFERROR(INDEX(IdentAcoes[Segmento do executor],MATCH($B16,IdentAcoes[ID Ação],0)),\"\")","v":"Município"},{"$f":"IFERROR(INDEX(IdentAcoes[Área de abrangência],MATCH($B16,IdentAcoes[ID Ação],0)),\"\")","v":"Município"},{"$f":"IFERROR(INDEX(IdentAcoes[Detalhamento da área de abrangência],MATCH($B16,IdentAcoes[ID Ação],0)),\"\")","v":0}]
["RB212024Tesouro do Estado","RB212024",{"$f":"INDEX(Financeiro[Descrição da ação],MATCH(B17,Financeiro[ID Ação], 0))","v":"Fomentar a produção agroecológica e orgânica (02 projetos)"},{"$f":"IF(INDEX('Acompanhamento das metas 24-27'!$C$2:$C$50,MATCH(B17,'Acompanhamento das metas 24-27'!$A$2:$A$50,0))<>0,INDEX('Acompanhamento das metas 24-27'!$C$2:$C$50,MATCH(B17,'Acompanhamento das metas 24-27'!$A$2:$A$50,0)),\"\")","v":"Elaborar e executar 2 projetos piloto de produção de SAF ou sistema orgânico, com objetivo de formar unidade(s) demonstrativa(s) para fortalecimento e experimentação da técnica na bacia em 2024 e 2026"},{"$f":"IF(VLOOKUP(A17,Financeiro[[id_ação_Fonte_oculta]:[R$  Executado (2027)]],4,FALSE)=0,\"\",VLOOKUP(A17,Financeiro[[id_ação_Fonte_oculta]:[R$  Executado (2027)]],4,FALSE))","v":"Tesouro do Estado"},{"$f":"IF(VLOOKUP(A17,Financeiro[[id_ação_Fonte_oculta]:[R$  Executado (2027)]],4,FALSE)=0,\"\",VLOOKUP(A17,Financeiro[[id_ação_Fonte_oculta]:[R$  Executado (2027)]],5,FALSE))","v":160000},{"$f":"IF(VLOOKUP(A17,Financeiro[[id_ação_Fonte_oculta]:[R$  Executado (2027)]],4,FALSE)=0,\"\",VLOOKUP(A17,Financeiro[[id_ação_Fonte_oculta]:[R$  Executado (2027)]],8,FALSE))","v":0},{"$f":"IF(VLOOKUP(A17,Financeiro[[id_ação_Fonte_oculta]:[R$  Executado (2027)]],4,FALSE)=0,\"\",VLOOKUP(A17,Financeiro[[id_ação_Fonte_oculta]:[R$  Executado (2027)]],11,FALSE))","v":180000},{"$f":"IF(VLOOKUP(A17,Financeiro[[id_ação_Fonte_oculta]:[R$  Executado (2027)]],4,FALSE)=0,\"\",VLOOKUP(A17,Financeiro[[id_ação_Fonte_oculta]:[R$  Executado (2027)]],14,FALSE))","v":0},340000,{"$f":"IFERROR(INDEX(IdentAcoes[SubPDC],MATCH(B17,IdentAcoes[ID Ação],0)),\"\")","v":"4.2 - Soluções baseadas Natureza"},{"$f":"IFERROR(INDEX(IdentAcoes[Prioridade do PDC],MATCH(B17,IdentAcoes[ID Ação],0)),\"\")","v":"Prioritário"},{"$f":"IFERROR(INDEX(IdentAcoes[Segmento do executor],MATCH($B17,IdentAcoes[ID Ação],0)),\"\")","v":"Sociedade Civil"},{"$f":"IFERROR(INDEX(IdentAcoes[Área de abrangência],MATCH($B17,IdentAcoes[ID Ação],0)),\"\")","v":"UGRHI"},{"$f":"IFERROR(INDEX(IdentAcoes[Detalhamento da área de abrangência],MATCH($B17,IdentAcoes[ID Ação],0)),\"\")","v":0}]
["RB222024FEHIDRO - Cobrança estadual","RB222024",{"$f":"INDEX(Financeiro[Descrição da ação],MATCH(B18,Financeiro[ID Ação], 0))","v":"Recuperar as APPs conforme diretrizes dos órgãos competentes"},{"$f":"IF(INDEX('Acompanhamento das metas 24-27'!$C$2:$C$50,MATCH(B18,'Acompanhamento das metas 24-27'!$A$2:$A$50,0))<>0,INDEX('Acompanhamento das metas 24-27'!$C$2:$C$50,MATCH(B18,'Acompanhamento das metas 24-27'!$A$2:$A$50,0)),\"\")","v":"Elaborar e executar 1 projeto de recuperação de APPs em 2024"},{"$f":"IF(VLOOKUP(A18,Financeiro[[id_ação_Fonte_oculta]:[R$  Executado (2027)]],4,FALSE)=0,\"\",VLOOKUP(A18,Financeiro[[id_ação_Fonte_oculta]:[R$  Executado (2027)]],4,FALSE))","v":"FEHIDRO - Cobrança estadual"},{"$f":"IF(VLOOKUP(A18,Financeiro[[id_ação_Fonte_oculta]:[R$  Executado (2027)]],4,FALSE)=0,\"\",VLOOKUP(A18,Financeiro[[id_ação_Fonte_oculta]:[R$  Executado (2027)]],5,FALSE))","v":300000},{"$f":"IF(VLOOKUP(A18,Financeiro[[id_ação_Fonte_oculta]:[R$  Executado (2027)]],4,FALSE)=0,\"\",VLOOKUP(A18,Financeiro[[id_ação_Fonte_oculta]:[R$  Executado (2027)]],8,FALSE))","v":0},{"$f":"IF(VLOOKUP(A18,Financeiro[[id_ação_Fonte_oculta]:[R$  Executado (2027)]],4,FALSE)=0,\"\",VLOOKUP(A18,Financeiro[[id_ação_Fonte_oculta]:[R$  Executado (2027)]],11,FALSE))","v":0},{"$f":"IF(VLOOKUP(A18,Financeiro[[id_ação_Fonte_oculta]:[R$  Executado (2027)]],4,FALSE)=0,\"\",VLOOKUP(A18,Financeiro[[id_ação_Fonte_oculta]:[R$  Executado (2027)]],14,FALSE))","v":0},300000,{"$f":"IFERROR(INDEX(IdentAcoes[SubPDC],MATCH(B18,IdentAcoes[ID Ação],0)),\"\")","v":"4.2 - Soluções baseadas Natureza"},{"$f":"IFERROR(INDEX(IdentAcoes[Prioridade do PDC],MATCH(B18,IdentAcoes[ID Ação],0)),\"\")","v":"Prioritário"},{"$f":"IFERROR(INDEX(IdentAcoes[Segmento do executor],MATCH($B18,IdentAcoes[ID Ação],0)),\"\")","v":"Sociedade Civil"},{"$f":"IFERROR(INDEX(IdentAcoes[Área de abrangência],MATCH($B18,IdentAcoes[ID Ação],0)),\"\")","v":"UGRHI"},{"$f":"IFERROR(INDEX(IdentAcoes[Detalhamento da área de abrangência],MATCH($B18,IdentAcoes[ID Ação],0)),\"\")","v":0}]
["RB232024FEHIDRO - Cobrança estadual","RB232024",{"$f":"INDEX(Financeiro[Descrição da ação],MATCH(B19,Financeiro[ID Ação], 0))","v":"Execução de serviços e obras para contenção de inundações ou alagamentos"},{"$f":"IF(INDEX('Acompanhamento das metas 24-27'!$C$2:$C$50,MATCH(B19,'Acompanhamento das metas 24-27'!$A$2:$A$50,0))<>0,INDEX('Acompanhamento das metas 24-27'!$C$2:$C$50,MATCH(B19,'Acompanhamento das metas 24-27'!$A$2:$A$50,0)),\"\")","v":"Executar 12 empreendimentos estruturais visando mitigar os impactos das inundações até 2027"},{"$f":"IF(VLOOKUP(A19,Financeiro[[id_ação_Fonte_oculta]:[R$  Executado (2027)]],4,FALSE)=0,\"\",VLOOKUP(A19,Financeiro[[id_ação_Fonte_oculta]:[R$  Executado (2027)]],4,FALSE))","v":"FEHIDRO - Cobrança estadual"},{"$f":"IF(VLOOKUP(A19,Financeiro[[id_ação_Fonte_oculta]:[R$  Executado (2027)]],4,FALSE)=0,\"\",VLOOKUP(A19,Financeiro[[id_ação_Fonte_oculta]:[R$  Executado (2027)]],5,FALSE))","v":1500000},{"$f":"IF(VLOOKUP(A19,Financeiro[[id_ação_Fonte_oculta]:[R$  Executado (2027)]],4,FALSE)=0,\"\",VLOOKUP(A19,Financeiro[[id_ação_Fonte_oculta]:[R$  Executado (2027)]],8,FALSE))","v":1650000},{"$f":"IF(VLOOKUP(A19,Financeiro[[id_ação_Fonte_oculta]:[R$  Executado (2027)]],4,FALSE)=0,\"\",VLOOKUP(A19,Financeiro[[id_ação_Fonte_oculta]:[R$  Executado (2027)]],11,FALSE))","v":1800000},{"$f":"IF(VLOOKUP(A19,Financeiro[[id_ação_Fonte_oculta]:[R$  Executado (2027)]],4,FALSE)=0,\"\",VLOOKUP(A19,Financeiro[[id_ação_Fonte_oculta]:[R$  Executado (2027)]],14,FALSE))","v":1950000},6900000,{"$f":"IFERROR(INDEX(IdentAcoes[SubPDC],MATCH(B19,IdentAcoes[ID Ação],0)),\"\")","v":"7.1 - Drenagem"},{"$f":"IFERROR(INDEX(IdentAcoes[Prioridade do PDC],MATCH(B19,IdentAcoes[ID Ação],0)),\"\")","v":"Prioritário"},{"$f":"IFERROR(INDEX(IdentAcoes[Segmento do executor],MATCH($B19,IdentAcoes[ID Ação],0)),\"\")","v":"Município"},{"$f":"IFERROR(INDEX(IdentAcoes[Área de abrangência],MATCH($B19,IdentAcoes[ID Ação],0)),\"\")","v":"UGRHI"},{"$f":"IFERROR(INDEX(IdentAcoes[Detalhamento da área de abrangência],MATCH($B19,IdentAcoes[ID Ação],0)),\"\")","v":0}]
["RB252024FEHIDRO - Cobrança estadual","RB252024",{"$f":"INDEX(Financeiro[Descrição da ação],MATCH(B20,Financeiro[ID Ação], 0))","v":"Realizar capacitação sobre gestão de águas para instituições com representação no CBH-RB, instituições parceiras, organizações da sociedade civil, comunidades rurais e jovens."},{"$f":"IF(INDEX('Acompanhamento das metas 24-27'!$C$2:$C$50,MATCH(B20,'Acompanhamento das metas 24-27'!$A$2:$A$50,0))<>0,INDEX('Acompanhamento das metas 24-27'!$C$2:$C$50,MATCH(B20,'Acompanhamento das metas 24-27'!$A$2:$A$50,0)),\"\")","v":"Realizar eventos bienais de formação para instituições com representação no CBH-RB, instituições parceiras, organizações da sociedade civil, comunidades rurais e jovens em 2024 e 2026"},{"$f":"IF(VLOOKUP(A20,Financeiro[[id_ação_Fonte_oculta]:[R$  Executado (2027)]],4,FALSE)=0,\"\",VLOOKUP(A20,Financeiro[[id_ação_Fonte_oculta]:[R$  Executado (2027)]],4,FALSE))","v":"FEHIDRO - Cobrança estadual"},{"$f":"IF(VLOOKUP(A20,Financeiro[[id_ação_Fonte_oculta]:[R$  Executado (2027)]],4,FALSE)=0,\"\",VLOOKUP(A20,Financeiro[[id_ação_Fonte_oculta]:[R$  Executado (2027)]],5,FALSE))","v":160000},{"$f":"IF(VLOOKUP(A20,Financeiro[[id_ação_Fonte_oculta]:[R$  Executado (2027)]],4,FALSE)=0,\"\",VLOOKUP(A20,Financeiro[[id_ação_Fonte_oculta]:[R$  Executado (2027)]],8,FALSE))","v":0},{"$f":"IF(VLOOKUP(A20,Financeiro[[id_ação_Fonte_oculta]:[R$  Executado (2027)]],4,FALSE)=0,\"\",VLOOKUP(A20,Financeiro[[id_ação_Fonte_oculta]:[R$  Executado (2027)]],11,FALSE))","v":180000},{"$f":"IF(VLOOKUP(A20,Financeiro[[id_ação_Fonte_oculta]:[R$  Executado (2027)]],4,FALSE)=0,\"\",VLOOKUP(A20,Financeiro[[id_ação_Fonte_oculta]:[R$  Executado (2027)]],14,FALSE))","v":0},340000,{"$f":"IFERROR(INDEX(IdentAcoes[SubPDC],MATCH(B20,IdentAcoes[ID Ação],0)),\"\")","v":"8.1 - Capacitação"},{"$f":"IFERROR(INDEX(IdentAcoes[Prioridade do PDC],MATCH(B20,IdentAcoes[ID Ação],0)),\"\")","v":"Prioritário"},{"$f":"IFERROR(INDEX(IdentAcoes[Segmento do executor],MATCH($B20,IdentAcoes[ID Ação],0)),\"\")","v":"Estado"},{"$f":"IFERROR(INDEX(IdentAcoes[Área de abrangência],MATCH($B20,IdentAcoes[ID Ação],0)),\"\")","v":"UGRHI"},{"$f":"IFERROR(INDEX(IdentAcoes[Detalhamento da área de abrangência],MATCH($B20,IdentAcoes[ID Ação],0)),\"\")","v":0}]
["RB262024FEHIDRO - CFURH","RB262024",{"$f":"INDEX(Financeiro[Descrição da ação],MATCH(B21,Financeiro[ID Ação], 0))","v":"Realizar ações de educação ambiental (sensibilização e mobilização social) nos temas diversos. Via projetos Fehidro"},{"$f":"IF(INDEX('Acompanhamento das metas 24-27'!$C$2:$C$50,MATCH(B21,'Acompanhamento das metas 24-27'!$A$2:$A$50,0))<>0,INDEX('Acompanhamento das metas 24-27'!$C$2:$C$50,MATCH(B21,'Acompanhamento das metas 24-27'!$A$2:$A$50,0)),\"\")","v":"Realizar 1 projeto por ano em 2024, 2025, 2026 e 2027, contemplando ações de educação ambiental"},{"$f":"IF(VLOOKUP(A21,Financeiro[[id_ação_Fonte_oculta]:[R$  Executado (2027)]],4,FALSE)=0,\"\",VLOOKUP(A21,Financeiro[[id_ação_Fonte_oculta]:[R$  Executado (2027)]],4,FALSE))","v":"FEHIDRO - CFURH"},{"$f":"IF(VLOOKUP(A21,Financeiro[[id_ação_Fonte_oculta]:[R$  Executado (2027)]],4,FALSE)=0,\"\",VLOOKUP(A21,Financeiro[[id_ação_Fonte_oculta]:[R$  Executado (2027)]],5,FALSE))","v":160000},{"$f":"IF(VLOOKUP(A21,Financeiro[[id_ação_Fonte_oculta]:[R$  Executado (2027)]],4,FALSE)=0,\"\",VLOOKUP(A21,Financeiro[[id_ação_Fonte_oculta]:[R$  Executado (2027)]],8,FALSE))","v":170000},{"$f":"IF(VLOOKUP(A21,Financeiro[[id_ação_Fonte_oculta]:[R$  Executado (2027)]],4,FALSE)=0,\"\",VLOOKUP(A21,Financeiro[[id_ação_Fonte_oculta]:[R$  Executado (2027)]],11,FALSE))","v":180000},{"$f":"IF(VLOOKUP(A21,Financeiro[[id_ação_Fonte_oculta]:[R$  Executado (2027)]],4,FALSE)=0,\"\",VLOOKUP(A21,Financeiro[[id_ação_Fonte_oculta]:[R$  Executado (2027)]],14,FALSE))","v":190000},700000,{"$f":"IFERROR(INDEX(IdentAcoes[SubPDC],MATCH(B21,IdentAcoes[ID Ação],0)),\"\")","v":"8.2 - Educação"},{"$f":"IFERROR(INDEX(IdentAcoes[Prioridade do PDC],MATCH(B21,IdentAcoes[ID Ação],0)),\"\")","v":"Não prioritário"},{"$f":"IFERROR(INDEX(IdentAcoes[Segmento do executor],MATCH($B21,IdentAcoes[ID Ação],0)),\"\")","v":"Sociedade Civil"},{"$f":"IFERROR(INDEX(IdentAcoes[Área de abrangência],MATCH($B21,IdentAcoes[ID Ação],0)),\"\")","v":"UGRHI"},{"$f":"IFERROR(INDEX(IdentAcoes[Detalhamento da área de abrangência],MATCH($B21,IdentAcoes[ID Ação],0)),\"\")","v":0}]
["RB302024FEHIDRO - Cobrança estadual","RB302024",{"$f":"INDEX(Financeiro[Descrição da ação],MATCH(B22,Financeiro[ID Ação], 0))","v":"Reproduzir material de apoio (kit água)  para e de apoio a eventos de educação ambiental"},{"$f":"IF(INDEX('Acompanhamento das metas 24-27'!$C$2:$C$50,MATCH(B22,'Acompanhamento das metas 24-27'!$A$2:$A$50,0))<>0,INDEX('Acompanhamento das metas 24-27'!$C$2:$C$50,MATCH(B22,'Acompanhamento das metas 24-27'!$A$2:$A$50,0)),\"\")","v":"Inserção da temática de água e meio ambiente na sociedade, por meio da contratação de 1 projeto em 2024."},{"$f":"IF(VLOOKUP(A22,Financeiro[[id_ação_Fonte_oculta]:[R$  Executado (2027)]],4,FALSE)=0,\"\",VLOOKUP(A22,Financeiro[[id_ação_Fonte_oculta]:[R$  Executado (2027)]],4,FALSE))","v":"FEHIDRO - Cobrança estadual"},{"$f":"IF(VLOOKUP(A22,Financeiro[[id_ação_Fonte_oculta]:[R$  Executado (2027)]],4,FALSE)=0,\"\",VLOOKUP(A22,Financeiro[[id_ação_Fonte_oculta]:[R$  Executado (2027)]],5,FALSE))","v":200000},{"$f":"IF(VLOOKUP(A22,Financeiro[[id_ação_Fonte_oculta]:[R$  Executado (2027)]],4,FALSE)=0,\"\",VLOOKUP(A22,Financeiro[[id_ação_Fonte_oculta]:[R$  Executado (2027)]],8,FALSE))","v":0},{"$f":"IF(VLOOKUP(A22,Financeiro[[id_ação_Fonte_oculta]:[R$  Executado (2027)]],4,FALSE)=0,\"\",VLOOKUP(A22,Financeiro[[id_ação_Fonte_oculta]:[R$  Executado (2027)]],11,FALSE))","v":220000},{"$f":"IF(VLOOKUP(A22,Financeiro[[id_ação_Fonte_oculta]:[R$  Executado (2027)]],4,FALSE)=0,\"\",VLOOKUP(A22,Financeiro[[id_ação_Fonte_oculta]:[R$  Executado (2027)]],14,FALSE))","v":0},420000,{"$f":"IFERROR(INDEX(IdentAcoes[SubPDC],MATCH(B22,IdentAcoes[ID Ação],0)),\"\")","v":"8.2 - Educação"},{"$f":"IFERROR(INDEX(IdentAcoes[Prioridade do PDC],MATCH(B22,IdentAcoes[ID Ação],0)),\"\")","v":"Prioritário"},{"$f":"IFERROR(INDEX(IdentAcoes[Segmento do executor],MATCH($B22,IdentAcoes[ID Ação],0)),\"\")","v":"Sociedade Civil"},{"$f":"IFERROR(INDEX(IdentAcoes[Área de abrangência],MATCH($B22,IdentAcoes[ID Ação],0)),\"\")","v":"UGRHI"},{"$f":"IFERROR(INDEX(IdentAcoes[Detalhamento da área de abrangência],MATCH($B22,IdentAcoes[ID Ação],0)),\"\")","v":0}]
["RB312024FEHIDRO - Cobrança estadual","RB312024",{"$f":"INDEX(Financeiro[Descrição da ação],MATCH(B23,Financeiro[ID Ação], 0))","v":"Adequar e equipar 1 centro de Educação Ambiental"},{"$f":"IF(INDEX('Acompanhamento das metas 24-27'!$C$2:$C$50,MATCH(B23,'Acompanhamento das metas 24-27'!$A$2:$A$50,0))<>0,INDEX('Acompanhamento das metas 24-27'!$C$2:$C$50,MATCH(B23,'Acompanhamento das metas 24-27'!$A$2:$A$50,0)),\"\")","v":"Incentivar e fomentar a criação de 1 centro de Educação Ambiental em 2024"},{"$f":"IF(VLOOKUP(A23,Financeiro[[id_ação_Fonte_oculta]:[R$  Executado (2027)]],4,FALSE)=0,\"\",VLOOKUP(A23,Financeiro[[id_ação_Fonte_oculta]:[R$  Executado (2027)]],4,FALSE))","v":"FEHIDRO - Cobrança estadual"},{"$f":"IF(VLOOKUP(A23,Financeiro[[id_ação_Fonte_oculta]:[R$  Executado (2027)]],4,FALSE)=0,\"\",VLOOKUP(A23,Financeiro[[id_ação_Fonte_oculta]:[R$  Executado (2027)]],5,FALSE))","v":345000},{"$f":"IF(VLOOKUP(A23,Financeiro[[id_ação_Fonte_oculta]:[R$  Executado (2027)]],4,FALSE)=0,\"\",VLOOKUP(A23,Financeiro[[id_ação_Fonte_oculta]:[R$  Executado (2027)]],8,FALSE))","v":0},{"$f":"IF(VLOOKUP(A23,Financeiro[[id_ação_Fonte_oculta]:[R$  Executado (2027)]],4,FALSE)=0,\"\",VLOOKUP(A23,Financeiro[[id_ação_Fonte_oculta]:[R$  Executado (2027)]],11,FALSE))","v":0},{"$f":"IF(VLOOKUP(A23,Financeiro[[id_ação_Fonte_oculta]:[R$  Executado (2027)]],4,FALSE)=0,\"\",VLOOKUP(A23,Financeiro[[id_ação_Fonte_oculta]:[R$  Executado (2027)]],14,FALSE))","v":0},345000,{"$f":"IFERROR(INDEX(IdentAcoes[SubPDC],MATCH(B23,IdentAcoes[ID Ação],0)),\"\")","v":"8.2 - Educação"},{"$f":"IFERROR(INDEX(IdentAcoes[Prioridade do PDC],MATCH(B23,IdentAcoes[ID Ação],0)),\"\")","v":"Prioritário"},{"$f":"IFERROR(INDEX(IdentAcoes[Segmento do executor],MATCH($B23,IdentAcoes[ID Ação],0)),\"\")","v":"Sociedade Civil"},{"$f":"IFERROR(INDEX(IdentAcoes[Área de abrangência],MATCH($B23,IdentAcoes[ID Ação],0)),\"\")","v":"UGRHI"},{"$f":"IFERROR(INDEX(IdentAcoes[Detalhamento da área de abrangência],MATCH($B23,IdentAcoes[ID Ação],0)),\"\")","v":0}]
["RB322024FEHIDRO - Cobrança estadual","RB322024",{"$f":"INDEX(Financeiro[Descrição da ação],MATCH(B24,Financeiro[ID Ação], 0))","v":"Execução de 2 projetos bienais de elaboração de releases, boletins informativos e operação das ferramentas de comunicação"},{"$f":"IF(INDEX('Acompanhamento das metas 24-27'!$C$2:$C$50,MATCH(B24,'Acompanhamento das metas 24-27'!$A$2:$A$50,0))<>0,INDEX('Acompanhamento das metas 24-27'!$C$2:$C$50,MATCH(B24,'Acompanhamento das metas 24-27'!$A$2:$A$50,0)),\"\")","v":"Ampliar comunicação  do CBH internamente e com público em geral (plano de comunicação elaborado) em 2024 e 2026"},{"$f":"IF(VLOOKUP(A24,Financeiro[[id_ação_Fonte_oculta]:[R$  Executado (2027)]],4,FALSE)=0,\"\",VLOOKUP(A24,Financeiro[[id_ação_Fonte_oculta]:[R$  Executado (2027)]],4,FALSE))","v":"FEHIDRO - Cobrança estadual"},{"$f":"IF(VLOOKUP(A24,Financeiro[[id_ação_Fonte_oculta]:[R$  Executado (2027)]],4,FALSE)=0,\"\",VLOOKUP(A24,Financeiro[[id_ação_Fonte_oculta]:[R$  Executado (2027)]],5,FALSE))","v":340000},{"$f":"IF(VLOOKUP(A24,Financeiro[[id_ação_Fonte_oculta]:[R$  Executado (2027)]],4,FALSE)=0,\"\",VLOOKUP(A24,Financeiro[[id_ação_Fonte_oculta]:[R$  Executado (2027)]],8,FALSE))","v":0},{"$f":"IF(VLOOKUP(A24,Financeiro[[id_ação_Fonte_oculta]:[R$  Executado (2027)]],4,FALSE)=0,\"\",VLOOKUP(A24,Financeiro[[id_ação_Fonte_oculta]:[R$  Executado (2027)]],11,FALSE))","v":400000},{"$f":"IF(VLOOKUP(A24,Financeiro[[id_ação_Fonte_oculta]:[R$  Executado (2027)]],4,FALSE)=0,\"\",VLOOKUP(A24,Financeiro[[id_ação_Fonte_oculta]:[R$  Executado (2027)]],14,FALSE))","v":0},740000,{"$f":"IFERROR(INDEX(IdentAcoes[SubPDC],MATCH(B24,IdentAcoes[ID Ação],0)),\"\")","v":"8.3 - Comunicação"},{"$f":"IFERROR(INDEX(IdentAcoes[Prioridade do PDC],MATCH(B24,IdentAcoes[ID Ação],0)),\"\")","v":"Prioritário"},{"$f":"IFERROR(INDEX(IdentAcoes[Segmento do executor],MATCH($B24,IdentAcoes[ID Ação],0)),\"\")","v":"Sociedade Civil"},{"$f":"IFERROR(INDEX(IdentAcoes[Área de abrangência],MATCH($B24,IdentAcoes[ID Ação],0)),\"\")","v":"UGRHI"},{"$f":"IFERROR(INDEX(IdentAcoes[Detalhamento da área de abrangência],MATCH($B24,IdentAcoes[ID Ação],0)),\"\")","v":0}]
["RB332025FEHIDRO - Cobrança estadual","RB332025",{"$f":"INDEX(Financeiro[Descrição da ação],MATCH(B25,Financeiro[ID Ação], 0))","v":"Realização de manutenção operacional nos postos de monitoramento fluviométrico e pluviométrico existentes e atualização do sistema de informação"},{"$f":"IF(INDEX('Acompanhamento das metas 24-27'!$C$2:$C$50,MATCH(B25,'Acompanhamento das metas 24-27'!$A$2:$A$50,0))<>0,INDEX('Acompanhamento das metas 24-27'!$C$2:$C$50,MATCH(B25,'Acompanhamento das metas 24-27'!$A$2:$A$50,0)),\"\")","v":"Serviços de operação e manutenção sistemáticos nos postos hidrométricos"},{"$f":"IF(VLOOKUP(A25,Financeiro[[id_ação_Fonte_oculta]:[R$  Executado (2027)]],4,FALSE)=0,\"\",VLOOKUP(A25,Financeiro[[id_ação_Fonte_oculta]:[R$  Executado (2027)]],4,FALSE))","v":"FEHIDRO - Cobrança estadual"},{"$f":"IF(VLOOKUP(A25,Financeiro[[id_ação_Fonte_oculta]:[R$  Executado (2027)]],4,FALSE)=0,\"\",VLOOKUP(A25,Financeiro[[id_ação_Fonte_oculta]:[R$  Executado (2027)]],5,FALSE))","v":0},{"$f":"IF(VLOOKUP(A25,Financeiro[[id_ação_Fonte_oculta]:[R$  Executado (2027)]],4,FALSE)=0,\"\",VLOOKUP(A25,Financeiro[[id_ação_Fonte_oculta]:[R$  Executado (2027)]],8,FALSE))","v":250000},{"$f":"IF(VLOOKUP(A25,Financeiro[[id_ação_Fonte_oculta]:[R$  Executado (2027)]],4,FALSE)=0,\"\",VLOOKUP(A25,Financeiro[[id_ação_Fonte_oculta]:[R$  Executado (2027)]],11,FALSE))","v":300000},{"$f":"IF(VLOOKUP(A25,Financeiro[[id_ação_Fonte_oculta]:[R$  Executado (2027)]],4,FALSE)=0,\"\",VLOOKUP(A25,Financeiro[[id_ação_Fonte_oculta]:[R$  Executado (2027)]],14,FALSE))","v":350000},900000,{"$f":"IFERROR(INDEX(IdentAcoes[SubPDC],MATCH(B25,IdentAcoes[ID Ação],0)),\"\")","v":"2.5 - Redes de monitoramento e SI"},{"$f":"IFERROR(INDEX(IdentAcoes[Prioridade do PDC],MATCH(B25,IdentAcoes[ID Ação],0)),\"\")","v":"PDC 1 e 2"},{"$f":"IFERROR(INDEX(IdentAcoes[Segmento do executor],MATCH($B25,IdentAcoes[ID Ação],0)),\"\")","v":"Estado"},{"$f":"IFERROR(INDEX(IdentAcoes[Área de abrangência],MATCH($B25,IdentAcoes[ID Ação],0)),\"\")","v":"UGRHI"},{"$f":"IFERROR(INDEX(IdentAcoes[Detalhamento da área de abrangência],MATCH($B25,IdentAcoes[ID Ação],0)),\"\")","v":0}]
["RB342025FEHIDRO - CFURH","RB342025",{"$f":"INDEX(Financeiro[Descrição da ação],MATCH(B26,Financeiro[ID Ação], 0))","v":"Fomentar a produção agroecológica e orgânica (01 projeto)"},{"$f":"IF(INDEX('Acompanhamento das metas 24-27'!$C$2:$C$50,MATCH(B26,'Acompanhamento das metas 24-27'!$A$2:$A$50,0))<>0,INDEX('Acompanhamento das metas 24-27'!$C$2:$C$50,MATCH(B26,'Acompanhamento das metas 24-27'!$A$2:$A$50,0)),\"\")","v":"Implantar 1 projeto piloto de produção de SAF ou sistema orgânico, com objetivo de formar unidade(s) demonstrativa(s) para fortalecimento e experimentação da técnica na bacia em 2025"},{"$f":"IF(VLOOKUP(A26,Financeiro[[id_ação_Fonte_oculta]:[R$  Executado (2027)]],4,FALSE)=0,\"\",VLOOKUP(A26,Financeiro[[id_ação_Fonte_oculta]:[R$  Executado (2027)]],4,FALSE))","v":"FEHIDRO - CFURH"},{"$f":"IF(VLOOKUP(A26,Financeiro[[id_ação_Fonte_oculta]:[R$  Executado (2027)]],4,FALSE)=0,\"\",VLOOKUP(A26,Financeiro[[id_ação_Fonte_oculta]:[R$  Executado (2027)]],5,FALSE))","v":0},{"$f":"IF(VLOOKUP(A26,Financeiro[[id_ação_Fonte_oculta]:[R$  Executado (2027)]],4,FALSE)=0,\"\",VLOOKUP(A26,Financeiro[[id_ação_Fonte_oculta]:[R$  Executado (2027)]],8,FALSE))","v":160000},{"$f":"IF(VLOOKUP(A26,Financeiro[[id_ação_Fonte_oculta]:[R$  Executado (2027)]],4,FALSE)=0,\"\",VLOOKUP(A26,Financeiro[[id_ação_Fonte_oculta]:[R$  Executado (2027)]],11,FALSE))","v":0},{"$f":"IF(VLOOKUP(A26,Financeiro[[id_ação_Fonte_oculta]:[R$  Executado (2027)]],4,FALSE)=0,\"\",VLOOKUP(A26,Financeiro[[id_ação_Fonte_oculta]:[R$  Executado (2027)]],14,FALSE))","v":0},160000,{"$f":"IFERROR(INDEX(IdentAcoes[SubPDC],MATCH(B26,IdentAcoes[ID Ação],0)),\"\")","v":"4.2 - Soluções baseadas Natureza"},{"$f":"IFERROR(INDEX(IdentAcoes[Prioridade do PDC],MATCH(B26,IdentAcoes[ID Ação],0)),\"\")","v":"Prioritário"},{"$f":"IFERROR(INDEX(IdentAcoes[Segmento do executor],MATCH($B26,IdentAcoes[ID Ação],0)),\"\")","v":"Sociedade Civil"},{"$f":"IFERROR(INDEX(IdentAcoes[Área de abrangência],MATCH($B26,IdentAcoes[ID Ação],0)),\"\")","v":"UGRHI"},{"$f":"IFERROR(INDEX(IdentAcoes[Detalhamento da área de abrangência],MATCH($B26,IdentAcoes[ID Ação],0)),\"\")","v":0}]
["RB352025FEHIDRO - Cobrança estadual","RB352025",{"$f":"INDEX(Financeiro[Descrição da ação],MATCH(B27,Financeiro[ID Ação], 0))","v":"Capacitar os membros do CBH e CTs sobre conceitos, práticas e experiências em PSA"},{"$f":"IF(INDEX('Acompanhamento das metas 24-27'!$C$2:$C$50,MATCH(B27,'Acompanhamento das metas 24-27'!$A$2:$A$50,0))<>0,INDEX('Acompanhamento das metas 24-27'!$C$2:$C$50,MATCH(B27,'Acompanhamento das metas 24-27'!$A$2:$A$50,0)),\"\")","v":"Realizar capacitação sobre PSA para os membros do CBH e CTs em 2025"},{"$f":"IF(VLOOKUP(A27,Financeiro[[id_ação_Fonte_oculta]:[R$  Executado (2027)]],4,FALSE)=0,\"\",VLOOKUP(A27,Financeiro[[id_ação_Fonte_oculta]:[R$  Executado (2027)]],4,FALSE))","v":"FEHIDRO - Cobrança estadual"},{"$f":"IF(VLOOKUP(A27,Financeiro[[id_ação_Fonte_oculta]:[R$  Executado (2027)]],4,FALSE)=0,\"\",VLOOKUP(A27,Financeiro[[id_ação_Fonte_oculta]:[R$  Executado (2027)]],5,FALSE))","v":0},{"$f":"IF(VLOOKUP(A27,Financeiro[[id_ação_Fonte_oculta]:[R$  Executado (2027)]],4,FALSE)=0,\"\",VLOOKUP(A27,Financeiro[[id_ação_Fonte_oculta]:[R$  Executado (2027)]],8,FALSE))","v":160000},{"$f":"IF(VLOOKUP(A27,Financeiro[[id_ação_Fonte_oculta]:[R$  Executado (2027)]],4,FALSE)=0,\"\",VLOOKUP(A27,Financeiro[[id_ação_Fonte_oculta]:[R$  Executado (2027)]],11,FALSE))","v":0},{"$f":"IF(VLOOKUP(A27,Financeiro[[id_ação_Fonte_oculta]:[R$  Executado (2027)]],4,FALSE)=0,\"\",VLOOKUP(A27,Financeiro[[id_ação_Fonte_oculta]:[R$  Executado (2027)]],14,FALSE))","v":0},160000,{"$f":"IFERROR(INDEX(IdentAcoes[SubPDC],MATCH(B27,IdentAcoes[ID Ação],0)),\"\")","v":"8.1 - Capacitação"},{"$f":"IFERROR(INDEX(IdentAcoes[Prioridade do PDC],MATCH(B27,IdentAcoes[ID Ação],0)),\"\")","v":"Prioritário"},{"$f":"IFERROR(INDEX(IdentAcoes[Segmento do executor],MATCH($B27,IdentAcoes[ID Ação],0)),\"\")","v":"Sociedade Civil"},{"$f":"IFERROR(INDEX(IdentAcoes[Área de abrangência],MATCH($B27,IdentAcoes[ID Ação],0)),\"\")","v":"UGRHI"},{"$f":"IFERROR(INDEX(IdentAcoes[Detalhamento da área de abrangência],MATCH($B27,IdentAcoes[ID Ação],0)),\"\")","v":0}]
["RB362025FEHIDRO - Cobrança estadual","RB362025",{"$f":"INDEX(Financeiro[Descrição da ação],MATCH(B28,Financeiro[ID Ação], 0))","v":"Produzir série didática de vídeos com materiais educativos e informativos sobre educação ambiental e recursos hídricos, com identidade local,  para população leiga, em linguagem acessível e lúdica ( 1 temática a cada 2 anos)"},{"$f":"IF(INDEX('Acompanhamento das metas 24-27'!$C$2:$C$50,MATCH(B28,'Acompanhamento das metas 24-27'!$A$2:$A$50,0))<>0,INDEX('Acompanhamento das metas 24-27'!$C$2:$C$50,MATCH(B28,'Acompanhamento das metas 24-27'!$A$2:$A$50,0)),\"\")","v":"Produzir materiais educativos e informativos sobre 1 temática a cada 2 anos, em 2025 e 2027"},{"$f":"IF(VLOOKUP(A28,Financeiro[[id_ação_Fonte_oculta]:[R$  Executado (2027)]],4,FALSE)=0,\"\",VLOOKUP(A28,Financeiro[[id_ação_Fonte_oculta]:[R$  Executado (2027)]],4,FALSE))","v":"FEHIDRO - Cobrança estadual"},{"$f":"IF(VLOOKUP(A28,Financeiro[[id_ação_Fonte_oculta]:[R$  Executado (2027)]],4,FALSE)=0,\"\",VLOOKUP(A28,Financeiro[[id_ação_Fonte_oculta]:[R$  Executado (2027)]],5,FALSE))","v":0},{"$f":"IF(VLOOKUP(A28,Financeiro[[id_ação_Fonte_oculta]:[R$  Executado (2027)]],4,FALSE)=0,\"\",VLOOKUP(A28,Financeiro[[id_ação_Fonte_oculta]:[R$  Executado (2027)]],8,FALSE))","v":250000},{"$f":"IF(VLOOKUP(A28,Financeiro[[id_ação_Fonte_oculta]:[R$  Executado (2027)]],4,FALSE)=0,\"\",VLOOKUP(A28,Financeiro[[id_ação_Fonte_oculta]:[R$  Executado (2027)]],11,FALSE))","v":0},{"$f":"IF(VLOOKUP(A28,Financeiro[[id_ação_Fonte_oculta]:[R$  Executado (2027)]],4,FALSE)=0,\"\",VLOOKUP(A28,Financeiro[[id_ação_Fonte_oculta]:[R$  Executado (2027)]],14,FALSE))","v":300000},550000,{"$f":"IFERROR(INDEX(IdentAcoes[SubPDC],MATCH(B28,IdentAcoes[ID Ação],0)),\"\")","v":"8.2 - Educação"},{"$f":"IFERROR(INDEX(IdentAcoes[Prioridade do PDC],MATCH(B28,IdentAcoes[ID Ação],0)),\"\")","v":"Prioritário"},{"$f":"IFERROR(INDEX(IdentAcoes[Segmento do executor],MATCH($B28,IdentAcoes[ID Ação],0)),\"\")","v":"Sociedade Civil"},{"$f":"IFERROR(INDEX(IdentAcoes[Área de abrangência],MATCH($B28,IdentAcoes[ID Ação],0)),\"\")","v":"UGRHI"},{"$f":"IFERROR(INDEX(IdentAcoes[Detalhamento da área de abrangência],MATCH($B28,IdentAcoes[ID Ação],0)),\"\")","v":0}]
["RB372025FEHIDRO - Cobrança estadual","RB372025",{"$f":"INDEX(Financeiro[Descrição da ação],MATCH(B29,Financeiro[ID Ação], 0))","v":"Oficinas de capacitação em recursos hídricos para educadores com sinergia ao currículo paulista"},{"$f":"IF(INDEX('Acompanhamento das metas 24-27'!$C$2:$C$50,MATCH(B29,'Acompanhamento das metas 24-27'!$A$2:$A$50,0))<>0,INDEX('Acompanhamento das metas 24-27'!$C$2:$C$50,MATCH(B29,'Acompanhamento das metas 24-27'!$A$2:$A$50,0)),\"\")","v":"Realizar 1 projeto em 2025 e 1 projeto em 2026"},{"$f":"IF(VLOOKUP(A29,Financeiro[[id_ação_Fonte_oculta]:[R$  Executado (2027)]],4,FALSE)=0,\"\",VLOOKUP(A29,Financeiro[[id_ação_Fonte_oculta]:[R$  Executado (2027)]],4,FALSE))","v":"FEHIDRO - Cobrança estadual"},{"$f":"IF(VLOOKUP(A29,Financeiro[[id_ação_Fonte_oculta]:[R$  Executado (2027)]],4,FALSE)=0,\"\",VLOOKUP(A29,Financeiro[[id_ação_Fonte_oculta]:[R$  Executado (2027)]],5,FALSE))","v":0},{"$f":"IF(VLOOKUP(A29,Financeiro[[id_ação_Fonte_oculta]:[R$  Executado (2027)]],4,FALSE)=0,\"\",VLOOKUP(A29,Financeiro[[id_ação_Fonte_oculta]:[R$  Executado (2027)]],8,FALSE))","v":220000},{"$f":"IF(VLOOKUP(A29,Financeiro[[id_ação_Fonte_oculta]:[R$  Executado (2027)]],4,FALSE)=0,\"\",VLOOKUP(A29,Financeiro[[id_ação_Fonte_oculta]:[R$  Executado (2027)]],11,FALSE))","v":220000},{"$f":"IF(VLOOKUP(A29,Financeiro[[id_ação_Fonte_oculta]:[R$  Executado (2027)]],4,FALSE)=0,\"\",VLOOKUP(A29,Financeiro[[id_ação_Fonte_oculta]:[R$  Executado (2027)]],14,FALSE))","v":0},440000,{"$f":"IFERROR(INDEX(IdentAcoes[SubPDC],MATCH(B29,IdentAcoes[ID Ação],0)),\"\")","v":"8.2 - Educação"},{"$f":"IFERROR(INDEX(IdentAcoes[Prioridade do PDC],MATCH(B29,IdentAcoes[ID Ação],0)),\"\")","v":"Prioritário"},{"$f":"IFERROR(INDEX(IdentAcoes[Segmento do executor],MATCH($B29,IdentAcoes[ID Ação],0)),\"\")","v":"Sociedade Civil"},{"$f":"IFERROR(INDEX(IdentAcoes[Área de abrangência],MATCH($B29,IdentAcoes[ID Ação],0)),\"\")","v":"UGRHI"},{"$f":"IFERROR(INDEX(IdentAcoes[Detalhamento da área de abrangência],MATCH($B29,IdentAcoes[ID Ação],0)),\"\")","v":0}]
["RB382026Tesouro do Estado","RB382026",{"$f":"INDEX(Financeiro[Descrição da ação],MATCH(B30,Financeiro[ID Ação], 0))","v":"Instalação de uma sala com equipamentos de informática e multimídia, para o funcionamento da CT-APRM-AJSL"},{"$f":"IF(INDEX('Acompanhamento das metas 24-27'!$C$2:$C$50,MATCH(B30,'Acompanhamento das metas 24-27'!$A$2:$A$50,0))<>0,INDEX('Acompanhamento das metas 24-27'!$C$2:$C$50,MATCH(B30,'Acompanhamento das metas 24-27'!$A$2:$A$50,0)),\"\")","v":"Consolidar a infrastrutura de apoio para CT-APRM-AJ/SL em 2026"},{"$f":"IF(VLOOKUP(A30,Financeiro[[id_ação_Fonte_oculta]:[R$  Executado (2027)]],4,FALSE)=0,\"\",VLOOKUP(A30,Financeiro[[id_ação_Fonte_oculta]:[R$  Executado (2027)]],4,FALSE))","v":"Tesouro do Estado"},{"$f":"IF(VLOOKUP(A30,Financeiro[[id_ação_Fonte_oculta]:[R$  Executado (2027)]],4,FALSE)=0,\"\",VLOOKUP(A30,Financeiro[[id_ação_Fonte_oculta]:[R$  Executado (2027)]],5,FALSE))","v":0},{"$f":"IF(VLOOKUP(A30,Financeiro[[id_ação_Fonte_oculta]:[R$  Executado (2027)]],4,FALSE)=0,\"\",VLOOKUP(A30,Financeiro[[id_ação_Fonte_oculta]:[R$  Executado (2027)]],8,FALSE))","v":0},{"$f":"IF(VLOOKUP(A30,Financeiro[[id_ação_Fonte_oculta]:[R$  Executado (2027)]],4,FALSE)=0,\"\",VLOOKUP(A30,Financeiro[[id_ação_Fonte_oculta]:[R$  Executado (2027)]],11,FALSE))","v":350000},{"$f":"IF(VLOOKUP(A30,Financeiro[[id_ação_Fonte_oculta]:[R$  Executado (2027)]],4,FALSE)=0,\"\",VLOOKUP(A30,Financeiro[[id_ação_Fonte_oculta]:[R$  Executado (2027)]],14,FALSE))","v":0},350000,{"$f":"IFERROR(INDEX(IdentAcoes[SubPDC],MATCH(B30,IdentAcoes[ID Ação],0)),\"\")","v":"2.7 - CORHI"},{"$f":"IFERROR(INDEX(IdentAcoes[Prioridade do PDC],MATCH(B30,IdentAcoes[ID Ação],0)),\"\")","v":"PDC 1 e 2"},{"$f":"IFERROR(INDEX(IdentAcoes[Segmento do executor],MATCH($B30,IdentAcoes[ID Ação],0)),\"\")","v":"Município"},{"$f":"IFERROR(INDEX(IdentAcoes[Área de abrangência],MATCH($B30,IdentAcoes[ID Ação],0)),\"\")","v":"Sub-bacia"},{"$f":"IFERROR(INDEX(IdentAcoes[Detalhamento da área de abrangência],MATCH($B30,IdentAcoes[ID Ação],0)),\"\")","v":"Alto Juquiá e São Lourenço"}]
["RB392026FEHIDRO - Cobrança estadual","RB392026",{"$f":"INDEX(Financeiro[Descrição da ação],MATCH(B31,Financeiro[ID Ação], 0))","v":"Divulgação na mídia regional  e palestras de conscientização/orientação aos produtores rurais sobre o uso adequado de agrotóxicos  e o manejo e recolhimento das embalagens de agrotóxico"},{"$f":"IF(INDEX('Acompanhamento das metas 24-27'!$C$2:$C$50,MATCH(B31,'Acompanhamento das metas 24-27'!$A$2:$A$50,0))<>0,INDEX('Acompanhamento das metas 24-27'!$C$2:$C$50,MATCH(B31,'Acompanhamento das metas 24-27'!$A$2:$A$50,0)),\"\")","v":"Desenvolver 1 projeto de comunicação visando redução e utilização adequada dos agrotóxicos, em 2026"},{"$f":"IF(VLOOKUP(A31,Financeiro[[id_ação_Fonte_oculta]:[R$  Executado (2027)]],4,FALSE)=0,\"\",VLOOKUP(A31,Financeiro[[id_ação_Fonte_oculta]:[R$  Executado (2027)]],4,FALSE))","v":"FEHIDRO - Cobrança estadual"},{"$f":"IF(VLOOKUP(A31,Financeiro[[id_ação_Fonte_oculta]:[R$  Executado (2027)]],4,FALSE)=0,\"\",VLOOKUP(A31,Financeiro[[id_ação_Fonte_oculta]:[R$  Executado (2027)]],5,FALSE))","v":0},{"$f":"IF(VLOOKUP(A31,Financeiro[[id_ação_Fonte_oculta]:[R$  Executado (2027)]],4,FALSE)=0,\"\",VLOOKUP(A31,Financeiro[[id_ação_Fonte_oculta]:[R$  Executado (2027)]],8,FALSE))","v":0},{"$f":"IF(VLOOKUP(A31,Financeiro[[id_ação_Fonte_oculta]:[R$  Executado (2027)]],4,FALSE)=0,\"\",VLOOKUP(A31,Financeiro[[id_ação_Fonte_oculta]:[R$  Executado (2027)]],11,FALSE))","v":160000},{"$f":"IF(VLOOKUP(A31,Financeiro[[id_ação_Fonte_oculta]:[R$  Executado (2027)]],4,FALSE)=0,\"\",VLOOKUP(A31,Financeiro[[id_ação_Fonte_oculta]:[R$  Executado (2027)]],14,FALSE))","v":0},160000,{"$f":"IFERROR(INDEX(IdentAcoes[SubPDC],MATCH(B31,IdentAcoes[ID Ação],0)),\"\")","v":"8.2 - Educação"},{"$f":"IFERROR(INDEX(IdentAcoes[Prioridade do PDC],MATCH(B31,IdentAcoes[ID Ação],0)),\"\")","v":"Não prioritário"},{"$f":"IFERROR(INDEX(IdentAcoes[Segmento do executor],MATCH($B31,IdentAcoes[ID Ação],0)),\"\")","v":"Sociedade Civil"},{"$f":"IFERROR(INDEX(IdentAcoes[Área de abrangência],MATCH($B31,IdentAcoes[ID Ação],0)),\"\")","v":"UGRHI"},{"$f":"IFERROR(INDEX(IdentAcoes[Detalhamento da área de abrangência],MATCH($B31,IdentAcoes[ID Ação],0)),\"\")","v":0}]
["RB402027FEHIDRO - Cobrança estadual","RB402027",{"$f":"INDEX(Financeiro[Descrição da ação],MATCH(B32,Financeiro[ID Ação], 0))","v":"Realizar o diagnóstico da situação atual dos corpos de água da UGRHI 11"},{"$f":"IF(INDEX('Acompanhamento das metas 24-27'!$C$2:$C$50,MATCH(B32,'Acompanhamento das metas 24-27'!$A$2:$A$50,0))<>0,INDEX('Acompanhamento das metas 24-27'!$C$2:$C$50,MATCH(B32,'Acompanhamento das metas 24-27'!$A$2:$A$50,0)),\"\")","v":"Realizar 1 levantamento em 1 sub-bacias da UGRHI 11 em 2027"},{"$f":"IF(VLOOKUP(A32,Financeiro[[id_ação_Fonte_oculta]:[R$  Executado (2027)]],4,FALSE)=0,\"\",VLOOKUP(A32,Financeiro[[id_ação_Fonte_oculta]:[R$  Executado (2027)]],4,FALSE))","v":"FEHIDRO - Cobrança estadual"},{"$f":"IF(VLOOKUP(A32,Financeiro[[id_ação_Fonte_oculta]:[R$  Executado (2027)]],4,FALSE)=0,\"\",VLOOKUP(A32,Financeiro[[id_ação_Fonte_oculta]:[R$  Executado (2027)]],5,FALSE))","v":0},{"$f":"IF(VLOOKUP(A32,Financeiro[[id_ação_Fonte_oculta]:[R$  Executado (2027)]],4,FALSE)=0,\"\",VLOOKUP(A32,Financeiro[[id_ação_Fonte_oculta]:[R$  Executado (2027)]],8,FALSE))","v":0},{"$f":"IF(VLOOKUP(A32,Financeiro[[id_ação_Fonte_oculta]:[R$  Executado (2027)]],4,FALSE)=0,\"\",VLOOKUP(A32,Financeiro[[id_ação_Fonte_oculta]:[R$  Executado (2027)]],11,FALSE))","v":0},{"$f":"IF(VLOOKUP(A32,Financeiro[[id_ação_Fonte_oculta]:[R$  Executado (2027)]],4,FALSE)=0,\"\",VLOOKUP(A32,Financeiro[[id_ação_Fonte_oculta]:[R$  Executado (2027)]],14,FALSE))","v":350000},350000,{"$f":"IFERROR(INDEX(IdentAcoes[SubPDC],MATCH(B32,IdentAcoes[ID Ação],0)),\"\")","v":"2.4 - Enquadramento"},{"$f":"IFERROR(INDEX(IdentAcoes[Prioridade do PDC],MATCH(B32,IdentAcoes[ID Ação],0)),\"\")","v":"PDC 1 e 2"},{"$f":"IFERROR(INDEX(IdentAcoes[Segmento do executor],MATCH($B32,IdentAcoes[ID Ação],0)),\"\")","v":"Estado"},{"$f":"IFERROR(INDEX(IdentAcoes[Área de abrangência],MATCH($B32,IdentAcoes[ID Ação],0)),\"\")","v":"SUB-BACIA"},{"$f":"IFERROR(INDEX(IdentAcoes[Detalhamento da área de abrangência],MATCH($B32,IdentAcoes[ID Ação],0)),\"\")","v":"Rio Jacupiranga"}]
["","",{"$f":"INDEX(Financeiro[Descrição da ação],MATCH(B33,Financeiro[ID Ação], 0))","v":""},{"$f":"IF(INDEX('Acompanhamento das metas 24-27'!$C$2:$C$50,MATCH(B33,'Acompanhamento das metas 24-27'!$A$2:$A$50,0))<>0,INDEX('Acompanhamento das metas 24-27'!$C$2:$C$50,MATCH(B33,'Acompanhamento das metas 24-27'!$A$2:$A$50,0)),\"\")","v":""},{"$f":"IF(VLOOKUP(A33,Financeiro[[id_ação_Fonte_oculta]:[R$  Executado (2027)]],4,FALSE)=0,\"\",VLOOKUP(A33,Financeiro[[id_ação_Fonte_oculta]:[R$  Executado (2027)]],4,FALSE))","v":""},{"$f":"IF(VLOOKUP(A33,Financeiro[[id_ação_Fonte_oculta]:[R$  Executado (2027)]],4,FALSE)=0,\"\",VLOOKUP(A33,Financeiro[[id_ação_Fonte_oculta]:[R$  Executado (2027)]],5,FALSE))","v":""},{"$f":"IF(VLOOKUP(A33,Financeiro[[id_ação_Fonte_oculta]:[R$  Executado (2027)]],4,FALSE)=0,\"\",VLOOKUP(A33,Financeiro[[id_ação_Fonte_oculta]:[R$  Executado (2027)]],8,FALSE))","v":""},{"$f":"IF(VLOOKUP(A33,Financeiro[[id_ação_Fonte_oculta]:[R$  Executado (2027)]],4,FALSE)=0,\"\",VLOOKUP(A33,Financeiro[[id_ação_Fonte_oculta]:[R$  Executado (2027)]],11,FALSE))","v":""},{"$f":"IF(VLOOKUP(A33,Financeiro[[id_ação_Fonte_oculta]:[R$  Executado (2027)]],4,FALSE)=0,\"\",VLOOKUP(A33,Financeiro[[id_ação_Fonte_oculta]:[R$  Executado (2027)]],14,FALSE))","v":""},0,{"$f":"IFERROR(INDEX(IdentAcoes[SubPDC],MATCH(B33,IdentAcoes[ID Ação],0)),\"\")","v":""},{"$f":"IFERROR(INDEX(IdentAcoes[Prioridade do PDC],MATCH(B33,IdentAcoes[ID Ação],0)),\"\")","v":""},{"$f":"IFERROR(INDEX(IdentAcoes[Segmento do executor],MATCH($B33,IdentAcoes[ID Ação],0)),\"\")","v":""},{"$f":"IFERROR(INDEX(IdentAcoes[Área de abrangência],MATCH($B33,IdentAcoes[ID Ação],0)),\"\")","v":""},{"$f":"IFERROR(INDEX(IdentAcoes[Detalhamento da área de abrangência],MATCH($B33,IdentAcoes[ID Ação],0)),\"\")","v":""}]
["","",{"$f":"INDEX(Financeiro[Descrição da ação],MATCH(B34,Financeiro[ID Ação], 0))","v":""},{"$f":"IF(INDEX('Acompanhamento das metas 24-27'!$C$2:$C$50,MATCH(B34,'Acompanhamento das metas 24-27'!$A$2:$A$50,0))<>0,INDEX('Acompanhamento das metas 24-27'!$C$2:$C$50,MATCH(B34,'Acompanhamento das metas 24-27'!$A$2:$A$50,0)),\"\")","v":""},{"$f":"IF(VLOOKUP(A34,Financeiro[[id_ação_Fonte_oculta]:[R$  Executado (2027)]],4,FALSE)=0,\"\",VLOOKUP(A34,Financeiro[[id_ação_Fonte_oculta]:[R$  Executado (2027)]],4,FALSE))","v":""},null,null,null,null,null,{"$f":"IFERROR(INDEX(IdentAcoes[SubPDC],MATCH(B34,IdentAcoes[ID Ação],0)),\"\")","v":""},{"$f":"IFERROR(INDEX(IdentAcoes[Prioridade do PDC],MATCH(B34,IdentAcoes[ID Ação],0)),\"\")","v":""},{"$f":"IFERROR(INDEX(IdentAcoes[Segmento do executor],MATCH($B34,IdentAcoes[ID Ação],0)),\"\")","v":""},{"$f":"IFERROR(INDEX(IdentAcoes[Área de abrangência],MATCH($B34,IdentAcoes[ID Ação],0)),\"\")","v":""},{"$f":"IFERROR(INDEX(IdentAcoes[Detalhamento da área de abrangência],MATCH($B34,IdentAcoes[ID Ação],0)),\"\")","v":""}]
["","",{"$f":"INDEX(Financeiro[Descrição da ação],MATCH(B35,Financeiro[ID Ação], 0))","v":""},{"$f":"IF(INDEX('Acompanhamento das metas 24-27'!$C$2:$C$50,MATCH(B35,'Acompanhamento das metas 24-27'!$A$2:$A$50,0))<>0,INDEX('Acompanhamento das metas 24-27'!$C$2:$C$50,MATCH(B35,'Acompanhamento das metas 24-27'!$A$2:$A$50,0)),\"\")","v":""},{"$f":"IF(VLOOKUP(A35,Financeiro[[id_ação_Fonte_oculta]:[R$  Executado (2027)]],4,FALSE)=0,\"\",VLOOKUP(A35,Financeiro[[id_ação_Fonte_oculta]:[R$  Executado (2027)]],4,FALSE))","v":""},{"$f":"IF(VLOOKUP(A35,Financeiro[[id_ação_Fonte_oculta]:[R$  Executado (2027)]],4,FALSE)=0,\"\",VLOOKUP(A35,Financeiro[[id_ação_Fonte_oculta]:[R$  Executado (2027)]],5,FALSE))","v":""},{"$f":"IF(VLOOKUP(A35,Financeiro[[id_ação_Fonte_oculta]:[R$  Executado (2027)]],4,FALSE)=0,\"\",VLOOKUP(A35,Financeiro[[id_ação_Fonte_oculta]:[R$  Executado (2027)]],8,FALSE))","v":""},{"$f":"IF(VLOOKUP(A35,Financeiro[[id_ação_Fonte_oculta]:[R$  Executado (2027)]],4,FALSE)=0,\"\",VLOOKUP(A35,Financeiro[[id_ação_Fonte_oculta]:[R$  Executado (2027)]],11,FALSE))","v":""},{"$f":"IF(VLOOKUP(A35,Financeiro[[id_ação_Fonte_oculta]:[R$  Executado (2027)]],4,FALSE)=0,\"\",VLOOKUP(A35,Financeiro[[id_ação_Fonte_oculta]:[R$  Executado (2027)]],14,FALSE))","v":""},0,{"$f":"IFERROR(INDEX(IdentAcoes[SubPDC],MATCH(B35,IdentAcoes[ID Ação],0)),\"\")","v":""},{"$f":"IFERROR(INDEX(IdentAcoes[Prioridade do PDC],MATCH(B35,IdentAcoes[ID Ação],0)),\"\")","v":""},{"$f":"IFERROR(INDEX(IdentAcoes[Segmento do executor],MATCH($B35,IdentAcoes[ID Ação],0)),\"\")","v":""},{"$f":"IFERROR(INDEX(IdentAcoes[Área de abrangência],MATCH($B35,IdentAcoes[ID Ação],0)),\"\")","v":""},{"$f":"IFERROR(INDEX(IdentAcoes[Detalhamento da área de abrangência],MATCH($B35,IdentAcoes[ID Ação],0)),\"\")","v":""}]
["","",{"$f":"INDEX(Financeiro[Descrição da ação],MATCH(B36,Financeiro[ID Ação], 0))","v":""},{"$f":"IF(INDEX('Acompanhamento das metas 24-27'!$C$2:$C$50,MATCH(B36,'Acompanhamento das metas 24-27'!$A$2:$A$50,0))<>0,INDEX('Acompanhamento das metas 24-27'!$C$2:$C$50,MATCH(B36,'Acompanhamento das metas 24-27'!$A$2:$A$50,0)),\"\")","v":""},{"$f":"IF(VLOOKUP(A36,Financeiro[[id_ação_Fonte_oculta]:[R$  Executado (2027)]],4,FALSE)=0,\"\",VLOOKUP(A36,Financeiro[[id_ação_Fonte_oculta]:[R$  Executado (2027)]],4,FALSE))","v":""},{"$f":"IF(VLOOKUP(A36,Financeiro[[id_ação_Fonte_oculta]:[R$  Executado (2027)]],4,FALSE)=0,\"\",VLOOKUP(A36,Financeiro[[id_ação_Fonte_oculta]:[R$  Executado (2027)]],5,FALSE))","v":""},{"$f":"IF(VLOOKUP(A36,Financeiro[[id_ação_Fonte_oculta]:[R$  Executado (2027)]],4,FALSE)=0,\"\",VLOOKUP(A36,Financeiro[[id_ação_Fonte_oculta]:[R$  Executado (2027)]],8,FALSE))","v":""},{"$f":"IF(VLOOKUP(A36,Financeiro[[id_ação_Fonte_oculta]:[R$  Executado (2027)]],4,FALSE)=0,\"\",VLOOKUP(A36,Financeiro[[id_ação_Fonte_oculta]:[R$  Executado (2027)]],11,FALSE))","v":""},{"$f":"IF(VLOOKUP(A36,Financeiro[[id_ação_Fonte_oculta]:[R$  Executado (2027)]],4,FALSE)=0,\"\",VLOOKUP(A36,Financeiro[[id_ação_Fonte_oculta]:[R$  Executado (2027)]],14,FALSE))","v":""},0,{"$f":"IFERROR(INDEX(IdentAcoes[SubPDC],MATCH(B36,IdentAcoes[ID Ação],0)),\"\")","v":""},{"$f":"IFERROR(INDEX(IdentAcoes[Prioridade do PDC],MATCH(B36,IdentAcoes[ID Ação],0)),\"\")","v":""},{"$f":"IFERROR(INDEX(IdentAcoes[Segmento do executor],MATCH($B36,IdentAcoes[ID Ação],0)),\"\")","v":""},{"$f":"IFERROR(INDEX(IdentAcoes[Área de abrangência],MATCH($B36,IdentAcoes[ID Ação],0)),\"\")","v":""},{"$f":"IFERROR(INDEX(IdentAcoes[Detalhamento da área de abrangência],MATCH($B36,IdentAcoes[ID Ação],0)),\"\")","v":""}]
["","",{"$f":"INDEX(Financeiro[Descrição da ação],MATCH(B37,Financeiro[ID Ação], 0))","v":""},{"$f":"IF(INDEX('Acompanhamento das metas 24-27'!$C$2:$C$50,MATCH(B37,'Acompanhamento das metas 24-27'!$A$2:$A$50,0))<>0,INDEX('Acompanhamento das metas 24-27'!$C$2:$C$50,MATCH(B37,'Acompanhamento das metas 24-27'!$A$2:$A$50,0)),\"\")","v":""},{"$f":"IF(VLOOKUP(A37,Financeiro[[id_ação_Fonte_oculta]:[R$  Executado (2027)]],4,FALSE)=0,\"\",VLOOKUP(A37,Financeiro[[id_ação_Fonte_oculta]:[R$  Executado (2027)]],4,FALSE))","v":""},{"$f":"IF(VLOOKUP(A37,Financeiro[[id_ação_Fonte_oculta]:[R$  Executado (2027)]],4,FALSE)=0,\"\",VLOOKUP(A37,Financeiro[[id_ação_Fonte_oculta]:[R$  Executado (2027)]],5,FALSE))","v":""},{"$f":"IF(VLOOKUP(A37,Financeiro[[id_ação_Fonte_oculta]:[R$  Executado (2027)]],4,FALSE)=0,\"\",VLOOKUP(A37,Financeiro[[id_ação_Fonte_oculta]:[R$  Executado (2027)]],8,FALSE))","v":""},{"$f":"IF(VLOOKUP(A37,Financeiro[[id_ação_Fonte_oculta]:[R$  Executado (2027)]],4,FALSE)=0,\"\",VLOOKUP(A37,Financeiro[[id_ação_Fonte_oculta]:[R$  Executado (2027)]],11,FALSE))","v":""},{"$f":"IF(VLOOKUP(A37,Financeiro[[id_ação_Fonte_oculta]:[R$  Executado (2027)]],4,FALSE)=0,\"\",VLOOKUP(A37,Financeiro[[id_ação_Fonte_oculta]:[R$  Executado (2027)]],14,FALSE))","v":""},0,{"$f":"IFERROR(INDEX(IdentAcoes[SubPDC],MATCH(B37,IdentAcoes[ID Ação],0)),\"\")","v":""},{"$f":"IFERROR(INDEX(IdentAcoes[Prioridade do PDC],MATCH(B37,IdentAcoes[ID Ação],0)),\"\")","v":""},{"$f":"IFERROR(INDEX(IdentAcoes[Segmento do executor],MATCH($B37,IdentAcoes[ID Ação],0)),\"\")","v":""},{"$f":"IFERROR(INDEX(IdentAcoes[Área de abrangência],MATCH($B37,IdentAcoes[ID Ação],0)),\"\")","v":""},{"$f":"IFERROR(INDEX(IdentAcoes[Detalhamento da área de abrangência],MATCH($B37,IdentAcoes[ID Ação],0)),\"\")","v":""}]
["","",{"$f":"INDEX(Financeiro[Descrição da ação],MATCH(B38,Financeiro[ID Ação], 0))","v":""},{"$f":"IF(INDEX('Acompanhamento das metas 24-27'!$C$2:$C$50,MATCH(B38,'Acompanhamento das metas 24-27'!$A$2:$A$50,0))<>0,INDEX('Acompanhamento das metas 24-27'!$C$2:$C$50,MATCH(B38,'Acompanhamento das metas 24-27'!$A$2:$A$50,0)),\"\")","v":""},{"$f":"IF(VLOOKUP(A38,Financeiro[[id_ação_Fonte_oculta]:[R$  Executado (2027)]],4,FALSE)=0,\"\",VLOOKUP(A38,Financeiro[[id_ação_Fonte_oculta]:[R$  Executado (2027)]],4,FALSE))","v":""},{"$f":"IF(VLOOKUP(A38,Financeiro[[id_ação_Fonte_oculta]:[R$  Executado (2027)]],4,FALSE)=0,\"\",VLOOKUP(A38,Financeiro[[id_ação_Fonte_oculta]:[R$  Executado (2027)]],5,FALSE))","v":""},{"$f":"IF(VLOOKUP(A38,Financeiro[[id_ação_Fonte_oculta]:[R$  Executado (2027)]],4,FALSE)=0,\"\",VLOOKUP(A38,Financeiro[[id_ação_Fonte_oculta]:[R$  Executado (2027)]],8,FALSE))","v":""},{"$f":"IF(VLOOKUP(A38,Financeiro[[id_ação_Fonte_oculta]:[R$  Executado (2027)]],4,FALSE)=0,\"\",VLOOKUP(A38,Financeiro[[id_ação_Fonte_oculta]:[R$  Executado (2027)]],11,FALSE))","v":""},{"$f":"IF(VLOOKUP(A38,Financeiro[[id_ação_Fonte_oculta]:[R$  Executado (2027)]],4,FALSE)=0,\"\",VLOOKUP(A38,Financeiro[[id_ação_Fonte_oculta]:[R$  Executado (2027)]],14,FALSE))","v":""},0,{"$f":"IFERROR(INDEX(IdentAcoes[SubPDC],MATCH(B38,IdentAcoes[ID Ação],0)),\"\")","v":""},{"$f":"IFERROR(INDEX(IdentAcoes[Prioridade do PDC],MATCH(B38,IdentAcoes[ID Ação],0)),\"\")","v":""},{"$f":"IFERROR(INDEX(IdentAcoes[Segmento do executor],MATCH($B38,IdentAcoes[ID Ação],0)),\"\")","v":""},{"$f":"IFERROR(INDEX(IdentAcoes[Área de abrangência],MATCH($B38,IdentAcoes[ID Ação],0)),\"\")","v":""},{"$f":"IFERROR(INDEX(IdentAcoes[Detalhamento da área de abrangência],MATCH($B38,IdentAcoes[ID Ação],0)),\"\")","v":""}]
["","",{"$f":"INDEX(Financeiro[Descrição da ação],MATCH(B39,Financeiro[ID Ação], 0))","v":""},{"$f":"IF(INDEX('Acompanhamento das metas 24-27'!$C$2:$C$50,MATCH(B39,'Acompanhamento das metas 24-27'!$A$2:$A$50,0))<>0,INDEX('Acompanhamento das metas 24-27'!$C$2:$C$50,MATCH(B39,'Acompanhamento das metas 24-27'!$A$2:$A$50,0)),\"\")","v":""},{"$f":"IF(VLOOKUP(A39,Financeiro[[id_ação_Fonte_oculta]:[R$  Executado (2027)]],4,FALSE)=0,\"\",VLOOKUP(A39,Financeiro[[id_ação_Fonte_oculta]:[R$  Executado (2027)]],4,FALSE))","v":""},{"$f":"IF(VLOOKUP(A39,Financeiro[[id_ação_Fonte_oculta]:[R$  Executado (2027)]],4,FALSE)=0,\"\",VLOOKUP(A39,Financeiro[[id_ação_Fonte_oculta]:[R$  Executado (2027)]],5,FALSE))","v":""},{"$f":"IF(VLOOKUP(A39,Financeiro[[id_ação_Fonte_oculta]:[R$  Executado (2027)]],4,FALSE)=0,\"\",VLOOKUP(A39,Financeiro[[id_ação_Fonte_oculta]:[R$  Executado (2027)]],8,FALSE))","v":""},{"$f":"IF(VLOOKUP(A39,Financeiro[[id_ação_Fonte_oculta]:[R$  Executado (2027)]],4,FALSE)=0,\"\",VLOOKUP(A39,Financeiro[[id_ação_Fonte_oculta]:[R$  Executado (2027)]],11,FALSE))","v":""},{"$f":"IF(VLOOKUP(A39,Financeiro[[id_ação_Fonte_oculta]:[R$  Executado (2027)]],4,FALSE)=0,\"\",VLOOKUP(A39,Financeiro[[id_ação_Fonte_oculta]:[R$  Executado (2027)]],14,FALSE))","v":""},0,{"$f":"IFERROR(INDEX(IdentAcoes[SubPDC],MATCH(B39,IdentAcoes[ID Ação],0)),\"\")","v":""},{"$f":"IFERROR(INDEX(IdentAcoes[Prioridade do PDC],MATCH(B39,IdentAcoes[ID Ação],0)),\"\")","v":""},{"$f":"IFERROR(INDEX(IdentAcoes[Segmento do executor],MATCH($B39,IdentAcoes[ID Ação],0)),\"\")","v":""},{"$f":"IFERROR(INDEX(IdentAcoes[Área de abrangência],MATCH($B39,IdentAcoes[ID Ação],0)),\"\")","v":""},{"$f":"IFERROR(INDEX(IdentAcoes[Detalhamento da área de abrangência],MATCH($B39,IdentAcoes[ID Ação],0)),\"\")","v":""}]
["","",{"$f":"INDEX(Financeiro[Descrição da ação],MATCH(B40,Financeiro[ID Ação], 0))","v":""},{"$f":"IF(INDEX('Acompanhamento das metas 24-27'!$C$2:$C$50,MATCH(B40,'Acompanhamento das metas 24-27'!$A$2:$A$50,0))<>0,INDEX('Acompanhamento das metas 24-27'!$C$2:$C$50,MATCH(B40,'Acompanhamento das metas 24-27'!$A$2:$A$50,0)),\"\")","v":""},{"$f":"IF(VLOOKUP(A40,Financeiro[[id_ação_Fonte_oculta]:[R$  Executado (2027)]],4,FALSE)=0,\"\",VLOOKUP(A40,Financeiro[[id_ação_Fonte_oculta]:[R$  Executado (2027)]],4,FALSE))","v":""},{"$f":"IF(VLOOKUP(A40,Financeiro[[id_ação_Fonte_oculta]:[R$  Executado (2027)]],4,FALSE)=0,\"\",VLOOKUP(A40,Financeiro[[id_ação_Fonte_oculta]:[R$  Executado (2027)]],5,FALSE))","v":""},{"$f":"IF(VLOOKUP(A40,Financeiro[[id_ação_Fonte_oculta]:[R$  Executado (2027)]],4,FALSE)=0,\"\",VLOOKUP(A40,Financeiro[[id_ação_Fonte_oculta]:[R$  Executado (2027)]],8,FALSE))","v":""},{"$f":"IF(VLOOKUP(A40,Financeiro[[id_ação_Fonte_oculta]:[R$  Executado (2027)]],4,FALSE)=0,\"\",VLOOKUP(A40,Financeiro[[id_ação_Fonte_oculta]:[R$  Executado (2027)]],11,FALSE))","v":""},{"$f":"IF(VLOOKUP(A40,Financeiro[[id_ação_Fonte_oculta]:[R$  Executado (2027)]],4,FALSE)=0,\"\",VLOOKUP(A40,Financeiro[[id_ação_Fonte_oculta]:[R$  Executado (2027)]],14,FALSE))","v":""},0,{"$f":"IFERROR(INDEX(IdentAcoes[SubPDC],MATCH(B40,IdentAcoes[ID Ação],0)),\"\")","v":""},{"$f":"IFERROR(INDEX(IdentAcoes[Prioridade do PDC],MATCH(B40,IdentAcoes[ID Ação],0)),\"\")","v":""},{"$f":"IFERROR(INDEX(IdentAcoes[Segmento do executor],MATCH($B40,IdentAcoes[ID Ação],0)),\"\")","v":""},{"$f":"IFERROR(INDEX(IdentAcoes[Área de abrangência],MATCH($B40,IdentAcoes[ID Ação],0)),\"\")","v":""},{"$f":"IFERROR(INDEX(IdentAcoes[Detalhamento da área de abrangência],MATCH($B40,IdentAcoes[ID Ação],0)),\"\")","v":""}]
["","",{"$f":"INDEX(Financeiro[Descrição da ação],MATCH(B41,Financeiro[ID Ação], 0))","v":""},{"$f":"IF(INDEX('Acompanhamento das metas 24-27'!$C$2:$C$50,MATCH(B41,'Acompanhamento das metas 24-27'!$A$2:$A$50,0))<>0,INDEX('Acompanhamento das metas 24-27'!$C$2:$C$50,MATCH(B41,'Acompanhamento das metas 24-27'!$A$2:$A$50,0)),\"\")","v":""},{"$f":"IF(VLOOKUP(A41,Financeiro[[id_ação_Fonte_oculta]:[R$  Executado (2027)]],4,FALSE)=0,\"\",VLOOKUP(A41,Financeiro[[id_ação_Fonte_oculta]:[R$  Executado (2027)]],4,FALSE))","v":""},{"$f":"IF(VLOOKUP(A41,Financeiro[[id_ação_Fonte_oculta]:[R$  Executado (2027)]],4,FALSE)=0,\"\",VLOOKUP(A41,Financeiro[[id_ação_Fonte_oculta]:[R$  Executado (2027)]],5,FALSE))","v":""},{"$f":"IF(VLOOKUP(A41,Financeiro[[id_ação_Fonte_oculta]:[R$  Executado (2027)]],4,FALSE)=0,\"\",VLOOKUP(A41,Financeiro[[id_ação_Fonte_oculta]:[R$  Executado (2027)]],8,FALSE))","v":""},{"$f":"IF(VLOOKUP(A41,Financeiro[[id_ação_Fonte_oculta]:[R$  Executado (2027)]],4,FALSE)=0,\"\",VLOOKUP(A41,Financeiro[[id_ação_Fonte_oculta]:[R$  Executado (2027)]],11,FALSE))","v":""},{"$f":"IF(VLOOKUP(A41,Financeiro[[id_ação_Fonte_oculta]:[R$  Executado (2027)]],4,FALSE)=0,\"\",VLOOKUP(A41,Financeiro[[id_ação_Fonte_oculta]:[R$  Executado (2027)]],14,FALSE))","v":""},0,{"$f":"IFERROR(INDEX(IdentAcoes[SubPDC],MATCH(B41,IdentAcoes[ID Ação],0)),\"\")","v":""},{"$f":"IFERROR(INDEX(IdentAcoes[Prioridade do PDC],MATCH(B41,IdentAcoes[ID Ação],0)),\"\")","v":""},{"$f":"IFERROR(INDEX(IdentAcoes[Segmento do executor],MATCH($B41,IdentAcoes[ID Ação],0)),\"\")","v":""},{"$f":"IFERROR(INDEX(IdentAcoes[Área de abrangência],MATCH($B41,IdentAcoes[ID Ação],0)),\"\")","v":""},{"$f":"IFERROR(INDEX(IdentAcoes[Detalhamento da área de abrangência],MATCH($B41,IdentAcoes[ID Ação],0)),\"\")","v":""}]
["","",{"$f":"INDEX(Financeiro[Descrição da ação],MATCH(B42,Financeiro[ID Ação], 0))","v":""},{"$f":"IF(INDEX('Acompanhamento das metas 24-27'!$C$2:$C$50,MATCH(B42,'Acompanhamento das metas 24-27'!$A$2:$A$50,0))<>0,INDEX('Acompanhamento das metas 24-27'!$C$2:$C$50,MATCH(B42,'Acompanhamento das metas 24-27'!$A$2:$A$50,0)),\"\")","v":""},{"$f":"IF(VLOOKUP(A42,Financeiro[[id_ação_Fonte_oculta]:[R$  Executado (2027)]],4,FALSE)=0,\"\",VLOOKUP(A42,Financeiro[[id_ação_Fonte_oculta]:[R$  Executado (2027)]],4,FALSE))","v":""},{"$f":"IF(VLOOKUP(A42,Financeiro[[id_ação_Fonte_oculta]:[R$  Executado (2027)]],4,FALSE)=0,\"\",VLOOKUP(A42,Financeiro[[id_ação_Fonte_oculta]:[R$  Executado (2027)]],5,FALSE))","v":""},{"$f":"IF(VLOOKUP(A42,Financeiro[[id_ação_Fonte_oculta]:[R$  Executado (2027)]],4,FALSE)=0,\"\",VLOOKUP(A42,Financeiro[[id_ação_Fonte_oculta]:[R$  Executado (2027)]],8,FALSE))","v":""},{"$f":"IF(VLOOKUP(A42,Financeiro[[id_ação_Fonte_oculta]:[R$  Executado (2027)]],4,FALSE)=0,\"\",VLOOKUP(A42,Financeiro[[id_ação_Fonte_oculta]:[R$  Executado (2027)]],11,FALSE))","v":""},{"$f":"IF(VLOOKUP(A42,Financeiro[[id_ação_Fonte_oculta]:[R$  Executado (2027)]],4,FALSE)=0,\"\",VLOOKUP(A42,Financeiro[[id_ação_Fonte_oculta]:[R$  Executado (2027)]],14,FALSE))","v":""},0,{"$f":"IFERROR(INDEX(IdentAcoes[SubPDC],MATCH(B42,IdentAcoes[ID Ação],0)),\"\")","v":""},{"$f":"IFERROR(INDEX(IdentAcoes[Prioridade do PDC],MATCH(B42,IdentAcoes[ID Ação],0)),\"\")","v":""},{"$f":"IFERROR(INDEX(IdentAcoes[Segmento do executor],MATCH($B42,IdentAcoes[ID Ação],0)),\"\")","v":""},{"$f":"IFERROR(INDEX(IdentAcoes[Área de abrangência],MATCH($B42,IdentAcoes[ID Ação],0)),\"\")","v":""},{"$f":"IFERROR(INDEX(IdentAcoes[Detalhamento da área de abrangência],MATCH($B42,IdentAcoes[ID Ação],0)),\"\")","v":""}]
["","",{"$f":"INDEX(Financeiro[Descrição da ação],MATCH(B43,Financeiro[ID Ação], 0))","v":""},{"$f":"IF(INDEX('Acompanhamento das metas 24-27'!$C$2:$C$50,MATCH(B43,'Acompanhamento das metas 24-27'!$A$2:$A$50,0))<>0,INDEX('Acompanhamento das metas 24-27'!$C$2:$C$50,MATCH(B43,'Acompanhamento das metas 24-27'!$A$2:$A$50,0)),\"\")","v":""},{"$f":"IF(VLOOKUP(A43,Financeiro[[id_ação_Fonte_oculta]:[R$  Executado (2027)]],4,FALSE)=0,\"\",VLOOKUP(A43,Financeiro[[id_ação_Fonte_oculta]:[R$  Executado (2027)]],4,FALSE))","v":""},{"$f":"IF(VLOOKUP(A43,Financeiro[[id_ação_Fonte_oculta]:[R$  Executado (2027)]],4,FALSE)=0,\"\",VLOOKUP(A43,Financeiro[[id_ação_Fonte_oculta]:[R$  Executado (2027)]],5,FALSE))","v":""},{"$f":"IF(VLOOKUP(A43,Financeiro[[id_ação_Fonte_oculta]:[R$  Executado (2027)]],4,FALSE)=0,\"\",VLOOKUP(A43,Financeiro[[id_ação_Fonte_oculta]:[R$  Executado (2027)]],8,FALSE))","v":""},{"$f":"IF(VLOOKUP(A43,Financeiro[[id_ação_Fonte_oculta]:[R$  Executado (2027)]],4,FALSE)=0,\"\",VLOOKUP(A43,Financeiro[[id_ação_Fonte_oculta]:[R$  Executado (2027)]],11,FALSE))","v":""},{"$f":"IF(VLOOKUP(A43,Financeiro[[id_ação_Fonte_oculta]:[R$  Executado (2027)]],4,FALSE)=0,\"\",VLOOKUP(A43,Financeiro[[id_ação_Fonte_oculta]:[R$  Executado (2027)]],14,FALSE))","v":""},0,{"$f":"IFERROR(INDEX(IdentAcoes[SubPDC],MATCH(B43,IdentAcoes[ID Ação],0)),\"\")","v":""},{"$f":"IFERROR(INDEX(IdentAcoes[Prioridade do PDC],MATCH(B43,IdentAcoes[ID Ação],0)),\"\")","v":""},{"$f":"IFERROR(INDEX(IdentAcoes[Segmento do executor],MATCH($B43,IdentAcoes[ID Ação],0)),\"\")","v":""},{"$f":"IFERROR(INDEX(IdentAcoes[Área de abrangência],MATCH($B43,IdentAcoes[ID Ação],0)),\"\")","v":""},{"$f":"IFERROR(INDEX(IdentAcoes[Detalhamento da área de abrangência],MATCH($B43,IdentAcoes[ID Ação],0)),\"\")","v":""}]
["","",{"$f":"INDEX(Financeiro[Descrição da ação],MATCH(B44,Financeiro[ID Ação], 0))","v":""},{"$f":"IF(INDEX('Acompanhamento das metas 24-27'!$C$2:$C$50,MATCH(B44,'Acompanhamento das metas 24-27'!$A$2:$A$50,0))<>0,INDEX('Acompanhamento das metas 24-27'!$C$2:$C$50,MATCH(B44,'Acompanhamento das metas 24-27'!$A$2:$A$50,0)),\"\")","v":""},{"$f":"IF(VLOOKUP(A44,Financeiro[[id_ação_Fonte_oculta]:[R$  Executado (2027)]],4,FALSE)=0,\"\",VLOOKUP(A44,Financeiro[[id_ação_Fonte_oculta]:[R$  Executado (2027)]],4,FALSE))","v":""},{"$f":"IF(VLOOKUP(A44,Financeiro[[id_ação_Fonte_oculta]:[R$  Executado (2027)]],4,FALSE)=0,\"\",VLOOKUP(A44,Financeiro[[id_ação_Fonte_oculta]:[R$  Executado (2027)]],5,FALSE))","v":""},{"$f":"IF(VLOOKUP(A44,Financeiro[[id_ação_Fonte_oculta]:[R$  Executado (2027)]],4,FALSE)=0,\"\",VLOOKUP(A44,Financeiro[[id_ação_Fonte_oculta]:[R$  Executado (2027)]],8,FALSE))","v":""},{"$f":"IF(VLOOKUP(A44,Financeiro[[id_ação_Fonte_oculta]:[R$  Executado (2027)]],4,FALSE)=0,\"\",VLOOKUP(A44,Financeiro[[id_ação_Fonte_oculta]:[R$  Executado (2027)]],11,FALSE))","v":""},{"$f":"IF(VLOOKUP(A44,Financeiro[[id_ação_Fonte_oculta]:[R$  Executado (2027)]],4,FALSE)=0,\"\",VLOOKUP(A44,Financeiro[[id_ação_Fonte_oculta]:[R$  Executado (2027)]],14,FALSE))","v":""},0,{"$f":"IFERROR(INDEX(IdentAcoes[SubPDC],MATCH(B44,IdentAcoes[ID Ação],0)),\"\")","v":""},{"$f":"IFERROR(INDEX(IdentAcoes[Prioridade do PDC],MATCH(B44,IdentAcoes[ID Ação],0)),\"\")","v":""},{"$f":"IFERROR(INDEX(IdentAcoes[Segmento do executor],MATCH($B44,IdentAcoes[ID Ação],0)),\"\")","v":""},{"$f":"IFERROR(INDEX(IdentAcoes[Área de abrangência],MATCH($B44,IdentAcoes[ID Ação],0)),\"\")","v":""},{"$f":"IFERROR(INDEX(IdentAcoes[Detalhamento da área de abrangência],MATCH($B44,IdentAcoes[ID Ação],0)),\"\")","v":""}]
["","",{"$f":"INDEX(Financeiro[Descrição da ação],MATCH(B45,Financeiro[ID Ação], 0))","v":""},{"$f":"IF(INDEX('Acompanhamento das metas 24-27'!$C$2:$C$50,MATCH(B45,'Acompanhamento das metas 24-27'!$A$2:$A$50,0))<>0,INDEX('Acompanhamento das metas 24-27'!$C$2:$C$50,MATCH(B45,'Acompanhamento das metas 24-27'!$A$2:$A$50,0)),\"\")","v":""},{"$f":"IF(VLOOKUP(A45,Financeiro[[id_ação_Fonte_oculta]:[R$  Executado (2027)]],4,FALSE)=0,\"\",VLOOKUP(A45,Financeiro[[id_ação_Fonte_oculta]:[R$  Executado (2027)]],4,FALSE))","v":""},{"$f":"IF(VLOOKUP(A45,Financeiro[[id_ação_Fonte_oculta]:[R$  Executado (2027)]],4,FALSE)=0,\"\",VLOOKUP(A45,Financeiro[[id_ação_Fonte_oculta]:[R$  Executado (2027)]],5,FALSE))","v":""},{"$f":"IF(VLOOKUP(A45,Financeiro[[id_ação_Fonte_oculta]:[R$  Executado (2027)]],4,FALSE)=0,\"\",VLOOKUP(A45,Financeiro[[id_ação_Fonte_oculta]:[R$  Executado (2027)]],8,FALSE))","v":""},{"$f":"IF(VLOOKUP(A45,Financeiro[[id_ação_Fonte_oculta]:[R$  Executado (2027)]],4,FALSE)=0,\"\",VLOOKUP(A45,Financeiro[[id_ação_Fonte_oculta]:[R$  Executado (2027)]],11,FALSE))","v":""},{"$f":"IF(VLOOKUP(A45,Financeiro[[id_ação_Fonte_oculta]:[R$  Executado (2027)]],4,FALSE)=0,\"\",VLOOKUP(A45,Financeiro[[id_ação_Fonte_oculta]:[R$  Executado (2027)]],14,FALSE))","v":""},0,{"$f":"IFERROR(INDEX(IdentAcoes[SubPDC],MATCH(B45,IdentAcoes[ID Ação],0)),\"\")","v":""},{"$f":"IFERROR(INDEX(IdentAcoes[Prioridade do PDC],MATCH(B45,IdentAcoes[ID Ação],0)),\"\")","v":""},{"$f":"IFERROR(INDEX(IdentAcoes[Segmento do executor],MATCH($B45,IdentAcoes[ID Ação],0)),\"\")","v":""},{"$f":"IFERROR(INDEX(IdentAcoes[Área de abrangência],MATCH($B45,IdentAcoes[ID Ação],0)),\"\")","v":""},{"$f":"IFERROR(INDEX(IdentAcoes[Detalhamento da área de abrangência],MATCH($B45,IdentAcoes[ID Ação],0)),\"\")","v":""}]
["","",{"$f":"INDEX(Financeiro[Descrição da ação],MATCH(B46,Financeiro[ID Ação], 0))","v":""},{"$f":"IF(INDEX('Acompanhamento das metas 24-27'!$C$2:$C$50,MATCH(B46,'Acompanhamento das metas 24-27'!$A$2:$A$50,0))<>0,INDEX('Acompanhamento das metas 24-27'!$C$2:$C$50,MATCH(B46,'Acompanhamento das metas 24-27'!$A$2:$A$50,0)),\"\")","v":""},{"$f":"IF(VLOOKUP(A46,Financeiro[[id_ação_Fonte_oculta]:[R$  Executado (2027)]],4,FALSE)=0,\"\",VLOOKUP(A46,Financeiro[[id_ação_Fonte_oculta]:[R$  Executado (2027)]],4,FALSE))","v":""},{"$f":"IF(VLOOKUP(A46,Financeiro[[id_ação_Fonte_oculta]:[R$  Executado (2027)]],4,FALSE)=0,\"\",VLOOKUP(A46,Financeiro[[id_ação_Fonte_oculta]:[R$  Executado (2027)]],5,FALSE))","v":""},{"$f":"IF(VLOOKUP(A46,Financeiro[[id_ação_Fonte_oculta]:[R$  Executado (2027)]],4,FALSE)=0,\"\",VLOOKUP(A46,Financeiro[[id_ação_Fonte_oculta]:[R$  Executado (2027)]],8,FALSE))","v":""},{"$f":"IF(VLOOKUP(A46,Financeiro[[id_ação_Fonte_oculta]:[R$  Executado (2027)]],4,FALSE)=0,\"\",VLOOKUP(A46,Financeiro[[id_ação_Fonte_oculta]:[R$  Executado (2027)]],11,FALSE))","v":""},{"$f":"IF(VLOOKUP(A46,Financeiro[[id_ação_Fonte_oculta]:[R$  Executado (2027)]],4,FALSE)=0,\"\",VLOOKUP(A46,Financeiro[[id_ação_Fonte_oculta]:[R$  Executado (2027)]],14,FALSE))","v":""},0,{"$f":"IFERROR(INDEX(IdentAcoes[SubPDC],MATCH(B46,IdentAcoes[ID Ação],0)),\"\")","v":""},{"$f":"IFERROR(INDEX(IdentAcoes[Prioridade do PDC],MATCH(B46,IdentAcoes[ID Ação],0)),\"\")","v":""},{"$f":"IFERROR(INDEX(IdentAcoes[Segmento do executor],MATCH($B46,IdentAcoes[ID Ação],0)),\"\")","v":""},{"$f":"IFERROR(INDEX(IdentAcoes[Área de abrangência],MATCH($B46,IdentAcoes[ID Ação],0)),\"\")","v":""},{"$f":"IFERROR(INDEX(IdentAcoes[Detalhamento da área de abrangência],MATCH($B46,IdentAcoes[ID Ação],0)),\"\")","v":""}]
["","",{"$f":"INDEX(Financeiro[Descrição da ação],MATCH(B47,Financeiro[ID Ação], 0))","v":""},{"$f":"IF(INDEX('Acompanhamento das metas 24-27'!$C$2:$C$50,MATCH(B47,'Acompanhamento das metas 24-27'!$A$2:$A$50,0))<>0,INDEX('Acompanhamento das metas 24-27'!$C$2:$C$50,MATCH(B47,'Acompanhamento das metas 24-27'!$A$2:$A$50,0)),\"\")","v":""},{"$f":"IF(VLOOKUP(A47,Financeiro[[id_ação_Fonte_oculta]:[R$  Executado (2027)]],4,FALSE)=0,\"\",VLOOKUP(A47,Financeiro[[id_ação_Fonte_oculta]:[R$  Executado (2027)]],4,FALSE))","v":""},{"$f":"IF(VLOOKUP(A47,Financeiro[[id_ação_Fonte_oculta]:[R$  Executado (2027)]],4,FALSE)=0,\"\",VLOOKUP(A47,Financeiro[[id_ação_Fonte_oculta]:[R$  Executado (2027)]],5,FALSE))","v":""},{"$f":"IF(VLOOKUP(A47,Financeiro[[id_ação_Fonte_oculta]:[R$  Executado (2027)]],4,FALSE)=0,\"\",VLOOKUP(A47,Financeiro[[id_ação_Fonte_oculta]:[R$  Executado (2027)]],8,FALSE))","v":""},{"$f":"IF(VLOOKUP(A47,Financeiro[[id_ação_Fonte_oculta]:[R$  Executado (2027)]],4,FALSE)=0,\"\",VLOOKUP(A47,Financeiro[[id_ação_Fonte_oculta]:[R$  Executado (2027)]],11,FALSE))","v":""},{"$f":"IF(VLOOKUP(A47,Financeiro[[id_ação_Fonte_oculta]:[R$  Executado (2027)]],4,FALSE)=0,\"\",VLOOKUP(A47,Financeiro[[id_ação_Fonte_oculta]:[R$  Executado (2027)]],14,FALSE))","v":""},0,{"$f":"IFERROR(INDEX(IdentAcoes[SubPDC],MATCH(B47,IdentAcoes[ID Ação],0)),\"\")","v":""},{"$f":"IFERROR(INDEX(IdentAcoes[Prioridade do PDC],MATCH(B47,IdentAcoes[ID Ação],0)),\"\")","v":""},{"$f":"IFERROR(INDEX(IdentAcoes[Segmento do executor],MATCH($B47,IdentAcoes[ID Ação],0)),\"\")","v":""},{"$f":"IFERROR(INDEX(IdentAcoes[Área de abrangência],MATCH($B47,IdentAcoes[ID Ação],0)),\"\")","v":""},{"$f":"IFERROR(INDEX(IdentAcoes[Detalhamento da área de abrangência],MATCH($B47,IdentAcoes[ID Ação],0)),\"\")","v":""}]
["","",{"$f":"INDEX(Financeiro[Descrição da ação],MATCH(B48,Financeiro[ID Ação], 0))","v":""},{"$f":"IF(INDEX('Acompanhamento das metas 24-27'!$C$2:$C$50,MATCH(B48,'Acompanhamento das metas 24-27'!$A$2:$A$50,0))<>0,INDEX('Acompanhamento das metas 24-27'!$C$2:$C$50,MATCH(B48,'Acompanhamento das metas 24-27'!$A$2:$A$50,0)),\"\")","v":""},{"$f":"IF(VLOOKUP(A48,Financeiro[[id_ação_Fonte_oculta]:[R$  Executado (2027)]],4,FALSE)=0,\"\",VLOOKUP(A48,Financeiro[[id_ação_Fonte_oculta]:[R$  Executado (2027)]],4,FALSE))","v":""},{"$f":"IF(VLOOKUP(A48,Financeiro[[id_ação_Fonte_oculta]:[R$  Executado (2027)]],4,FALSE)=0,\"\",VLOOKUP(A48,Financeiro[[id_ação_Fonte_oculta]:[R$  Executado (2027)]],5,FALSE))","v":""},{"$f":"IF(VLOOKUP(A48,Financeiro[[id_ação_Fonte_oculta]:[R$  Executado (2027)]],4,FALSE)=0,\"\",VLOOKUP(A48,Financeiro[[id_ação_Fonte_oculta]:[R$  Executado (2027)]],8,FALSE))","v":""},{"$f":"IF(VLOOKUP(A48,Financeiro[[id_ação_Fonte_oculta]:[R$  Executado (2027)]],4,FALSE)=0,\"\",VLOOKUP(A48,Financeiro[[id_ação_Fonte_oculta]:[R$  Executado (2027)]],11,FALSE))","v":""},{"$f":"IF(VLOOKUP(A48,Financeiro[[id_ação_Fonte_oculta]:[R$  Executado (2027)]],4,FALSE)=0,\"\",VLOOKUP(A48,Financeiro[[id_ação_Fonte_oculta]:[R$  Executado (2027)]],14,FALSE))","v":""},0,{"$f":"IFERROR(INDEX(IdentAcoes[SubPDC],MATCH(B48,IdentAcoes[ID Ação],0)),\"\")","v":""},{"$f":"IFERROR(INDEX(IdentAcoes[Prioridade do PDC],MATCH(B48,IdentAcoes[ID Ação],0)),\"\")","v":""},{"$f":"IFERROR(INDEX(IdentAcoes[Segmento do executor],MATCH($B48,IdentAcoes[ID Ação],0)),\"\")","v":""},{"$f":"IFERROR(INDEX(IdentAcoes[Área de abrangência],MATCH($B48,IdentAcoes[ID Ação],0)),\"\")","v":""},{"$f":"IFERROR(INDEX(IdentAcoes[Detalhamento da área de abrangência],MATCH($B48,IdentAcoes[ID Ação],0)),\"\")","v":""}]
["","",{"$f":"INDEX(Financeiro[Descrição da ação],MATCH(B49,Financeiro[ID Ação], 0))","v":""},{"$f":"IF(INDEX('Acompanhamento das metas 24-27'!$C$2:$C$50,MATCH(B49,'Acompanhamento das metas 24-27'!$A$2:$A$50,0))<>0,INDEX('Acompanhamento das metas 24-27'!$C$2:$C$50,MATCH(B49,'Acompanhamento das metas 24-27'!$A$2:$A$50,0)),\"\")","v":""},{"$f":"IF(VLOOKUP(A49,Financeiro[[id_ação_Fonte_oculta]:[R$  Executado (2027)]],4,FALSE)=0,\"\",VLOOKUP(A49,Financeiro[[id_ação_Fonte_oculta]:[R$  Executado (2027)]],4,FALSE))","v":""},{"$f":"IF(VLOOKUP(A49,Financeiro[[id_ação_Fonte_oculta]:[R$  Executado (2027)]],4,FALSE)=0,\"\",VLOOKUP(A49,Financeiro[[id_ação_Fonte_oculta]:[R$  Executado (2027)]],5,FALSE))","v":""},{"$f":"IF(VLOOKUP(A49,Financeiro[[id_ação_Fonte_oculta]:[R$  Executado (2027)]],4,FALSE)=0,\"\",VLOOKUP(A49,Financeiro[[id_ação_Fonte_oculta]:[R$  Executado (2027)]],8,FALSE))","v":""},{"$f":"IF(VLOOKUP(A49,Financeiro[[id_ação_Fonte_oculta]:[R$  Executado (2027)]],4,FALSE)=0,\"\",VLOOKUP(A49,Financeiro[[id_ação_Fonte_oculta]:[R$  Executado (2027)]],11,FALSE))","v":""},{"$f":"IF(VLOOKUP(A49,Financeiro[[id_ação_Fonte_oculta]:[R$  Executado (2027)]],4,FALSE)=0,\"\",VLOOKUP(A49,Financeiro[[id_ação_Fonte_oculta]:[R$  Executado (2027)]],14,FALSE))","v":""},0,{"$f":"IFERROR(INDEX(IdentAcoes[SubPDC],MATCH(B49,IdentAcoes[ID Ação],0)),\"\")","v":""},{"$f":"IFERROR(INDEX(IdentAcoes[Prioridade do PDC],MATCH(B49,IdentAcoes[ID Ação],0)),\"\")","v":""},{"$f":"IFERROR(INDEX(IdentAcoes[Segmento do executor],MATCH($B49,IdentAcoes[ID Ação],0)),\"\")","v":""},{"$f":"IFERROR(INDEX(IdentAcoes[Área de abrangência],MATCH($B49,IdentAcoes[ID Ação],0)),\"\")","v":""},{"$f":"IFERROR(INDEX(IdentAcoes[Detalhamento da área de abrangência],MATCH($B49,IdentAcoes[ID Ação],0)),\"\")","v":""}]
["","",{"$f":"INDEX(Financeiro[Descrição da ação],MATCH(B50,Financeiro[ID Ação], 0))","v":""},{"$f":"IF(INDEX('Acompanhamento das metas 24-27'!$C$2:$C$50,MATCH(B50,'Acompanhamento das metas 24-27'!$A$2:$A$50,0))<>0,INDEX('Acompanhamento das metas 24-27'!$C$2:$C$50,MATCH(B50,'Acompanhamento das metas 24-27'!$A$2:$A$50,0)),\"\")","v":""},{"$f":"IF(VLOOKUP(A50,Financeiro[[id_ação_Fonte_oculta]:[R$  Executado (2027)]],4,FALSE)=0,\"\",VLOOKUP(A50,Financeiro[[id_ação_Fonte_oculta]:[R$  Executado (2027)]],4,FALSE))","v":""},{"$f":"IF(VLOOKUP(A50,Financeiro[[id_ação_Fonte_oculta]:[R$  Executado (2027)]],4,FALSE)=0,\"\",VLOOKUP(A50,Financeiro[[id_ação_Fonte_oculta]:[R$  Executado (2027)]],5,FALSE))","v":""},{"$f":"IF(VLOOKUP(A50,Financeiro[[id_ação_Fonte_oculta]:[R$  Executado (2027)]],4,FALSE)=0,\"\",VLOOKUP(A50,Financeiro[[id_ação_Fonte_oculta]:[R$  Executado (2027)]],8,FALSE))","v":""},{"$f":"IF(VLOOKUP(A50,Financeiro[[id_ação_Fonte_oculta]:[R$  Executado (2027)]],4,FALSE)=0,\"\",VLOOKUP(A50,Financeiro[[id_ação_Fonte_oculta]:[R$  Executado (2027)]],11,FALSE))","v":""},{"$f":"IF(VLOOKUP(A50,Financeiro[[id_ação_Fonte_oculta]:[R$  Executado (2027)]],4,FALSE)=0,\"\",VLOOKUP(A50,Financeiro[[id_ação_Fonte_oculta]:[R$  Executado (2027)]],14,FALSE))","v":""},0,{"$f":"IFERROR(INDEX(IdentAcoes[SubPDC],MATCH(B50,IdentAcoes[ID Ação],0)),\"\")","v":""},{"$f":"IFERROR(INDEX(IdentAcoes[Prioridade do PDC],MATCH(B50,IdentAcoes[ID Ação],0)),\"\")","v":""},{"$f":"IFERROR(INDEX(IdentAcoes[Segmento do executor],MATCH($B50,IdentAcoes[ID Ação],0)),\"\")","v":""},{"$f":"IFERROR(INDEX(IdentAcoes[Área de abrangência],MATCH($B50,IdentAcoes[ID Ação],0)),\"\")","v":""},{"$f":"IFERROR(INDEX(IdentAcoes[Detalhamento da área de abrangência],MATCH($B50,IdentAcoes[ID Ação],0)),\"\")","v":""}]
["","",{"$f":"INDEX(Financeiro[Descrição da ação],MATCH(B51,Financeiro[ID Ação], 0))","v":""},null,{"$f":"IF(VLOOKUP(A51,Financeiro[[id_ação_Fonte_oculta]:[R$  Executado (2027)]],4,FALSE)=0,\"\",VLOOKUP(A51,Financeiro[[id_ação_Fonte_oculta]:[R$  Executado (2027)]],4,FALSE))","v":""},{"$f":"IF(VLOOKUP(A51,Financeiro[[id_ação_Fonte_oculta]:[R$  Executado (2027)]],4,FALSE)=0,\"\",VLOOKUP(A51,Financeiro[[id_ação_Fonte_oculta]:[R$  Executado (2027)]],5,FALSE))","v":""},{"$f":"IF(VLOOKUP(A51,Financeiro[[id_ação_Fonte_oculta]:[R$  Executado (2027)]],4,FALSE)=0,\"\",VLOOKUP(A51,Financeiro[[id_ação_Fonte_oculta]:[R$  Executado (2027)]],8,FALSE))","v":""},{"$f":"IF(VLOOKUP(A51,Financeiro[[id_ação_Fonte_oculta]:[R$  Executado (2027)]],4,FALSE)=0,\"\",VLOOKUP(A51,Financeiro[[id_ação_Fonte_oculta]:[R$  Executado (2027)]],11,FALSE))","v":""},{"$f":"IF(VLOOKUP(A51,Financeiro[[id_ação_Fonte_oculta]:[R$  Executado (2027)]],4,FALSE)=0,\"\",VLOOKUP(A51,Financeiro[[id_ação_Fonte_oculta]:[R$  Executado (2027)]],14,FALSE))","v":""},null,{"$f":"IFERROR(INDEX(IdentAcoes[SubPDC],MATCH(B51,IdentAcoes[ID Ação],0)),\"\")","v":""},{"$f":"IFERROR(INDEX(IdentAcoes[Prioridade do PDC],MATCH(B51,IdentAcoes[ID Ação],0)),\"\")","v":""},{"$f":"IFERROR(INDEX(IdentAcoes[Segmento do executor],MATCH($B51,IdentAcoes[ID Ação],0)),\"\")","v":""},{"$f":"IFERROR(INDEX(IdentAcoes[Área de abrangência],MATCH($B51,IdentAcoes[ID Ação],0)),\"\")","v":""},{"$f":"IFERROR(INDEX(IdentAcoes[Detalhamento da área de abrangência],MATCH($B51,IdentAcoes[ID Ação],0)),\"\")","v":""}]

{"sheet":"Consolidaçao - 1","index":5,"n_rows":38,"n_cols":19,"rows_kept":38,"cut":false,"hidden":true,"merged":[]}
["Delib. 190",null,"2021 (R$ Estimado)",null,null,null,null,"Delib. 246","2022 (R$ Estimado)",null,null,null,null,"2023 (R$ Estimado)",null,null,null,null,"2022 - 2023  (R$ Estimado)"]
["SubPDC","CFURH","Cobrança Estadual","Cobrança Federal","Outras","TOTAL",null,"SubPDC","CFURH","Cobrança Estadual","Cobrança Federal","Outras","TOTAL","CFURH","Cobrança Estadual","Cobrança Federal","Outras","TOTAL","TOTAL"]
["1.1 - SI",{"$f":"SUMIFS(#REF!,#REF!,A3,#REF!,2021)","v":{"$error":"#REF!"}},{"$f":"SUMIFS(#REF!,#REF!,A3,#REF!,2021)","v":{"$error":"#REF!"}},{"$f":"SUMIFS(#REF!,#REF!,A3,#REF!,2021)","v":{"$error":"#REF!"}},{"$f":"SUMIFS(#REF!,#REF!,A3,#REF!,2021)","v":{"$error":"#REF!"}},{"$f":"SUM(B3:E3)","v":{"$error":"#REF!"}},null,"1.1 - Legislação",{"$f":"SUMIFS(PAPI20_22_23[Recurso financeiro estimado no ano (R$) - CFURH],PAPI20_22_23[SubPDC],'Consolidaçao - 1'!H3,PAPI20_22_23[Ano previsto para início],2022)","v":0},{"$f":"SUMIFS(PAPI20_22_23[Recurso financeiro estimado no ano\n(R$) - Cobrança Estadual],PAPI20_22_23[SubPDC],'Consolidaçao - 1'!H3,PAPI20_22_23[Ano previsto para início],2022)","v":0},{"$f":"SUMIFS(PAPI20_22_23[Recurso financeiro estimado no ano\n(R$) - Cobrança Federal],PAPI20_22_23[SubPDC],'Consolidaçao - 1'!H3,PAPI20_22_23[Ano previsto para início],2022)","v":0},{"$f":"SUMIFS(PAPI20_22_23[Recurso financeiro estimado no ano (R$) - Outras],PAPI20_22_23[SubPDC],'Consolidaçao - 1'!H3,PAPI20_22_23[Ano previsto para início],2022)","v":0},{"$f":"SUM(I3:L3)","v":0},{"$f":"SUMIFS(PAPI20_22_23[Recurso financeiro estimado no ano (R$) - CFURH],PAPI20_22_23[SubPDC],'Consolidaçao - 1'!H3,PAPI20_22_23[Ano previsto para início],2023)","v":0},{"$f":"SUMIFS(PAPI20_22_23[Recurso financeiro estimado no ano\n(R$) - Cobrança Estadual],PAPI20_22_23[SubPDC],'Consolidaçao - 1'!M3,PAPI20_22_23[Ano previsto para início],2023)","v":0},{"$f":"SUMIFS(PAPI20_22_23[Recurso financeiro estimado no ano\n(R$) - Cobrança Federal],PAPI20_22_23[SubPDC],'Consolidaçao - 1'!M3,PAPI20_22_23[Ano previsto para início],2023)","v":0},{"$f":"SUMIFS(PAPI20_22_23[Recurso financeiro estimado no ano (R$) - Outras],PAPI20_22_23[SubPDC],'Consolidaçao - 1'!M3,PAPI20_22_23[Ano previsto para início],2023)","v":0},{"$f":"SUM(N3:Q3)","v":0},{"$f":"SUM(M3,R3)","v":0}]
["1.2 - Planejamento",{"$f":"SUMIFS(#REF!,#REF!,A4,#REF!,2021)","v":{"$error":"#REF!"}},{"$f":"SUMIFS(#REF!,#REF!,A4,#REF!,2021)","v":{"$error":"#REF!"}},{"$f":"SUMIFS(#REF!,#REF!,A4,#REF!,2021)","v":{"$error":"#REF!"}},{"$f":"SUMIFS(#REF!,#REF!,A4,#REF!,2021)","v":{"$error":"#REF!"}},{"$error":"#REF!"},null,"1.2 - Planejamento",{"$f":"SUMIFS(PAPI20_22_23[Recurso financeiro estimado no ano (R$) - CFURH],PAPI20_22_23[SubPDC],'Consolidaçao - 1'!H4,PAPI20_22_23[Ano previsto para início],2022)","v":0},{"$f":"SUMIFS(PAPI20_22_23[Recurso financeiro estimado no ano\n(R$) - Cobrança Estadual],PAPI20_22_23[SubPDC],'Consolidaçao - 1'!H4,PAPI20_22_23[Ano previsto para início],2022)","v":0},{"$f":"SUMIFS(PAPI20_22_23[Recurso financeiro estimado no ano\n(R$) - Cobrança Federal],PAPI20_22_23[SubPDC],'Consolidaçao - 1'!H4,PAPI20_22_23[Ano previsto para início],2022)","v":0},{"$f":"SUMIFS(PAPI20_22_23[Recurso financeiro estimado no ano (R$) - Outras],PAPI20_22_23[SubPDC],'Consolidaçao - 1'!H4,PAPI20_22_23[Ano previsto para início],2022)","v":0},0,{"$f":"SUMIFS(PAPI20_22_23[Recurso financeiro estimado no ano (R$) - CFURH],PAPI20_22_23[SubPDC],'Consolidaçao - 1'!H4,PAPI20_22_23[Ano previsto para início],2023)","v":0},{"$f":"SUMIFS(PAPI20_22_23[Recurso financeiro estimado no ano\n(R$) - Cobrança Estadual],PAPI20_22_23[SubPDC],'Consolidaçao - 1'!M4,PAPI20_22_23[Ano previsto para início],2023)","v":0},{"$f":"SUMIFS(PAPI20_22_23[Recurso financeiro estimado no ano\n(R$) - Cobrança Federal],PAPI20_22_23[SubPDC],'Consolidaçao - 1'!M4,PAPI20_22_23[Ano previsto para início],2023)","v":0},{"$f":"SUMIFS(PAPI20_22_23[Recurso financeiro estimado no ano (R$) - Outras],PAPI20_22_23[SubPDC],'Consolidaçao - 1'!M4,PAPI20_22_23[Ano previsto para início],2023)","v":0},0,{"$f":"SUM(M4,R4)","v":0}]
["1.3 - Enquadramento",{"$f":"SUMIFS(#REF!,#REF!,A5,#REF!,2021)","v":{"$error":"#REF!"}},{"$f":"SUMIFS(#REF!,#REF!,A5,#REF!,2021)","v":{"$error":"#REF!"}},{"$f":"SUMIFS(#REF!,#REF!,A5,#REF!,2021)","v":{"$error":"#REF!"}},{"$f":"SUMIFS(#REF!,#REF!,A5,#REF!,2021)","v":{"$error":"#REF!"}},{"$error":"#REF!"},null,"2.1 - Plano",{"$f":"SUMIFS(PAPI20_22_23[Recurso financeiro estimado no ano (R$) - CFURH],PAPI20_22_23[SubPDC],'Consolidaçao - 1'!H5,PAPI20_22_23[Ano previsto para início],2022)","v":0},{"$f":"SUMIFS(PAPI20_22_23[Recurso financeiro estimado no ano\n(R$) - Cobrança Estadual],PAPI20_22_23[SubPDC],'Consolidaçao - 1'!H5,PAPI20_22_23[Ano previsto para início],2022)","v":0},{"$f":"SUMIFS(PAPI20_22_23[Recurso financeiro estimado no ano\n(R$) - Cobrança Federal],PAPI20_22_23[SubPDC],'Consolidaçao - 1'!H5,PAPI20_22_23[Ano previsto para início],2022)","v":0},{"$f":"SUMIFS(PAPI20_22_23[Recurso financeiro estimado no ano (R$) - Outras],PAPI20_22_23[SubPDC],'Consolidaçao - 1'!H5,PAPI20_22_23[Ano previsto para início],2022)","v":0},0,{"$f":"SUMIFS(PAPI20_22_23[Recurso financeiro estimado no ano (R$) - CFURH],PAPI20_22_23[SubPDC],'Consolidaçao - 1'!H5,PAPI20_22_23[Ano previsto para início],2023)","v":0},{"$f":"SUMIFS(PAPI20_22_23[Recurso financeiro estimado no ano\n(R$) - Cobrança Estadual],PAPI20_22_23[SubPDC],'Consolidaçao - 1'!M5,PAPI20_22_23[Ano previsto para início],2023)","v":0},{"$f":"SUMIFS(PAPI20_22_23[Recurso financeiro estimado no ano\n(R$) - Cobrança Federal],PAPI20_22_23[SubPDC],'Consolidaçao - 1'!M5,PAPI20_22_23[Ano previsto para início],2023)","v":0},{"$f":"SUMIFS(PAPI20_22_23[Recurso financeiro estimado no ano (R$) - Outras],PAPI20_22_23[SubPDC],'Consolidaçao - 1'!M5,PAPI20_22_23[Ano previsto para início],2023)","v":0},0,0]
["1.4 - Monitoramento",{"$f":"SUMIFS(#REF!,#REF!,A6,#REF!,2021)","v":{"$error":"#REF!"}},{"$f":"SUMIFS(#REF!,#REF!,A6,#REF!,2021)","v":{"$error":"#REF!"}},{"$f":"SUMIFS(#REF!,#REF!,A6,#REF!,2021)","v":{"$error":"#REF!"}},{"$f":"SUMIFS(#REF!,#REF!,A6,#REF!,2021)","v":{"$error":"#REF!"}},{"$error":"#REF!"},null,"2.2 - Outorga",{"$f":"SUMIFS(PAPI20_22_23[Recurso financeiro estimado no ano (R$) - CFURH],PAPI20_22_23[SubPDC],'Consolidaçao - 1'!H6,PAPI20_22_23[Ano previsto para início],2022)","v":0},{"$f":"SUMIFS(PAPI20_22_23[Recurso financeiro estimado no ano\n(R$) - Cobrança Estadual],PAPI20_22_23[SubPDC],'Consolidaçao - 1'!H6,PAPI20_22_23[Ano previsto para início],2022)","v":0},{"$f":"SUMIFS(PAPI20_22_23[Recurso financeiro estimado no ano\n(R$) - Cobrança Federal],PAPI20_22_23[SubPDC],'Consolidaçao - 1'!H6,PAPI20_22_23[Ano previsto para início],2022)","v":0},{"$f":"SUMIFS(PAPI20_22_23[Recurso financeiro estimado no ano (R$) - Outras],PAPI20_22_23[SubPDC],'Consolidaçao - 1'!H6,PAPI20_22_23[Ano previsto para início],2022)","v":0},0,{"$f":"SUMIFS(PAPI20_22_23[Recurso financeiro estimado no ano (R$) - CFURH],PAPI20_22_23[SubPDC],'Consolidaçao - 1'!H6,PAPI20_22_23[Ano previsto para início],2023)","v":0},{"$f":"SUMIFS(PAPI20_22_23[Recurso financeiro estimado no ano\n(R$) - Cobrança Estadual],PAPI20_22_23[SubPDC],'Consolidaçao - 1'!M6,PAPI20_22_23[Ano previsto para início],2023)","v":0},{"$f":"SUMIFS(PAPI20_22_23[Recurso financeiro estimado no ano\n(R$) - Cobrança Federal],PAPI20_22_23[SubPDC],'Consolidaçao - 1'!M6,PAPI20_22_23[Ano previsto para início],2023)","v":0},{"$f":"SUMIFS(PAPI20_22_23[Recurso financeiro estimado no ano (R$) - Outras],PAPI20_22_23[SubPDC],'Consolidaçao - 1'!M6,PAPI20_22_23[Ano previsto para início],2023)","v":0},0,0]
["1.5 - Disponibilidade",{"$f":"SUMIFS(#REF!,#REF!,A7,#REF!,2021)","v":{"$error":"#REF!"}},{"$f":"SUMIFS(#REF!,#REF!,A7,#REF!,2021)","v":{"$error":"#REF!"}},{"$f":"SUMIFS(#REF!,#REF!,A7,#REF!,2021)","v":{"$error":"#REF!"}},{"$f":"SUMIFS(#REF!,#REF!,A7,#REF!,2021)","v":{"$error":"#REF!"}},{"$error":"#REF!"},null,"2.3 - Cobrança",{"$f":"SUMIFS(PAPI20_22_23[Recurso financeiro estimado no ano (R$) - CFURH],PAPI20_22_23[SubPDC],'Consolidaçao - 1'!H7,PAPI20_22_23[Ano previsto para início],2022)","v":0},{"$f":"SUMIFS(PAPI20_22_23[Recurso financeiro estimado no ano\n(R$) - Cobrança Estadual],PAPI20_22_23[SubPDC],'Consolidaçao - 1'!H7,PAPI20_22_23[Ano previsto para início],2022)","v":0},{"$f":"SUMIFS(PAPI20_22_23[Recurso financeiro estimado no ano\n(R$) - Cobrança Federal],PAPI20_22_23[SubPDC],'Consolidaçao - 1'!H7,PAPI20_22_23[Ano previsto para início],2022)","v":0},{"$f":"SUMIFS(PAPI20_22_23[Recurso financeiro estimado no ano (R$) - Outras],PAPI20_22_23[SubPDC],'Consolidaçao - 1'!H7,PAPI20_22_23[Ano previsto para início],2022)","v":0},0,{"$f":"SUMIFS(PAPI20_22_23[Recurso financeiro estimado no ano (R$) - CFURH],PAPI20_22_23[SubPDC],'Consolidaçao - 1'!H7,PAPI20_22_23[Ano previsto para início],2023)","v":0},{"$f":"SUMIFS(PAPI20_22_23[Recurso financeiro estimado no ano\n(R$) - Cobrança Estadual],PAPI20_22_23[SubPDC],'Consolidaçao - 1'!M7,PAPI20_22_23[Ano previsto para início],2023)","v":0},{"$f":"SUMIFS(PAPI20_22_23[Recurso financeiro estimado no ano\n(R$) - Cobrança Federal],PAPI20_22_23[SubPDC],'Consolidaçao - 1'!M7,PAPI20_22_23[Ano previsto para início],2023)","v":0},{"$f":"SUMIFS(PAPI20_22_23[Recurso financeiro estimado no ano (R$) - Outras],PAPI20_22_23[SubPDC],'Consolidaçao - 1'!M7,PAPI20_22_23[Ano previsto para início],2023)","v":0},0,0]
["1.6 - Legislação",{"$f":"SUMIFS(#REF!,#REF!,A8,#REF!,2021)","v":{"$error":"#REF!"}},{"$f":"SUMIFS(#REF!,#REF!,A8,#REF!,2021)","v":{"$error":"#REF!"}},{"$f":"SUMIFS(#REF!,#REF!,A8,#REF!,2021)","v":{"$error":"#REF!"}},{"$f":"SUMIFS(#REF!,#REF!,A8,#REF!,2021)","v":{"$error":"#REF!"}},{"$error":"#REF!"},null,"2.4 - Enquadramento",{"$f":"SUMIFS(PAPI20_22_23[Recurso financeiro estimado no ano (R$) - CFURH],PAPI20_22_23[SubPDC],'Consolidaçao - 1'!H8,PAPI20_22_23[Ano previsto para início],2022)","v":0},{"$f":"SUMIFS(PAPI20_22_23[Recurso financeiro estimado no ano\n(R$) - Cobrança Estadual],PAPI20_22_23[SubPDC],'Consolidaçao - 1'!H8,PAPI20_22_23[Ano previsto para início],2022)","v":0},{"$f":"SUMIFS(PAPI20_22_23[Recurso financeiro estimado no ano\n(R$) - Cobrança Federal],PAPI20_22_23[SubPDC],'Consolidaçao - 1'!H8,PAPI20_22_23[Ano previsto para início],2022)","v":0},{"$f":"SUMIFS(PAPI20_22_23[Recurso financeiro estimado no ano (R$) - Outras],PAPI20_22_23[SubPDC],'Consolidaçao - 1'!H8,PAPI20_22_23[Ano previsto para início],2022)","v":0},0,{"$f":"SUMIFS(PAPI20_22_23[Recurso financeiro estimado no ano (R$) - CFURH],PAPI20_22_23[SubPDC],'Consolidaçao - 1'!H8,PAPI20_22_23[Ano previsto para início],2023)","v":0},{"$f":"SUMIFS(PAPI20_22_23[Recurso financeiro estimado no ano\n(R$) - Cobrança Estadual],PAPI20_22_23[SubPDC],'Consolidaçao - 1'!M8,PAPI20_22_23[Ano previsto para início],2023)","v":0},{"$f":"SUMIFS(PAPI20_22_23[Recurso financeiro estimado no ano\n(R$) - Cobrança Federal],PAPI20_22_23[SubPDC],'Consolidaçao - 1'!M8,PAPI20_22_23[Ano previsto para início],2023)","v":0},{"$f":"SUMIFS(PAPI20_22_23[Recurso financeiro estimado no ano (R$) - Outras],PAPI20_22_23[SubPDC],'Consolidaçao - 1'!M8,PAPI20_22_23[Ano previsto para início],2023)","v":0},0,0]
["1.7 - Poluição",{"$f":"SUMIFS(#REF!,#REF!,A9,#REF!,2021)","v":{"$error":"#REF!"}},{"$f":"SUMIFS(#REF!,#REF!,A9,#REF!,2021)","v":{"$error":"#REF!"}},{"$f":"SUMIFS(#REF!,#REF!,A9,#REF!,2021)","v":{"$error":"#REF!"}},{"$f":"SUMIFS(#REF!,#REF!,A9,#REF!,2021)","v":{"$error":"#REF!"}},{"$error":"#REF!"},null,"2.5 - Monitoramento e SI",{"$f":"SUMIFS(PAPI20_22_23[Recurso financeiro estimado no ano (R$) - CFURH],PAPI20_22_23[SubPDC],'Consolidaçao - 1'!H9,PAPI20_22_23[Ano previsto para início],2022)","v":0},{"$f":"SUMIFS(PAPI20_22_23[Recurso financeiro estimado no ano\n(R$) - Cobrança Estadual],PAPI20_22_23[SubPDC],'Consolidaçao - 1'!H9,PAPI20_22_23[Ano previsto para início],2022)","v":0},{"$f":"SUMIFS(PAPI20_22_23[Recurso financeiro estimado no ano\n(R$) - Cobrança Federal],PAPI20_22_23[SubPDC],'Consolidaçao - 1'!H9,PAPI20_22_23[Ano previsto para início],2022)","v":0},{"$f":"SUMIFS(PAPI20_22_23[Recurso financeiro estimado no ano (R$) - Outras],PAPI20_22_23[SubPDC],'Consolidaçao - 1'!H9,PAPI20_22_23[Ano previsto para início],2022)","v":0},0,{"$f":"SUMIFS(PAPI20_22_23[Recurso financeiro estimado no ano (R$) - CFURH],PAPI20_22_23[SubPDC],'Consolidaçao - 1'!H9,PAPI20_22_23[Ano previsto para início],2023)","v":0},{"$f":"SUMIFS(PAPI20_22_23[Recurso financeiro estimado no ano\n(R$) - Cobrança Estadual],PAPI20_22_23[SubPDC],'Consolidaçao - 1'!M9,PAPI20_22_23[Ano previsto para início],2023)","v":0},{"$f":"SUMIFS(PAPI20_22_23[Recurso financeiro estimado no ano\n(R$) - Cobrança Federal],PAPI20_22_23[SubPDC],'Consolidaçao - 1'!M9,PAPI20_22_23[Ano previsto para início],2023)","v":0},{"$f":"SUMIFS(PAPI20_22_23[Recurso financeiro estimado no ano (R$) - Outras],PAPI20_22_23[SubPDC],'Consolidaçao - 1'!M9,PAPI20_22_23[Ano previsto para início],2023)","v":0},0,0]
["2.1 - Planos",{"$f":"SUMIFS(#REF!,#REF!,A10,#REF!,2021)","v":{"$error":"#REF!"}},{"$f":"SUMIFS(#REF!,#REF!,A10,#REF!,2021)","v":{"$error":"#REF!"}},{"$f":"SUMIFS(#REF!,#REF!,A10,#REF!,2021)","v":{"$error":"#REF!"}},{"$f":"SUMIFS(#REF!,#REF!,A10,#REF!,2021)","v":{"$error":"#REF!"}},{"$error":"#REF!"},null,"2.6 - Integração",{"$f":"SUMIFS(PAPI20_22_23[Recurso financeiro estimado no ano (R$) - CFURH],PAPI20_22_23[SubPDC],'Consolidaçao - 1'!H10,PAPI20_22_23[Ano previsto para início],2022)","v":0},{"$f":"SUMIFS(PAPI20_22_23[Recurso financeiro estimado no ano\n(R$) - Cobrança Estadual],PAPI20_22_23[SubPDC],'Consolidaçao - 1'!H10,PAPI20_22_23[Ano previsto para início],2022)","v":0},{"$f":"SUMIFS(PAPI20_22_23[Recurso financeiro estimado no ano\n(R$) - Cobrança Federal],PAPI20_22_23[SubPDC],'Consolidaçao - 1'!H10,PAPI20_22_23[Ano previsto para início],2022)","v":0},{"$f":"SUMIFS(PAPI20_22_23[Recurso financeiro estimado no ano (R$) - Outras],PAPI20_22_23[SubPDC],'Consolidaçao - 1'!H10,PAPI20_22_23[Ano previsto para início],2022)","v":0},0,{"$f":"SUMIFS(PAPI20_22_23[Recurso financeiro estimado no ano (R$) - CFURH],PAPI20_22_23[SubPDC],'Consolidaçao - 1'!H10,PAPI20_22_23[Ano previsto para início],2023)","v":0},{"$f":"SUMIFS(PAPI20_22_23[Recurso financeiro estimado no ano\n(R$) - Cobrança Estadual],PAPI20_22_23[SubPDC],'Consolidaçao - 1'!M10,PAPI20_22_23[Ano previsto para início],2023)","v":0},{"$f":"SUMIFS(PAPI20_22_23[Recurso financeiro estimado no ano\n(R$) - Cobrança Federal],PAPI20_22_23[SubPDC],'Consolidaçao - 1'!M10,PAPI20_22_23[Ano previsto para início],2023)","v":0},{"$f":"SUMIFS(PAPI20_22_23[Recurso financeiro estimado no ano (R$) - Outras],PAPI20_22_23[SubPDC],'Consolidaçao - 1'!M10,PAPI20_22_23[Ano previsto para início],2023)","v":0},0,0]
["2.2 - Outorga",{"$f":"SUMIFS(#REF!,#REF!,A11,#REF!,2021)","v":{"$error":"#REF!"}},{"$f":"SUMIFS(#REF!,#REF!,A11,#REF!,2021)","v":{"$error":"#REF!"}},{"$f":"SUMIFS(#REF!,#REF!,A11,#REF!,2021)","v":{"$error":"#REF!"}},{"$f":"SUMIFS(#REF!,#REF!,A11,#REF!,2021)","v":{"$error":"#REF!"}},{"$error":"#REF!"},null,"2.7 - CORHI",{"$f":"SUMIFS(PAPI20_22_23[Recurso financeiro estimado no ano (R$) - CFURH],PAPI20_22_23[SubPDC],'Consolidaçao - 1'!H11,PAPI20_22_23[Ano previsto para início],2022)","v":0},{"$f":"SUMIFS(PAPI20_22_23[Recurso financeiro estimado no ano\n(R$) - Cobrança Estadual],PAPI20_22_23[SubPDC],'Consolidaçao - 1'!H11,PAPI20_22_23[Ano previsto para início],2022)","v":0},{"$f":"SUMIFS(PAPI20_22_23[Recurso financeiro estimado no ano\n(R$) - Cobrança Federal],PAPI20_22_23[SubPDC],'Consolidaçao - 1'!H11,PAPI20_22_23[Ano previsto para início],2022)","v":0},{"$f":"SUMIFS(PAPI20_22_23[Recurso financeiro estimado no ano (R$) - Outras],PAPI20_22_23[SubPDC],'Consolidaçao - 1'!H11,PAPI20_22_23[Ano previsto para início],2022)","v":0},0,{"$f":"SUMIFS(PAPI20_22_23[Recurso financeiro estimado no ano (R$) - CFURH],PAPI20_22_23[SubPDC],'Consolidaçao - 1'!H11,PAPI20_22_23[Ano previsto para início],2023)","v":0},{"$f":"SUMIFS(PAPI20_22_23[Recurso financeiro estimado no ano\n(R$) - Cobrança Estadual],PAPI20_22_23[SubPDC],'Consolidaçao - 1'!M11,PAPI20_22_23[Ano previsto para início],2023)","v":0},{"$f":"SUMIFS(PAPI20_22_23[Recurso financeiro estimado no ano\n(R$) - Cobrança Federal],PAPI20_22_23[SubPDC],'Consolidaçao - 1'!M11,PAPI20_22_23[Ano previsto para início],2023)","v":0},{"$f":"SUMIFS(PAPI20_22_23[Recurso financeiro estimado no ano (R$) - Outras],PAPI20_22_23[SubPDC],'Consolidaçao - 1'!M11,PAPI20_22_23[Ano previsto para início],2023)","v":0},0,0]
["2.3 - Cobrança",{"$f":"SUMIFS(#REF!,#REF!,A12,#REF!,2021)","v":{"$error":"#REF!"}},{"$f":"SUMIFS(#REF!,#REF!,A12,#REF!,2021)","v":{"$error":"#REF!"}},{"$f":"SUMIFS(#REF!,#REF!,A12,#REF!,2021)","v":{"$error":"#REF!"}},{"$f":"SUMIFS(#REF!,#REF!,A12,#REF!,2021)","v":{"$error":"#REF!"}},{"$error":"#REF!"},null,"3.1 - Efluentes",{"$f":"SUMIFS(PAPI20_22_23[Recurso financeiro estimado no ano (R$) - CFURH],PAPI20_22_23[SubPDC],'Consolidaçao - 1'!H12,PAPI20_22_23[Ano previsto para início],2022)","v":0},{"$f":"SUMIFS(PAPI20_22_23[Recurso financeiro estimado no ano\n(R$) - Cobrança Estadual],PAPI20_22_23[SubPDC],'Consolidaçao - 1'!H12,PAPI20_22_23[Ano previsto para início],2022)","v":0},{"$f":"SUMIFS(PAPI20_22_23[Recurso financeiro estimado no ano\n(R$) - Cobrança Federal],PAPI20_22_23[SubPDC],'Consolidaçao - 1'!H12,PAPI20_22_23[Ano previsto para início],2022)","v":0},{"$f":"SUMIFS(PAPI20_22_23[Recurso financeiro estimado no ano (R$) - Outras],PAPI20_22_23[SubPDC],'Consolidaçao - 1'!H12,PAPI20_22_23[Ano previsto para início],2022)","v":0},0,{"$f":"SUMIFS(PAPI20_22_23[Recurso financeiro estimado no ano (R$) - CFURH],PAPI20_22_23[SubPDC],'Consolidaçao - 1'!H12,PAPI20_22_23[Ano previsto para início],2023)","v":0},{"$f":"SUMIFS(PAPI20_22_23[Recurso financeiro estimado no ano\n(R$) - Cobrança Estadual],PAPI20_22_23[SubPDC],'Consolidaçao - 1'!M12,PAPI20_22_23[Ano previsto para início],2023)","v":0},{"$f":"SUMIFS(PAPI20_22_23[Recurso financeiro estimado no ano\n(R$) - Cobrança Federal],PAPI20_22_23[SubPDC],'Consolidaçao - 1'!M12,PAPI20_22_23[Ano previsto para início],2023)","v":0},{"$f":"SUMIFS(PAPI20_22_23[Recurso financeiro estimado no ano (R$) - Outras],PAPI20_22_23[SubPDC],'Consolidaçao - 1'!M12,PAPI20_22_23[Ano previsto para início],2023)","v":0},0,0]
["2.4 - Efetivação",{"$f":"SUMIFS(#REF!,#REF!,A13,#REF!,2021)","v":{"$error":"#REF!"}},{"$f":"SUMIFS(#REF!,#REF!,A13,#REF!,2021)","v":{"$error":"#REF!"}},{"$f":"SUMIFS(#REF!,#REF!,A13,#REF!,2021)","v":{"$error":"#REF!"}},{"$f":"SUMIFS(#REF!,#REF!,A13,#REF!,2021)","v":{"$error":"#REF!"}},{"$error":"#REF!"},null,"3.2 - Poluição",{"$f":"SUMIFS(PAPI20_22_23[Recurso financeiro estimado no ano (R$) - CFURH],PAPI20_22_23[SubPDC],'Consolidaçao - 1'!H13,PAPI20_22_23[Ano previsto para início],2022)","v":0},{"$f":"SUMIFS(PAPI20_22_23[Recurso financeiro estimado no ano\n(R$) - Cobrança Estadual],PAPI20_22_23[SubPDC],'Consolidaçao - 1'!H13,PAPI20_22_23[Ano previsto para início],2022)","v":0},{"$f":"SUMIFS(PAPI20_22_23[Recurso financeiro estimado no ano\n(R$) - Cobrança Federal],PAPI20_22_23[SubPDC],'Consolidaçao - 1'!H13,PAPI20_22_23[Ano previsto para início],2022)","v":0},{"$f":"SUMIFS(PAPI20_22_23[Recurso financeiro estimado no ano (R$) - Outras],PAPI20_22_23[SubPDC],'Consolidaçao - 1'!H13,PAPI20_22_23[Ano previsto para início],2022)","v":0},0,{"$f":"SUMIFS(PAPI20_22_23[Recurso financeiro estimado no ano (R$) - CFURH],PAPI20_22_23[SubPDC],'Consolidaçao - 1'!H13,PAPI20_22_23[Ano previsto para início],2023)","v":0},{"$f":"SUMIFS(PAPI20_22_23[Recurso financeiro estimado no ano\n(R$) - Cobrança Estadual],PAPI20_22_23[SubPDC],'Consolidaçao - 1'!M13,PAPI20_22_23[Ano previsto para início],2023)","v":0},{"$f":"SUMIFS(PAPI20_22_23[Recurso financeiro estimado no ano\n(R$) - Cobrança Federal],PAPI20_22_23[SubPDC],'Consolidaçao - 1'!M13,PAPI20_22_23[Ano previsto para início],2023)","v":0},{"$f":"SUMIFS(PAPI20_22_23[Recurso financeiro estimado no ano (R$) - Outras],PAPI20_22_23[SubPDC],'Consolidaçao - 1'!M13,PAPI20_22_23[Ano previsto para início],2023)","v":0},0,0]
["2.5 - Integração",{"$f":"SUMIFS(#REF!,#REF!,A14,#REF!,2021)","v":{"$error":"#REF!"}},{"$f":"SUMIFS(#REF!,#REF!,A14,#REF!,2021)","v":{"$error":"#REF!"}},{"$f":"SUMIFS(#REF!,#REF!,A14,#REF!,2021)","v":{"$error":"#REF!"}},{"$f":"SUMIFS(#REF!,#REF!,A14,#REF!,2021)","v":{"$error":"#REF!"}},{"$error":"#REF!"},null,"3.3 - Resíduos",{"$f":"SUMIFS(PAPI20_22_23[Recurso financeiro estimado no ano (R$) - CFURH],PAPI20_22_23[SubPDC],'Consolidaçao - 1'!H14,PAPI20_22_23[Ano previsto para início],2022)","v":0},{"$f":"SUMIFS(PAPI20_22_23[Recurso financeiro estimado no ano\n(R$) - Cobrança Estadual],PAPI20_22_23[SubPDC],'Consolidaçao - 1'!H14,PAPI20_22_23[Ano previsto para início],2022)","v":0},{"$f":"SUMIFS(PAPI20_22_23[Recurso financeiro estimado no ano\n(R$) - Cobrança Federal],PAPI20_22_23[SubPDC],'Consolidaçao - 1'!H14,PAPI20_22_23[Ano previsto para início],2022)","v":0},{"$f":"SUMIFS(PAPI20_22_23[Recurso financeiro estimado no ano (R$) - Outras],PAPI20_22_23[SubPDC],'Consolidaçao - 1'!H14,PAPI20_22_23[Ano previsto para início],2022)","v":0},0,{"$f":"SUMIFS(PAPI20_22_23[Recurso financeiro estimado no ano (R$) - CFURH],PAPI20_22_23[SubPDC],'Consolidaçao - 1'!H14,PAPI20_22_23[Ano previsto para início],2023)","v":0},{"$f":"SUMIFS(PAPI20_22_23[Recurso financeiro estimado no ano\n(R$) - Cobrança Estadual],PAPI20_22_23[SubPDC],'Consolidaçao - 1'!M14,PAPI20_22_23[Ano previsto para início],2023)","v":0},{"$f":"SUMIFS(PAPI20_22_23[Recurso financeiro estimado no ano\n(R$) - Cobrança Federal],PAPI20_22_23[SubPDC],'Consolidaçao - 1'!M14,PAPI20_22_23[Ano previsto para início],2023)","v":0},{"$f":"SUMIFS(PAPI20_22_23[Recurso financeiro estimado no ano (R$) - Outras],PAPI20_22_23[SubPDC],'Consolidaçao - 1'!M14,PAPI20_22_23[Ano previsto para início],2023)","v":0},0,0]
["2.6 - CORHI",{"$f":"SUMIFS(#REF!,#REF!,A15,#REF!,2021)","v":{"$error":"#REF!"}},{"$f":"SUMIFS(#REF!,#REF!,A15,#REF!,2021)","v":{"$error":"#REF!"}},{"$f":"SUMIFS(#REF!,#REF!,A15,#REF!,2021)","v":{"$error":"#REF!"}},{"$f":"SUMIFS(#REF!,#REF!,A15,#REF!,2021)","v":{"$error":"#REF!"}},{"$error":"#REF!"},null,"3.4 - Intervenções",{"$f":"SUMIFS(PAPI20_22_23[Recurso financeiro estimado no ano (R$) - CFURH],PAPI20_22_23[SubPDC],'Consolidaçao - 1'!H15,PAPI20_22_23[Ano previsto para início],2022)","v":0},{"$f":"SUMIFS(PAPI20_22_23[Recurso financeiro estimado no ano\n(R$) - Cobrança Estadual],PAPI20_22_23[SubPDC],'Consolidaçao - 1'!H15,PAPI20_22_23[Ano previsto para início],2022)","v":0},{"$f":"SUMIFS(PAPI20_22_23[Recurso financeiro estimado no ano\n(R$) - Cobrança Federal],PAPI20_22_23[SubPDC],'Consolidaçao - 1'!H15,PAPI20_22_23[Ano previsto para início],2022)","v":0},{"$f":"SUMIFS(PAPI20_22_23[Recurso financeiro estimado no ano (R$) - Outras],PAPI20_22_23[SubPDC],'Consolidaçao - 1'!H15,PAPI20_22_23[Ano previsto para início],2022)","v":0},0,{"$f":"SUMIFS(PAPI20_22_23[Recurso financeiro estimado no ano (R$) - CFURH],PAPI20_22_23[SubPDC],'Consolidaçao - 1'!H15,PAPI20_22_23[Ano previsto para início],2023)","v":0},{"$f":"SUMIFS(PAPI20_22_23[Recurso financeiro estimado no ano\n(R$) - Cobrança Estadual],PAPI20_22_23[SubPDC],'Consolidaçao - 1'!H15,PAPI20_22_23[Ano previsto para início],2023)","v":0},{"$f":"SUMIFS(PAPI20_22_23[Recurso financeiro estimado no ano\n(R$) - Cobrança Federal],PAPI20_22_23[SubPDC],'Consolidaçao - 1'!H15,PAPI20_22_23[Ano previsto para início],2023)","v":0},{"$f":"SUMIFS(PAPI20_22_23[Recurso financeiro estimado no ano (R$) - Outras],PAPI20_22_23[SubPDC],'Consolidaçao - 1'!H15,PAPI20_22_23[Ano previsto para início],2023)","v":0},0,0]
["3.1 - Efluentes",{"$f":"SUMIFS(#REF!,#REF!,A16,#REF!,2021)","v":{"$error":"#REF!"}},{"$f":"SUMIFS(#REF!,#REF!,A16,#REF!,2021)","v":{"$error":"#REF!"}},{"$f":"SUMIFS(#REF!,#REF!,A16,#REF!,2021)","v":{"$error":"#REF!"}},{"$f":"SUMIFS(#REF!,#REF!,A16,#REF!,2021)","v":{"$error":"#REF!"}},{"$error":"#REF!"},null,"4.1 - Erosão",{"$f":"SUMIFS(PAPI20_22_23[Recurso financeiro estimado no ano (R$) - CFURH],PAPI20_22_23[SubPDC],'Consolidaçao - 1'!H16,PAPI20_22_23[Ano previsto para início],2022)","v":0},{"$f":"SUMIFS(PAPI20_22_23[Recurso financeiro estimado no ano\n(R$) - Cobrança Estadual],PAPI20_22_23[SubPDC],'Consolidaçao - 1'!H16,PAPI20_22_23[Ano previsto para início],2022)","v":0},{"$f":"SUMIFS(PAPI20_22_23[Recurso financeiro estimado no ano\n(R$) - Cobrança Federal],PAPI20_22_23[SubPDC],'Consolidaçao - 1'!H16,PAPI20_22_23[Ano previsto para início],2022)","v":0},{"$f":"SUMIFS(PAPI20_22_23[Recurso financeiro estimado no ano (R$) - Outras],PAPI20_22_23[SubPDC],'Consolidaçao - 1'!H16,PAPI20_22_23[Ano previsto para início],2022)","v":0},0,{"$f":"SUMIFS(PAPI20_22_23[Recurso financeiro estimado no ano (R$) - CFURH],PAPI20_22_23[SubPDC],'Consolidaçao - 1'!H16,PAPI20_22_23[Ano previsto para início],2023)","v":0},{"$f":"SUMIFS(PAPI20_22_23[Recurso financeiro estimado no ano\n(R$) - Cobrança Estadual],PAPI20_22_23[SubPDC],'Consolidaçao - 1'!H16,PAPI20_22_23[Ano previsto para início],2023)","v":0},{"$f":"SUMIFS(PAPI20_22_23[Recurso financeiro estimado no ano\n(R$) - Cobrança Federal],PAPI20_22_23[SubPDC],'Consolidaçao - 1'!H16,PAPI20_22_23[Ano previsto para início],2023)","v":0},{"$f":"SUMIFS(PAPI20_22_23[Recurso financeiro estimado no ano (R$) - Outras],PAPI20_22_23[SubPDC],'Consolidaçao - 1'!H16,PAPI20_22_23[Ano previsto para início],2023)","v":0},0,0]
["3.2 - Resíduos",{"$f":"SUMIFS(#REF!,#REF!,A17,#REF!,2021)","v":{"$error":"#REF!"}},{"$f":"SUMIFS(#REF!,#REF!,A17,#REF!,2021)","v":{"$error":"#REF!"}},{"$f":"SUMIFS(#REF!,#REF!,A17,#REF!,2021)","v":{"$error":"#REF!"}},{"$f":"SUMIFS(#REF!,#REF!,A17,#REF!,2021)","v":{"$error":"#REF!"}},{"$error":"#REF!"},null,"4.2 - Conservação",{"$f":"SUMIFS(PAPI20_22_23[Recurso financeiro estimado no ano (R$) - CFURH],PAPI20_22_23[SubPDC],'Consolidaçao - 1'!H17,PAPI20_22_23[Ano previsto para início],2022)","v":0},{"$f":"SUMIFS(PAPI20_22_23[Recurso financeiro estimado no ano\n(R$) - Cobrança Estadual],PAPI20_22_23[SubPDC],'Consolidaçao - 1'!H17,PAPI20_22_23[Ano previsto para início],2022)","v":0},{"$f":"SUMIFS(PAPI20_22_23[Recurso financeiro estimado no ano\n(R$) - Cobrança Federal],PAPI20_22_23[SubPDC],'Consolidaçao - 1'!H17,PAPI20_22_23[Ano previsto para início],2022)","v":0},{"$f":"SUMIFS(PAPI20_22_23[Recurso financeiro estimado no ano (R$) - Outras],PAPI20_22_23[SubPDC],'Consolidaçao - 1'!H17,PAPI20_22_23[Ano previsto para início],2022)","v":0},0,{"$f":"SUMIFS(PAPI20_22_23[Recurso financeiro estimado no ano (R$) - CFURH],PAPI20_22_23[SubPDC],'Consolidaçao - 1'!H17,PAPI20_22_23[Ano previsto para início],2023)","v":0},{"$f":"SUMIFS(PAPI20_22_23[Recurso financeiro estimado no ano\n(R$) - Cobrança Estadual],PAPI20_22_23[SubPDC],'Consolidaçao - 1'!H17,PAPI20_22_23[Ano previsto para início],2023)","v":0},{"$f":"SUMIFS(PAPI20_22_23[Recurso financeiro estimado no ano\n(R$) - Cobrança Federal],PAPI20_22_23[SubPDC],'Consolidaçao - 1'!H17,PAPI20_22_23[Ano previsto para início],2023)","v":0},{"$f":"SUMIFS(PAPI20_22_23[Recurso financeiro estimado no ano (R$) - Outras],PAPI20_22_23[SubPDC],'Consolidaçao - 1'!H17,PAPI20_22_23[Ano previsto para início],2023)","v":0},0,0]
["3.3 - Drenagem",{"$f":"SUMIFS(#REF!,#REF!,A18,#REF!,2021)","v":{"$error":"#REF!"}},{"$f":"SUMIFS(#REF!,#REF!,A18,#REF!,2021)","v":{"$error":"#REF!"}},{"$f":"SUMIFS(#REF!,#REF!,A18,#REF!,2021)","v":{"$error":"#REF!"}},{"$f":"SUMIFS(#REF!,#REF!,A18,#REF!,2021)","v":{"$error":"#REF!"}},{"$error":"#REF!"},null,"4.3 - Mananciais",{"$f":"SUMIFS(PAPI20_22_23[Recurso financeiro estimado no ano (R$) - CFURH],PAPI20_22_23[SubPDC],'Consolidaçao - 1'!H18,PAPI20_22_23[Ano previsto para início],2022)","v":0},{"$f":"SUMIFS(PAPI20_22_23[Recurso financeiro estimado no ano\n(R$) - Cobrança Estadual],PAPI20_22_23[SubPDC],'Consolidaçao - 1'!H18,PAPI20_22_23[Ano previsto para início],2022)","v":0},{"$f":"SUMIFS(PAPI20_22_23[Recurso financeiro estimado no ano\n(R$) - Cobrança Federal],PAPI20_22_23[SubPDC],'Consolidaçao - 1'!H18,PAPI20_22_23[Ano previsto para início],2022)","v":0},{"$f":"SUMIFS(PAPI20_22_23[Recurso financeiro estimado no ano (R$) - Outras],PAPI20_22_23[SubPDC],'Consolidaçao - 1'!H18,PAPI20_22_23[Ano previsto para início],2022)","v":0},0,{"$f":"SUMIFS(PAPI20_22_23[Recurso financeiro estimado no ano (R$) - CFURH],PAPI20_22_23[SubPDC],'Consolidaçao - 1'!H18,PAPI20_22_23[Ano previsto para início],2023)","v":0},{"$f":"SUMIFS(PAPI20_22_23[Recurso financeiro estimado no ano\n(R$) - Cobrança Estadual],PAPI20_22_23[SubPDC],'Consolidaçao - 1'!H18,PAPI20_22_23[Ano previsto para início],2023)","v":0},{"$f":"SUMIFS(PAPI20_22_23[Recurso financeiro estimado no ano\n(R$) - Cobrança Federal],PAPI20_22_23[SubPDC],'Consolidaçao - 1'!H18,PAPI20_22_23[Ano previsto para início],2023)","v":0},{"$f":"SUMIFS(PAPI20_22_23[Recurso financeiro estimado no ano (R$) - Outras],PAPI20_22_23[SubPDC],'Consolidaçao - 1'!H18,PAPI20_22_23[Ano previsto para início],2023)","v":0},0,0]
["3.4 - Erosão",{"$f":"SUMIFS(#REF!,#REF!,A19,#REF!,2021)","v":{"$error":"#REF!"}},{"$f":"SUMIFS(#REF!,#REF!,A19,#REF!,2021)","v":{"$error":"#REF!"}},{"$f":"SUMIFS(#REF!,#REF!,A19,#REF!,2021)","v":{"$error":"#REF!"}},{"$f":"SUMIFS(#REF!,#REF!,A19,#REF!,2021)","v":{"$error":"#REF!"}},{"$error":"#REF!"},null,"5.1 - Perdas",{"$f":"SUMIFS(PAPI20_22_23[Recurso financeiro estimado no ano (R$) - CFURH],PAPI20_22_23[SubPDC],'Consolidaçao - 1'!H19,PAPI20_22_23[Ano previsto para início],2022)","v":0},{"$f":"SUMIFS(PAPI20_22_23[Recurso financeiro estimado no ano\n(R$) - Cobrança Estadual],PAPI20_22_23[SubPDC],'Consolidaçao - 1'!H19,PAPI20_22_23[Ano previsto para início],2022)","v":0},{"$f":"SUMIFS(PAPI20_22_23[Recurso financeiro estimado no ano\n(R$) - Cobrança Federal],PAPI20_22_23[SubPDC],'Consolidaçao - 1'!H19,PAPI20_22_23[Ano previsto para início],2022)","v":0},{"$f":"SUMIFS(PAPI20_22_23[Recurso financeiro estimado no ano (R$) - Outras],PAPI20_22_23[SubPDC],'Consolidaçao - 1'!H19,PAPI20_22_23[Ano previsto para início],2022)","v":0},0,{"$f":"SUMIFS(PAPI20_22_23[Recurso financeiro estimado no ano (R$) - CFURH],PAPI20_22_23[SubPDC],'Consolidaçao - 1'!H19,PAPI20_22_23[Ano previsto para início],2023)","v":0},{"$f":"SUMIFS(PAPI20_22_23[Recurso financeiro estimado no ano\n(R$) - Cobrança Estadual],PAPI20_22_23[SubPDC],'Consolidaçao - 1'!H19,PAPI20_22_23[Ano previsto para início],2023)","v":0},{"$f":"SUMIFS(PAPI20_22_23[Recurso financeiro estimado no ano\n(R$) - Cobrança Federal],PAPI20_22_23[SubPDC],'Consolidaçao - 1'!H19,PAPI20_22_23[Ano previsto para início],2023)","v":0},{"$f":"SUMIFS(PAPI20_22_23[Recurso financeiro estimado no ano (R$) - Outras],PAPI20_22_23[SubPDC],'Consolidaçao - 1'!H19,PAPI20_22_23[Ano previsto para início],2023)","v":0},0,0]
["3.5 - Intervenções",{"$f":"SUMIFS(#REF!,#REF!,A20,#REF!,2021)","v":{"$error":"#REF!"}},{"$f":"SUMIFS(#REF!,#REF!,A20,#REF!,2021)","v":{"$error":"#REF!"}},{"$f":"SUMIFS(#REF!,#REF!,A20,#REF!,2021)","v":{"$error":"#REF!"}},{"$f":"SUMIFS(#REF!,#REF!,A20,#REF!,2021)","v":{"$error":"#REF!"}},{"$error":"#REF!"},null,"5.2 - Racionalização",{"$f":"SUMIFS(PAPI20_22_23[Recurso financeiro estimado no ano (R$) - CFURH],PAPI20_22_23[SubPDC],'Consolidaçao - 1'!H20,PAPI20_22_23[Ano previsto para início],2022)","v":0},{"$f":"SUMIFS(PAPI20_22_23[Recurso financeiro estimado no ano\n(R$) - Cobrança Estadual],PAPI20_22_23[SubPDC],'Consolidaçao - 1'!H20,PAPI20_22_23[Ano previsto para início],2022)","v":0},{"$f":"SUMIFS(PAPI20_22_23[Recurso financeiro estimado no ano\n(R$) - Cobrança Federal],PAPI20_22_23[SubPDC],'Consolidaçao - 1'!H20,PAPI20_22_23[Ano previsto para início],2022)","v":0},{"$f":"SUMIFS(PAPI20_22_23[Recurso financeiro estimado no ano (R$) - Outras],PAPI20_22_23[SubPDC],'Consolidaçao - 1'!H20,PAPI20_22_23[Ano previsto para início],2022)","v":0},0,{"$f":"SUMIFS(PAPI20_22_23[Recurso financeiro estimado no ano (R$) - CFURH],PAPI20_22_23[SubPDC],'Consolidaçao - 1'!H20,PAPI20_22_23[Ano previsto para início],2023)","v":0},{"$f":"SUMIFS(PAPI20_22_23[Recurso financeiro estimado no ano\n(R$) - Cobrança Estadual],PAPI20_22_23[SubPDC],'Consolidaçao - 1'!H20,PAPI20_22_23[Ano previsto para início],2023)","v":0},{"$f":"SUMIFS(PAPI20_22_23[Recurso financeiro estimado no ano\n(R$) - Cobrança Federal],PAPI20_22_23[SubPDC],'Consolidaçao - 1'!H20,PAPI20_22_23[Ano previsto para início],2023)","v":0},{"$f":"SUMIFS(PAPI20_22_23[Recurso financeiro estimado no ano (R$) - Outras],PAPI20_22_23[SubPDC],'Consolidaçao - 1'!H20,PAPI20_22_23[Ano previsto para início],2023)","v":0},0,0]
["4.1 - Mananciais",{"$f":"SUMIFS(#REF!,#REF!,A21,#REF!,2021)","v":{"$error":"#REF!"}},{"$f":"SUMIFS(#REF!,#REF!,A21,#REF!,2021)","v":{"$error":"#REF!"}},{"$f":"SUMIFS(#REF!,#REF!,A21,#REF!,2021)","v":{"$error":"#REF!"}},{"$f":"SUMIFS(#REF!,#REF!,A21,#REF!,2021)","v":{"$error":"#REF!"}},{"$error":"#REF!"},null,"5.3 - Reuso",{"$f":"SUMIFS(PAPI20_22_23[Recurso financeiro estimado no ano (R$) - CFURH],PAPI20_22_23[SubPDC],'Consolidaçao - 1'!H21,PAPI20_22_23[Ano previsto para início],2022)","v":0},{"$f":"SUMIFS(PAPI20_22_23[Recurso financeiro estimado no ano\n(R$) - Cobrança Estadual],PAPI20_22_23[SubPDC],'Consolidaçao - 1'!H21,PAPI20_22_23[Ano previsto para início],2022)","v":0},{"$f":"SUMIFS(PAPI20_22_23[Recurso financeiro estimado no ano\n(R$) - Cobrança Federal],PAPI20_22_23[SubPDC],'Consolidaçao - 1'!H21,PAPI20_22_23[Ano previsto para início],2022)","v":0},{"$f":"SUMIFS(PAPI20_22_23[Recurso financeiro estimado no ano (R$) - Outras],PAPI20_22_23[SubPDC],'Consolidaçao - 1'!H21,PAPI20_22_23[Ano previsto para início],2022)","v":0},0,{"$f":"SUMIFS(PAPI20_22_23[Recurso financeiro estimado no ano (R$) - CFURH],PAPI20_22_23[SubPDC],'Consolidaçao - 1'!H21,PAPI20_22_23[Ano previsto para início],2023)","v":0},{"$f":"SUMIFS(PAPI20_22_23[Recurso financeiro estimado no ano\n(R$) - Cobrança Estadual],PAPI20_22_23[SubPDC],'Consolidaçao - 1'!H21,PAPI20_22_23[Ano previsto para início],2023)","v":0},{"$f":"SUMIFS(PAPI20_22_23[Recurso financeiro estimado no ano\n(R$) - Cobrança Federal],PAPI20_22_23[SubPDC],'Consolidaçao - 1'!H21,PAPI20_22_23[Ano previsto para início],2023)","v":0},{"$f":"SUMIFS(PAPI20_22_23[Recurso financeiro estimado no ano (R$) - Outras],PAPI20_22_23[SubPDC],'Consolidaçao - 1'!H21,PAPI20_22_23[Ano previsto para início],2023)","v":0},0,0]
["4.2 - Vegetação",{"$f":"SUMIFS(#REF!,#REF!,A22,#REF!,2021)","v":{"$error":"#REF!"}},{"$f":"SUMIFS(#REF!,#REF!,A22,#REF!,2021)","v":{"$error":"#REF!"}},{"$f":"SUMIFS(#REF!,#REF!,A22,#REF!,2021)","v":{"$error":"#REF!"}},{"$f":"SUMIFS(#REF!,#REF!,A22,#REF!,2021)","v":{"$error":"#REF!"}},{"$error":"#REF!"},null,"6.1 - Captação",{"$f":"SUMIFS(PAPI20_22_23[Recurso financeiro estimado no ano (R$) - CFURH],PAPI20_22_23[SubPDC],'Consolidaçao - 1'!H22,PAPI20_22_23[Ano previsto para início],2022)","v":0},{"$f":"SUMIFS(PAPI20_22_23[Recurso financeiro estimado no ano\n(R$) - Cobrança Estadual],PAPI20_22_23[SubPDC],'Consolidaçao - 1'!H22,PAPI20_22_23[Ano previsto para início],2022)","v":0},{"$f":"SUMIFS(PAPI20_22_23[Recurso financeiro estimado no ano\n(R$) - Cobrança Federal],PAPI20_22_23[SubPDC],'Consolidaçao - 1'!H22,PAPI20_22_23[Ano previsto para início],2022)","v":0},{"$f":"SUMIFS(PAPI20_22_23[Recurso financeiro estimado no ano (R$) - Outras],PAPI20_22_23[SubPDC],'Consolidaçao - 1'!H22,PAPI20_22_23[Ano previsto para início],2022)","v":0},0,{"$f":"SUMIFS(PAPI20_22_23[Recurso financeiro estimado no ano (R$) - CFURH],PAPI20_22_23[SubPDC],'Consolidaçao - 1'!H22,PAPI20_22_23[Ano previsto para início],2023)","v":0},{"$f":"SUMIFS(PAPI20_22_23[Recurso financeiro estimado no ano\n(R$) - Cobrança Estadual],PAPI20_22_23[SubPDC],'Consolidaçao - 1'!H22,PAPI20_22_23[Ano previsto para início],2023)","v":0},{"$f":"SUMIFS(PAPI20_22_23[Recurso financeiro estimado no ano\n(R$) - Cobrança Federal],PAPI20_22_23[SubPDC],'Consolidaçao - 1'!H22,PAPI20_22_23[Ano previsto para início],2023)","v":0},{"$f":"SUMIFS(PAPI20_22_23[Recurso financeiro estimado no ano (R$) - Outras],PAPI20_22_23[SubPDC],'Consolidaçao - 1'!H22,PAPI20_22_23[Ano previsto para início],2023)","v":0},0,0]
["5.1 - Perdas",{"$f":"SUMIFS(#REF!,#REF!,A23,#REF!,2021)","v":{"$error":"#REF!"}},{"$f":"SUMIFS(#REF!,#REF!,A23,#REF!,2021)","v":{"$error":"#REF!"}},{"$f":"SUMIFS(#REF!,#REF!,A23,#REF!,2021)","v":{"$error":"#REF!"}},{"$f":"SUMIFS(#REF!,#REF!,A23,#REF!,2021)","v":{"$error":"#REF!"}},{"$error":"#REF!"},null,"6.2 - Regularização",{"$f":"SUMIFS(PAPI20_22_23[Recurso financeiro estimado no ano (R$) - CFURH],PAPI20_22_23[SubPDC],'Consolidaçao - 1'!H23,PAPI20_22_23[Ano previsto para início],2022)","v":0},{"$f":"SUMIFS(PAPI20_22_23[Recurso financeiro estimado no ano\n(R$) - Cobrança Estadual],PAPI20_22_23[SubPDC],'Consolidaçao - 1'!H23,PAPI20_22_23[Ano previsto para início],2022)","v":0},{"$f":"SUMIFS(PAPI20_22_23[Recurso financeiro estimado no ano\n(R$) - Cobrança Federal],PAPI20_22_23[SubPDC],'Consolidaçao - 1'!H23,PAPI20_22_23[Ano previsto para início],2022)","v":0},{"$f":"SUMIFS(PAPI20_22_23[Recurso financeiro estimado no ano (R$) - Outras],PAPI20_22_23[SubPDC],'Consolidaçao - 1'!H23,PAPI20_22_23[Ano previsto para início],2022)","v":0},0,{"$f":"SUMIFS(PAPI20_22_23[Recurso financeiro estimado no ano (R$) - CFURH],PAPI20_22_23[SubPDC],'Consolidaçao - 1'!H23,PAPI20_22_23[Ano previsto para início],2023)","v":0},{"$f":"SUMIFS(PAPI20_22_23[Recurso financeiro estimado no ano\n(R$) - Cobrança Estadual],PAPI20_22_23[SubPDC],'Consolidaçao - 1'!H23,PAPI20_22_23[Ano previsto para início],2023)","v":0},{"$f":"SUMIFS(PAPI20_22_23[Recurso financeiro estimado no ano\n(R$) - Cobrança Federal],PAPI20_22_23[SubPDC],'Consolidaçao - 1'!H23,PAPI20_22_23[Ano previsto para início],2023)","v":0},{"$f":"SUMIFS(PAPI20_22_23[Recurso financeiro estimado no ano (R$) - Outras],PAPI20_22_23[SubPDC],'Consolidaçao - 1'!H23,PAPI20_22_23[Ano previsto para início],2023)","v":0},0,0]
["5.2 - Racionalização",{"$f":"SUMIFS(#REF!,#REF!,A24,#REF!,2021)","v":{"$error":"#REF!"}},{"$f":"SUMIFS(#REF!,#REF!,A24,#REF!,2021)","v":{"$error":"#REF!"}},{"$f":"SUMIFS(#REF!,#REF!,A24,#REF!,2021)","v":{"$error":"#REF!"}},{"$f":"SUMIFS(#REF!,#REF!,A24,#REF!,2021)","v":{"$error":"#REF!"}},{"$error":"#REF!"},null,"7.1 - Drenagem",{"$f":"SUMIFS(PAPI20_22_23[Recurso financeiro estimado no ano (R$) - CFURH],PAPI20_22_23[SubPDC],'Consolidaçao - 1'!H24,PAPI20_22_23[Ano previsto para início],2022)","v":0},{"$f":"SUMIFS(PAPI20_22_23[Recurso financeiro estimado no ano\n(R$) - Cobrança Estadual],PAPI20_22_23[SubPDC],'Consolidaçao - 1'!H24,PAPI20_22_23[Ano previsto para início],2022)","v":0},{"$f":"SUMIFS(PAPI20_22_23[Recurso financeiro estimado no ano\n(R$) - Cobrança Federal],PAPI20_22_23[SubPDC],'Consolidaçao - 1'!H24,PAPI20_22_23[Ano previsto para início],2022)","v":0},{"$f":"SUMIFS(PAPI20_22_23[Recurso financeiro estimado no ano (R$) - Outras],PAPI20_22_23[SubPDC],'Consolidaçao - 1'!H24,PAPI20_22_23[Ano previsto para início],2022)","v":0},0,{"$f":"SUMIFS(PAPI20_22_23[Recurso financeiro estimado no ano (R$) - CFURH],PAPI20_22_23[SubPDC],'Consolidaçao - 1'!H24,PAPI20_22_23[Ano previsto para início],2023)","v":0},{"$f":"SUMIFS(PAPI20_22_23[Recurso financeiro estimado no ano\n(R$) - Cobrança Estadual],PAPI20_22_23[SubPDC],'Consolidaçao - 1'!H24,PAPI20_22_23[Ano previsto para início],2023)","v":0},{"$f":"SUMIFS(PAPI20_22_23[Recurso financeiro estimado no ano\n(R$) - Cobrança Federal],PAPI20_22_23[SubPDC],'Consolidaçao - 1'!H24,PAPI20_22_23[Ano previsto para início],2023)","v":0},{"$f":"SUMIFS(PAPI20_22_23[Recurso financeiro estimado no ano (R$) - Outras],PAPI20_22_23[SubPDC],'Consolidaçao - 1'!H24,PAPI20_22_23[Ano previsto para início],2023)","v":0},0,0]
["5.3 - Reuso",{"$f":"SUMIFS(#REF!,#REF!,A25,#REF!,2021)","v":{"$error":"#REF!"}},{"$f":"SUMIFS(#REF!,#REF!,A25,#REF!,2021)","v":{"$error":"#REF!"}},{"$f":"SUMIFS(#REF!,#REF!,A25,#REF!,2021)","v":{"$error":"#REF!"}},{"$f":"SUMIFS(#REF!,#REF!,A25,#REF!,2021)","v":{"$error":"#REF!"}},{"$error":"#REF!"},null,"7.2 - Escassez",{"$f":"SUMIFS(PAPI20_22_23[Recurso financeiro estimado no ano (R$) - CFURH],PAPI20_22_23[SubPDC],'Consolidaçao - 1'!H25,PAPI20_22_23[Ano previsto para início],2022)","v":0},{"$f":"SUMIFS(PAPI20_22_23[Recurso financeiro estimado no ano\n(R$) - Cobrança Estadual],PAPI20_22_23[SubPDC],'Consolidaçao - 1'!H25,PAPI20_22_23[Ano previsto para início],2022)","v":0},{"$f":"SUMIFS(PAPI20_22_23[Recurso financeiro estimado no ano\n(R$) - Cobrança Federal],PAPI20_22_23[SubPDC],'Consolidaçao - 1'!H25,PAPI20_22_23[Ano previsto para início],2022)","v":0},{"$f":"SUMIFS(PAPI20_22_23[Recurso financeiro estimado no ano (R$) - Outras],PAPI20_22_23[SubPDC],'Consolidaçao - 1'!H25,PAPI20_22_23[Ano previsto para início],2022)","v":0},0,{"$f":"SUMIFS(PAPI20_22_23[Recurso financeiro estimado no ano (R$) - CFURH],PAPI20_22_23[SubPDC],'Consolidaçao - 1'!H25,PAPI20_22_23[Ano previsto para início],2023)","v":0},{"$f":"SUMIFS(PAPI20_22_23[Recurso financeiro estimado no ano\n(R$) - Cobrança Estadual],PAPI20_22_23[SubPDC],'Consolidaçao - 1'!H25,PAPI20_22_23[Ano previsto para início],2023)","v":0},{"$f":"SUMIFS(PAPI20_22_23[Recurso financeiro estimado no ano\n(R$) - Cobrança Federal],PAPI20_22_23[SubPDC],'Consolidaçao - 1'!H25,PAPI20_22_23[Ano previsto para início],2023)","v":0},{"$f":"SUMIFS(PAPI20_22_23[Recurso financeiro estimado no ano (R$) - Outras],PAPI20_22_23[SubPDC],'Consolidaçao - 1'!H25,PAPI20_22_23[Ano previsto para início],2023)","v":0},0,0]
["6.1 - Usos",{"$f":"SUMIFS(#REF!,#REF!,A26,#REF!,2021)","v":{"$error":"#REF!"}},{"$f":"SUMIFS(#REF!,#REF!,A26,#REF!,2021)","v":{"$error":"#REF!"}},{"$f":"SUMIFS(#REF!,#REF!,A26,#REF!,2021)","v":{"$error":"#REF!"}},{"$f":"SUMIFS(#REF!,#REF!,A26,#REF!,2021)","v":{"$error":"#REF!"}},{"$error":"#REF!"},null,"8.1 - Capacitação",{"$f":"SUMIFS(PAPI20_22_23[Recurso financeiro estimado no ano (R$) - CFURH],PAPI20_22_23[SubPDC],'Consolidaçao - 1'!H26,PAPI20_22_23[Ano previsto para início],2022)","v":0},{"$f":"SUMIFS(PAPI20_22_23[Recurso financeiro estimado no ano\n(R$) - Cobrança Estadual],PAPI20_22_23[SubPDC],'Consolidaçao - 1'!H26,PAPI20_22_23[Ano previsto para início],2022)","v":0},{"$f":"SUMIFS(PAPI20_22_23[Recurso financeiro estimado no ano\n(R$) - Cobrança Federal],PAPI20_22_23[SubPDC],'Consolidaçao - 1'!H26,PAPI20_22_23[Ano previsto para início],2022)","v":0},{"$f":"SUMIFS(PAPI20_22_23[Recurso financeiro estimado no ano (R$) - Outras],PAPI20_22_23[SubPDC],'Consolidaçao - 1'!H26,PAPI20_22_23[Ano previsto para início],2022)","v":0},0,{"$f":"SUMIFS(PAPI20_22_23[Recurso financeiro estimado no ano (R$) - CFURH],PAPI20_22_23[SubPDC],'Consolidaçao - 1'!H26,PAPI20_22_23[Ano previsto para início],2023)","v":0},{"$f":"SUMIFS(PAPI20_22_23[Recurso financeiro estimado no ano\n(R$) - Cobrança Estadual],PAPI20_22_23[SubPDC],'Consolidaçao - 1'!H26,PAPI20_22_23[Ano previsto para início],2023)","v":0},{"$f":"SUMIFS(PAPI20_22_23[Recurso financeiro estimado no ano\n(R$) - Cobrança Federal],PAPI20_22_23[SubPDC],'Consolidaçao - 1'!H26,PAPI20_22_23[Ano previsto para início],2023)","v":0},{"$f":"SUMIFS(PAPI20_22_23[Recurso financeiro estimado no ano (R$) - Outras],PAPI20_22_23[SubPDC],'Consolidaçao - 1'!H26,PAPI20_22_23[Ano previsto para início],2023)","v":0},0,0]
["6.2 - Segurança",{"$f":"SUMIFS(#REF!,#REF!,A27,#REF!,2021)","v":{"$error":"#REF!"}},{"$f":"SUMIFS(#REF!,#REF!,A27,#REF!,2021)","v":{"$error":"#REF!"}},{"$f":"SUMIFS(#REF!,#REF!,A27,#REF!,2021)","v":{"$error":"#REF!"}},{"$f":"SUMIFS(#REF!,#REF!,A27,#REF!,2021)","v":{"$error":"#REF!"}},{"$error":"#REF!"},null,"8.2 - Educação",{"$f":"SUMIFS(PAPI20_22_23[Recurso financeiro estimado no ano (R$) - CFURH],PAPI20_22_23[SubPDC],'Consolidaçao - 1'!H27,PAPI20_22_23[Ano previsto para início],2022)","v":0},{"$f":"SUMIFS(PAPI20_22_23[Recurso financeiro estimado no ano\n(R$) - Cobrança Estadual],PAPI20_22_23[SubPDC],'Consolidaçao - 1'!H27,PAPI20_22_23[Ano previsto para início],2022)","v":0},{"$f":"SUMIFS(PAPI20_22_23[Recurso financeiro estimado no ano\n(R$) - Cobrança Federal],PAPI20_22_23[SubPDC],'Consolidaçao - 1'!H27,PAPI20_22_23[Ano previsto para início],2022)","v":0},{"$f":"SUMIFS(PAPI20_22_23[Recurso financeiro estimado no ano (R$) - Outras],PAPI20_22_23[SubPDC],'Consolidaçao - 1'!H27,PAPI20_22_23[Ano previsto para início],2022)","v":0},0,{"$f":"SUMIFS(PAPI20_22_23[Recurso financeiro estimado no ano (R$) - CFURH],PAPI20_22_23[SubPDC],'Consolidaçao - 1'!H27,PAPI20_22_23[Ano previsto para início],2023)","v":0},{"$f":"SUMIFS(PAPI20_22_23[Recurso financeiro estimado no ano\n(R$) - Cobrança Estadual],PAPI20_22_23[SubPDC],'Consolidaçao - 1'!H27,PAPI20_22_23[Ano previsto para início],2023)","v":0},{"$f":"SUMIFS(PAPI20_22_23[Recurso financeiro estimado no ano\n(R$) - Cobrança Federal],PAPI20_22_23[SubPDC],'Consolidaçao - 1'!H27,PAPI20_22_23[Ano previsto para início],2023)","v":0},{"$f":"SUMIFS(PAPI20_22_23[Recurso financeiro estimado no ano (R$) - Outras],PAPI20_22_23[SubPDC],'Consolidaçao - 1'!H27,PAPI20_22_23[Ano previsto para início],2023)","v":0},0,0]
["6.3 - Aproveitamento",{"$f":"SUMIFS(#REF!,#REF!,A28,#REF!,2021)","v":{"$error":"#REF!"}},{"$f":"SUMIFS(#REF!,#REF!,A28,#REF!,2021)","v":{"$error":"#REF!"}},{"$f":"SUMIFS(#REF!,#REF!,A28,#REF!,2021)","v":{"$error":"#REF!"}},{"$f":"SUMIFS(#REF!,#REF!,A28,#REF!,2021)","v":{"$error":"#REF!"}},{"$error":"#REF!"},null,"8.3 - Comunicação",{"$f":"SUMIFS(PAPI20_22_23[Recurso financeiro estimado no ano (R$) - CFURH],PAPI20_22_23[SubPDC],'Consolidaçao - 1'!H28,PAPI20_22_23[Ano previsto para início],2022)","v":0},{"$f":"SUMIFS(PAPI20_22_23[Recurso financeiro estimado no ano\n(R$) - Cobrança Estadual],PAPI20_22_23[SubPDC],'Consolidaçao - 1'!H28,PAPI20_22_23[Ano previsto para início],2022)","v":0},{"$f":"SUMIFS(PAPI20_22_23[Recurso financeiro estimado no ano\n(R$) - Cobrança Federal],PAPI20_22_23[SubPDC],'Consolidaçao - 1'!H28,PAPI20_22_23[Ano previsto para início],2022)","v":0},{"$f":"SUMIFS(PAPI20_22_23[Recurso financeiro estimado no ano (R$) - Outras],PAPI20_22_23[SubPDC],'Consolidaçao - 1'!H28,PAPI20_22_23[Ano previsto para início],2022)","v":0},0,{"$f":"SUMIFS(PAPI20_22_23[Recurso financeiro estimado no ano (R$) - CFURH],PAPI20_22_23[SubPDC],'Consolidaçao - 1'!H28,PAPI20_22_23[Ano previsto para início],2023)","v":0},{"$f":"SUMIFS(PAPI20_22_23[Recurso financeiro estimado no ano\n(R$) - Cobrança Estadual],PAPI20_22_23[SubPDC],'Consolidaçao - 1'!H28,PAPI20_22_23[Ano previsto para início],2023)","v":0},{"$f":"SUMIFS(PAPI20_22_23[Recurso financeiro estimado no ano\n(R$) - Cobrança Federal],PAPI20_22_23[SubPDC],'Consolidaçao - 1'!H28,PAPI20_22_23[Ano previsto para início],2023)","v":0},{"$f":"SUMIFS(PAPI20_22_23[Recurso financeiro estimado no ano (R$) - Outras],PAPI20_22_23[SubPDC],'Consolidaçao - 1'!H28,PAPI20_22_23[Ano previsto para início],2023)","v":0},0,0]
["7.1 - Criticidades",{"$f":"SUMIFS(#REF!,#REF!,A29,#REF!,2021)","v":{"$error":"#REF!"}},{"$f":"SUMIFS(#REF!,#REF!,A29,#REF!,2021)","v":{"$error":"#REF!"}},{"$f":"SUMIFS(#REF!,#REF!,A29,#REF!,2021)","v":{"$error":"#REF!"}},{"$f":"SUMIFS(#REF!,#REF!,A29,#REF!,2021)","v":{"$error":"#REF!"}},{"$error":"#REF!"}]
["7.2 - Inundações",{"$f":"SUMIFS(#REF!,#REF!,A30,#REF!,2021)","v":{"$error":"#REF!"}},{"$f":"SUMIFS(#REF!,#REF!,A30,#REF!,2021)","v":{"$error":"#REF!"}},{"$f":"SUMIFS(#REF!,#REF!,A30,#REF!,2021)","v":{"$error":"#REF!"}},{"$f":"SUMIFS(#REF!,#REF!,A30,#REF!,2021)","v":{"$error":"#REF!"}},{"$error":"#REF!"},null,"Delib. 246","PDC 1 e 2","Prioritário","Não Prioritário"]
["7.3 - Estiagens",{"$f":"SUMIFS(#REF!,#REF!,A31,#REF!,2021)","v":{"$error":"#REF!"}},{"$f":"SUMIFS(#REF!,#REF!,A31,#REF!,2021)","v":{"$error":"#REF!"}},{"$f":"SUMIFS(#REF!,#REF!,A31,#REF!,2021)","v":{"$error":"#REF!"}},{"$f":"SUMIFS(#REF!,#REF!,A31,#REF!,2021)","v":{"$error":"#REF!"}},{"$error":"#REF!"},null,"SubPDC",{"$f":"SUMIF(#REF!,I$30,PAPI20_22_23[Recurso financeiro estimado no ano\n(R$)])","v":{"$error":"#REF!"}},{"$f":"SUMIF(#REF!,J$30,PAPI20_22_23[Recurso financeiro estimado no ano\n(R$)])","v":{"$error":"#REF!"}},{"$f":"SUMIF(#REF!,K$30,PAPI20_22_23[Recurso financeiro estimado no ano\n(R$)])","v":{"$error":"#REF!"}}]
["8.1 - Capacitação",{"$f":"SUMIFS(#REF!,#REF!,A32,#REF!,2021)","v":{"$error":"#REF!"}},{"$f":"SUMIFS(#REF!,#REF!,A32,#REF!,2021)","v":{"$error":"#REF!"}},{"$f":"SUMIFS(#REF!,#REF!,A32,#REF!,2021)","v":{"$error":"#REF!"}},{"$f":"SUMIFS(#REF!,#REF!,A32,#REF!,2021)","v":{"$error":"#REF!"}},{"$error":"#REF!"},null,null,{"$f":"IFERROR(I31/SUM(I31:K31),\"\")","v":""},{"$f":"IFERROR(J31/SUM(I31:K31),\"\")","v":""},{"$f":"IFERROR(K31/SUM(I31:K31),\"\")","v":""}]
["8.2 - Educação",{"$f":"SUMIFS(#REF!,#REF!,A33,#REF!,2021)","v":{"$error":"#REF!"}},{"$f":"SUMIFS(#REF!,#REF!,A33,#REF!,2021)","v":{"$error":"#REF!"}},{"$f":"SUMIFS(#REF!,#REF!,A33,#REF!,2021)","v":{"$error":"#REF!"}},{"$f":"SUMIFS(#REF!,#REF!,A33,#REF!,2021)","v":{"$error":"#REF!"}},{"$error":"#REF!"}]
["8.3 - Comunicação",{"$f":"SUMIFS(#REF!,#REF!,A34,#REF!,2021)","v":{"$error":"#REF!"}},{"$f":"SUMIFS(#REF!,#REF!,A34,#REF!,2021)","v":{"$error":"#REF!"}},{"$f":"SUMIFS(#REF!,#REF!,A34,#REF!,2021)","v":{"$error":"#REF!"}},{"$f":"SUMIFS(#REF!,#REF!,A34,#REF!,2021)","v":{"$error":"#REF!"}},{"$error":"#REF!"}]
[]
["Delib. 190","PDC 1 e 2","Prioritário","Não Prioritário"]
["SubPDC",{"$f":"SUMIF(#REF!,B$36,#REF!)","v":{"$error":"#REF!"}},{"$f":"SUMIF(#REF!,C$36,#REF!)","v":{"$error":"#REF!"}},{"$f":"SUMIF(#REF!,D$36,#REF!)","v":{"$error":"#REF!"}}]
[null,{"$f":"B37/SUM(B37:D37)","v":{"$error":"#REF!"}},{"$f":"C37/SUM(B37:D37)","v":{"$error":"#REF!"}},{"$f":"D37/SUM(B37:D37)","v":{"$error":"#REF!"}}]

{"sheet":"Consolidaçao - 2","index":6,"n_rows":2,"n_cols":1,"rows_kept":2,"cut":false,"hidden":true,"merged":[]}
["Para atualizar, vá em Dados --> Atualizar Tudo ou aperte"]
["CTRL + Alt + F5"]

{"sheet":"Orientações","index":7,"n_rows":17,"n_cols":3,"rows_kept":17,"cut":false,"hidden":false,"merged":[]}
[null,null,"MELHOR VISUALIZADO no Office 365"]
[]
[null,null,"Este modelo de PAPI para o quadriênio 2024-2027 tem uma estrutura distinta dos enviados nos outros períodos/anos, pois ele contempla tanto o PAPI 24-27 e seu acompanhamento, quanto o acompanhamento do PAPI anterior."]
[null,null,"Está dividido em multiplas  planilhas (\"abas\"), estruturadas em dois grupos: PAPI 24-27 e PAPI 20-23 (Acompanhamento). A expectativa é que a mesma planilha sirva para todo o quadriênio."]
[]
[]
[]
[null,"A","PAPI 2024-2027"]
[null,null,"Compreende quatro planilhas (\"abas\") e se refere ao planejamento e acompanhamento do PAPI - 24-27. "]
[null,1,"Identificação das ações - 24-27\" - Compreende a indicação das ações previstas para o PAPI 2024-2027. Sugere-se a indicação do que será produzido/realizado com o recurso pleiteado, considerando a esfera de atuação direta do CBH. Envolve um fluxo de atividades a serem executadas para entregar um produto final. Preencher TODAS  informações das colunas também de forma sequencial (esquerda para direita)."]
[null,2,"Acompanhamento das metas 24-27 - Compreende a indicação e o acompanhamento da execução das Metas (do quadriênio e anuais).Devem ser quantificáveis e mensuráveis por meio de indicadores que reflitam as mudanças para as quais espera-se que as intervenções previstos pelas ações propostas influenciem."]
[null,3,"Acomp. Financeiro  24-27  -  Acompanhamento das previsões dos valores (R$) planejados, disponbilizados e executados. Para esta primeira etapa, só precisam ser preenchidos os valores Planejados (colunas em roxo). O acompanhamento se dará ao longo do quadriênio."]
[null,4,"PAPI 2024-2027 - Resultado automático do preenchimento anterior. Somente as ações sem recursos financeiros previstos deve ser preenchida. As demais são inseridas automaticamente. É o conteúdo mínimo do PAPI 24/27 que deve ser deliberado e referendado nas revisões anuais."]
[]
[null,"B","ACOMPANHAMENTO -  PAPI 20-23"]
[null,null,"Compreende o acompanhamento das ações iniciadas no quadriênio anterior. Como grande parte delas ainda está em execução,  ideal é monitorar, na medida do possível, sua execução."]
[null,1,"Serão utilizadas as mesmas planilhas do ano anterior, que devem ser incorporadas no presente arquivo. Observar as duas colunas na cor roxa, relativa ao acompanhamento 2024. As outras colunas devem ser copiadas do último PAPI aprovado. Como se trata do acompanhamento de 2024 dessas ações, só será iniciado em 2025."]

{"sheet":"Acomp. - PAPI_21 (Delib. 190) ","index":8,"n_rows":22,"n_cols":12,"rows_kept":22,"cut":false,"hidden":false,"merged":[]}
["ID Ação","Ano","SubPDC","Prioridade do SubPDC","Ação","Meta","% Execução da meta","Segmento do executor","Área de abrangência","Nome da área de abrangência","Recurso financeiro executado no ano (R$)","Justificativa sobre execução física e financeira em 2024"]
["RB012021",2021,"1.1 - SI","PDC 1 e 2","Desenvolver projetos executivos de microdrenagem para os municípios da UGRHI 11","Elaborar 23 projetos de microdrenagem até 2027",null,"Município","Município","UGRHI 11"]
["RB022021",2021,"1.1 - SI","PDC 1 e 2","Elaborar ou Revisar os Planos Municipais de Resíduos Sólidos","Elaborar e implantar 23 Planos Municipais de Resíduos Sólidos até 2023",null,"Sociedade Civil","Município","Cananéia, Itarirí e Tapiraí"]
["RB032021",2021,"1.1 - SI","PDC 1 e 2","Atualização de tecnologias, site responsivo (acesso pelo celular), segurança e identidade visual e remodelação do site do SIG-RB","Renovação do Sistema de Informações Geográficas com atualização tecnológica do sistema operacional até 2022",null,"Sociedade Civil","Município","UGRHI 11"]
["RB042021",2021,"1.4 - Monitoramento","PDC 1 e 2","Instalação de novos pontos de monitoramento fluviométrico e realizar reparos necessários nos pontos existentes e atualização do sistema de informação","Ampliação com instalação de 8 postos hidrométricos e manutenção da rede de monitoramento hidrológico, sendo 4 postos  em 2021 e 4 postos em 2022.",null,"Sociedade Civil","UGRHi","UGRHI 11"]
["RB052021",2021,"2.2 - Outorga","PDC 1 e 2","Campanha de comunicação social e sensibilização; Capacitação e mobilização sobre a importância e os procedimentos para cadastro e outorga. (CBH-RB)","Produzir material e atualizar o cadastro de outorga do DAEE",null,"Estado","Região Hidrográfica","Vertente Litorânea"]
["RB062021",2021,"2.6 - CORHI","PDC 1 e 2","Execução de reforma predial e aquisição de material permanente em 2021","Adequação da infraestrutura da Secretaria Executiva",null,"Sociedade Civil","Área urbana (bairro; via de circulação; distrito; praça; parque; etc.)","Rua Félix Aby-Azar, 442\nCentro - Registro/SP"]
["RB072021",2021,"2.6 - CORHI","PDC 1 e 2","Instalação de uma sala com equipamentos de informática e multimídia, para o funcionamento da CT-APRM-AJSL","Consolidar a infrastrutura de apoio para CT-APRM-AJ/SL em 2021",null,"Município","Município","Juquitiba e São Lourenço da Serra"]
["RB082021",2021,"3.1 - Efluentes","Prioritário","Contratação e execução de unidades de saneamento individual (USI)","Implantação de 20 empreendimentos de saneamento na área rural da UGRHI 11 até 2023",null,"Município","Município","Barra do Turvo, Iguape, Iporanga, Itaóca, Juquiá, Juquitiba, Miracatu e Ilha Comprida"]
["RB092021",2021,"3.2 - Resíduos","Prioritário","Implantar, ampliar ou manter a coleta seletiva nos municípios","Implantação ou manutenção de 8 empreendimentos de coleta seletiva nos municípios da UGRHI até 2023",null,"Município","Município","Iporanga"]
["RB102021",2021,"3.4 - Erosão","Prioritário","Executar 3 obras de Combate a erosão de cursos d'água entre 2021 a 2023","Reazlizar 4 Obras e ações de proteção e controle da erosão do solo ou do assoreamento dos corpos d'água até 2023",null,"Município","Município","UGRHI 11"]
["RB112021",2021,"4.2 - Vegetação","Prioritário","Executar projeto de Diagnóstico, prognóstico e plano de ação","Implantar 1 projeto de Pagamentos por Serviços Ambientais  - PSA na UGRHI 11 em 2021 e 2023",null,"Sociedade Civil","UGRHi","UGRHI 11"]
["RB122021",2021,"4.2 - Vegetação","Prioritário","Recuperar as APPs conforme o Plano Diretor de Mata Ciliares do CBH-RB","Elaborar e executar 2 projetos de recuperação de APPs, em 2021 e 2023",null,"Sociedade Civil","Município","Município"]
["RB132021",2021,"4.2 - Vegetação","Não prioritário","Contratar Projeto (básico ou executivo) para garantir a oferta de água para o abastecimento das populações urbanas e rurais e a dessedentação animal.","Desenvolvimento de 1 estudo de concepção e projeto executivo do sistema de abastecimento  da Vila Barra do Uma",null,"Município","Município","Peruíbe"]
["RB142021",2021,"7.1 - Criticidades","Prioritário","Instalação de sala com equipamentos de informática e multimídia para monitoramento e sistemas de alerta nos municípios com histórico de inundação","Instalação de 2 Salas de Situação para monitoramento de eventos extremos e sistemas de suporte e decisão em apoio a ações de Defesa Civil, sendo 1 em 2021 e 1 em 2023",null,"Município","Município","UGRHI 11"]
["RB152021",2021,"7.1 - Criticidades","Prioritário","Desenvolver Planos de Proteção e Prevenção de Defesa Civil até 2021, para os municípios de Barra do Chapéu, Itaóca, Itapirapuã Paulista, Juquitiba, Ribeira e S. Lourenço da Serra","Apoio às medidas não estruturais contra inundações e apoio às atividades de Defesa Civil, por meio de elaboração de 6 Planos Preventivos de Proteção e Defesa Civil em 3 municípios em 2020 e 3 municípios em 2021",null,"Sociedade Civil","Município","Barra do Chapéu, Itaóca, Itapirapuã Paulista, Juquitiba, Ribeira e S. Lourenço da Serra"]
["RB162021",2021,"7.1 - Criticidades","Prioritário","Execução de serviços e obras para contenção de inundações ou alagamentos.","Executar 12 empreendimentos estruturais visando mitigar os impactos das inundações até 2023",null,"Município","Município","Pariquera-Açu e Sete Barras"]
["RB172021",2021,"8.1 - Capacitação","Não prioritário","Promover debates periódicos sobre mecanismos de pagamento por serviços ambientais, práticas ambientais sustentáveis e legislação Ambiental (1,5 evento/ano)","Realizar um evento a cada 3 anos de pagamento de serviços ambientais, práticas ambientais sustentáveis e legislação Ambiental  pertinente para agricultores ",null,"Sociedade Civil","UGRHi","UGRHI 11"]
["RB182021",2021,"8.2 - Educação","Não prioritário","Realizar ações de educação ambiental (sensibilização e mobilização social) nos temas: recursos hídricos, participação, meio ambiente, poluição, mata ciliar, práticas sustentáveis, resíduos sólidos, defesa civil, solos e arborização urbana, para os seguintes públicos: estudantes, agricultores, pescadores, comunidades tradicionais, catadores, população em geral; via projetos Fehidro ","Realizar 1 projeto por ano em 2020, 2021, 2022 e 2023, contemplando ações de educação ambiental",null,"Sociedade Civil","UGRHi","UGRHI 11"]
["RB192021",2021,"8.2 - Educação","Não prioritário","Oficinas de capacitação em recursos hídricos para educadores","Realizar 1 projeto em 2021 e 1 projeto em 2023",null,"Sociedade Civil","UGRHi","UGRHI 11"]
["RB202021",2021,"8.2 - Educação","Não prioritário","Reproduzir material de apoio (kit água)  a cada biênio","Inserção da temática de água e meio ambiente na sociedade",null,"Sociedade Civil","UGRHi","UGRHI 11"]
["RB212021",2021,"8.3 - Comunicação","Não prioritário","Execução de projetos bianuais de elaboração de releases, boletins informativos e operação das ferramentas de comunicação","Ampliar comunicação  do CBH internamente e com público em geral (plano de comunicação elaborado)",null,"Sociedade Civil","UGRHi","UGRHI 11"]

{"sheet":"Acomp. PAPI_22_23 (Delib. 246) ","index":9,"n_rows":33,"n_cols":11,"rows_kept":33,"cut":false,"hidden":false,"merged":[]}
["ID Ação","Ano","SubPDC","Prioridade do SubPDC","Ação","Meta","% Execução da meta","Segmento do executor","Área de abrangência","Nome da área de abrangência","Justificativa sobre execução física e financeira em 2024"]
["RB012022",2022,"1.2 - Planejamento","PDC 1 e 2","Elaborar ou Revisar os Planos Municipais de Resíduos Sólidos","Elaborar ou revisar 23 Planos Municipais de Resíduos Sólidos até 2023",null,"Sociedade civil","UGRHi",11]
["RB022022",2022,"1.2 - Planejamento","PDC 1 e 2","Contratar o serviço técnico para os trabalhos de atualização e revisão do Plano Diretor de Educação ambiental","Atualizar e revisar Plano Diretor de Educação ambiental em 2022",null,"Município","UGRHi",11]
["RB032022",2022,"2.5 - Monitoramento e SI","PDC 1 e 2","Instalação de novos pontos de monitoramento fluviométrico e realizar reparos necessários nos pontos existentes e atualização do sistema de informação","Ampliação com instalação de 8 postos hidrométricos e manutenção da rede de monitoramento hidrológico, sendo 4 postos  em 2021 e 4 postos em 2022.",null,"Estado","UGRHi",11]
["RB042022",2022,"3.1 - Efluentes","Prioritário","Contratação e execução de obras de saneamento básico na área rural e urbanizada","Implantação de 20 empreendimentos de saneamento na área rural da UGRHI 11 até 2023",null,"Município","UGRHi",11]
["RB052022",2022,"3.3 - Resíduos","Prioritário","Implantar, ampliar ou manter ações de melhoria de gestão de resíduos sólidos, com ênfase na coleta seletiva","Implantação ou manutenção de 8 empreendimentos de melhoria da gestão de resíduos sólidos nos municípios da UGRHI até 2023",null,"Município","UGRHi",11]
["RB062022",2022,"4.1 - Erosão","Prioritário","Executar 3 obras de Combate a erosão de cursos d'água entre 2021 a 2023","Reazlizar 4 Obras e ações de proteção e controle da erosão do solo ou do assoreamento dos corpos d'água até 2023",null,"Município","UGRHi",11]
["RB072022",2022,"7.1 - Drenagem","Não prioritário","Desenvolver projetos executivos de microdrenagem para os municípios da UGRHI 11","Elaborar 23 projetos de microdrenagem até 2027",null,"Município","UGRHi",11]
["RB082022",2022,"7.1 - Drenagem","Prioritário","Execução de serviços e obras para contenção de inundações ou alagamentos.","Executar 12 empreendimentos estruturais visando mitigar os impactos das inundações até 2023",null,"Município","UGRHi",11]
["RB092022",2022,"8.1 - Capacitação","Prioritário","Capacitar os membros do CBH e CTs sobre conceitos, práticas e experiências em PSA.","Realizar 1 oficina de capacitação sobre PSA membros do CBH e CTs",null,"Sociedade civil","UGRHi",11]
["RB102022",2022,"8.1 - Capacitação","Prioritário","Realizar capacitação sobre gestão de águas com base nas ações dos participantes","Realizar eventos bienais de formação para instituições com representação no CBH-RB, instituições parceiras, organizações da sociedade civil, comunidades rurais e jovens.",null,"Estado","UGRHi",11]
["RB112022",2022,"8.2 - Educação","Não prioritário","Realizar ações de educação ambiental (sensibilização e mobilização social) nos temas: recursos hídricos, participação, meio ambiente, poluição, mata ciliar, práticas sustentáveis, resíduos sólidos, defesa civil, solos e arborização urbana, para os seguintes públicos: estudantes, agricultores, pescadores, comunidades tradicionais, catadores, população em geral; via projetos Fehidro ","Realizar 1 projeto por ano em 2020, 2021, 2022 e 2023, contemplando ações de educação ambiental",null,"Sociedade civil","UGRHi",11]
["RB122022",2022,"8.2 - Educação","Prioritário","Produzir série didática de vídeos com materiais educativos e informativos sobre educação ambiental e recursos hídricos, com identidade local,  para população em geral, em linguagem acessível e lúdica ( 1 temática a cada 2 anos)","Produzir materiais educativos e informativos sobre 1 temática a cada 2 anos",null,"Sociedade civil","UGRHi",11]
["RB132022",2022,"8.2 - Educação","Prioritário","Oficinas de capacitação em recursos hídricos para educadores","Realizar 1 projeto em 2021 e 1 projeto em 2022",null,"Sociedade civil","UGRHi",11]
["RB012022",2023,"1.2 - Planejamento","PDC 1 e 2","Elaborar ou Revisar os Planos Municipais de Resíduos Sólidos","Elaborar ou revisar 23 Planos Municipais de Resíduos Sólidos até 2023",null,"Sociedade civil","UGRHi",11]
["RB042022",2023,"3.1 - Efluentes","Prioritário","Contratação e execução de obras de saneamento básico na área rural e urbanizada","Implantação de 20 empreendimentos de saneamento na área rural da UGRHI 11 até 2023",null,"Município","UGRHi",11]
["RB052022",2023,"3.3 - Resíduos","Prioritário","Implantar, ampliar ou manter ações de melhoria de gestão de resíduos sólidos, com ênfase na coleta seletiva","Implantação ou manutenção de 8 empreendimentos de melhoria da gestão de resíduos sólidos nos municípios da UGRHI até 2023",null,"Município","UGRHi",11]
["RB062022",2023,"4.1 - Erosão","Prioritário","Executar 3 obras de Combate a erosão de cursos d'água entre 2021 a 2023","Reazlizar 4 Obras e ações de proteção e controle da erosão do solo ou do assoreamento dos corpos d'água até 2023",null,"Município","UGRHi",11]
["RB072022",2023,"7.1 - Drenagem","Não prioritário","Desenvolver projetos executivos de microdrenagem para os municípios da UGRHI 11","Elaborar 23 projetos de microdrenagem até 2027",null,"Município","UGRHi",11]
["RB082022",2023,"7.1 - Drenagem","Prioritário","Execução de serviços e obras para contenção de inundações ou alagamentos.","Executar 12 empreendimentos estruturais visando mitigar os impactos das inundações até 2023",null,"Município","UGRHi",11]
["RB112022",2023,"8.2 - Educação","Não prioritário","Realizar ações de educação ambiental (sensibilização e mobilização social) nos temas: recursos hídricos, participação, meio ambiente, poluição, mata ciliar, práticas sustentáveis, resíduos sólidos, defesa civil, solos e arborização urbana, para os seguintes públicos: estudantes, agricultores, pescadores, comunidades tradicionais, catadores, população em geral; via projetos Fehidro ","Realizar 1 projeto por ano em 2020, 2021, 2022 e 2023, contemplando ações de educação ambiental",null,"Sociedade civil","UGRHi",11]
["RB122023",2023,"1.2 - Planejamento","PDC 1 e 2","Executar a revisão do Plano Diretor de Matas Ciliares","Revisão do Plano Diretor de Matas Ciliares em 2022",null,"Sociedade civil","UGRHi",11]
["RB132023",2023,"1.2 - Planejamento","PDC 1 e 2","Elaborar diagnóstico da situação da Pesca profissional e amadora nos rios do Vale, considerando os aspectos positivos e negativos.","Realizar 1 diagnóstico da situação da pesca em 2022",null,"Estado","UGRHi",11]
["RB142023",2023,"1.2 - Planejamento","PDC 1 e 2","Estudar a criação de um fundo permanente de pagamento por serviços ambientais, com recursos vindos de compensações ambientais, cobrança pelo uso da água, transposição de águas e outras fontes","Realizar 1 estudo para definição de fundo permanente para PSA em 2021",null,"Estado","UGRHi",11]
["RB152023",2023,"1.2 - Planejamento","PDC 1 e 2","Realizar o diagnóstico da demanda de saneamento básico rural, o prognóstico de atendimento com tipificação de alternativa de solução e avaliação da eficiência das USIs implantadas.","Avaliar a situação do saneamento na UGRHI 11",null,"Sociedade civil","UGRHi",11]
["RB162023",2023,"1.2 - Planejamento","PDC 1 e 2","Realizar a sistematização de procedimentos e digitalização de cartas geográficas e de processos antigos","Sistema de apoio a procedimentos de Outorga de Recursos Hídricos em 2023",null,"Sociedade civil","UGRHi",11]
["RB172023",2023,"2.7 - CORHI","PDC 1 e 2","Equipar a sala de situação do DAEE com equipamentos de informática e multimídia para monitoramento e sistemas de alerta nos municípios com histórico de inundação.","Equpar a Sala de Situação existente do DAEE para monitoramento de eventos extremos e sistemas de suporte e decisão em apoio a ações de Defesa Civil em 2023",null,"Sociedade civil","UGRHi",11]
["RB182023",2023,"4.2 - Conservação","Prioritário","Executar projeto de Diagnóstico, prognóstico e plano de ação","Implantar 1 projeto de Pagamentos por Serviços Ambientais  - PSA na UGRHI 11 em 2021 e 2013",null,"Município","Município","\"áreas críticas de abastecimento\""]
["RB192023",2023,"4.2 - Conservação","Prioritário","Fomentar a produção agroecológica e orgânica","Implantar 1 projeto piloto de produção de SAF ou sistema orgânico, com objetivo de formar unidade(s) demonstrativa(s) para fortalecimento e experimentação da técnica na bacia em 2023",null,"Sociedade civil","UGRHi",11]
["RB202023",2023,"4.2 - Conservação","Prioritário","Recuperar as APPs conforme o plano de recuperação de matas ciliares","Elaborar e executar 1 projeto de recuperação de APPs em 2023",null,"Sociedade civil","UGRHi",11]
["RB212023",2023,"8.2 - Educação","Prioritário","Reproduzir material de apoio (kit água)  a cada biênio","Inserção da temática de água e meio ambiente na sociedade.",null,"Sociedade civil","UGRHi",11]
["RB222023",2023,"8.2 - Educação","Prioritário","Adequar e equipar 1 centro e espaço de Educação Ambiental","Incentivar e fomentar a criação de 1 centro e espaço de Educação Ambiental.",null,"Sociedade civil","UGRHi",11]
["RB232023",2023,"8.3 - Comunicação","Prioritário","Contratação de serviço \"profissional\" na área de comuniação","Ampliar comunicação  do CBH internamente e com público em geral",null,"Sociedade civil","UGRHI",11]

{"sheet":"Operacional","index":10,"n_rows":76,"n_cols":95,"rows_kept":76,"cut":false,"hidden":false,"merged":[]}
[null,"SubPDC - Delib.CRH N° 190 /2016","SubPDC - Delib.CRH N° 246/2021 ",null,"Area","Executor","Fonte",null,"Tipo de Ação",null,"Prioridade",null,"Fonte"]
[null,"1.1 - SI","Não se aplica",null,"APRM","Estado","CFURH",null,"Obra",null,"Não prioritário",null,"FEHIDRO - Cobrança estadual"]
[null,"1.2 - Planejamento","1.1 - Legislação",null,"Aquífero","Município","Cobrança Estadual",null,"Serviços",null,"PDC 1 e 2",null,"FEHIDRO - CFURH"]
[null,"1.3 - Enquadramento","1.2 - Planejamento",null,"Área rural","Sociedade Civil","Outras",null,"Projeto Básico/Executivo",null,"Prioritário",null,"Cobrança Federal"]
[null,"1.4 - Monitoramento","2.1 - Plano",null,"Área urbana","Município e Sociedade Civil","Cobrança Federal",null,"Estudo/Diagnóstico",null,null,null,"Tesouro do Estado"]
[null,"1.5 - Disponibilidade","2.2 - Outorga",null,"Bacia","Estado e Município",null,null,"Capacitação",null,null,null,"Fundo especial de despesa\n"]
[null,"1.6 - Legislação","2.3 - Cobrança",null,"Corpo hídrico","Estado e Sociedade Civil",null,null,null,null,null,null,"Recursos da administração indireta"]
[null,"1.7 - Poluição","2.4 - Enquadramento",null,"Município","Estado, Município e Sociedade Civil",null,null,null,null,null,null,"Recursos vinculados federais"]
[null,"2.1 - Planos","2.5 - Redes de monitoramento e SI",null,"Região Hidrográfica","Iniciativa privada",null,null,null,null,null,null,"Operações de crédito"]
[null,"2.2 - Outorga","2.6 - Integração",null,"Sub-bacia",null,null,null,null,null,null,null,"Recursos privados da sociedade civil"]
[null,"2.3 - Cobrança","2.7 - CORHI",null,"UGRHi",null,null,null,null,null,null,null,"Recursos de instrumentos de fomento"]
[null,"2.4 - Efetivação","3.1 - Efluentes",null,"Outra",null,null,null,null,null,null,null,"Outras fontes"]
[null,"2.5 - Integração","3.2 - Poluição"]
[null,"2.6 - CORHI","3.3 - Resíduos"]
[null,"3.1 - Efluentes","3.4 - Intervenções"]
[null,"3.2 - Resíduos","4.1 - Controle erosão",null,null,null,"PRIORIDADE"]
[null,"3.3 - Drenagem","4.2 - Soluções baseadas Natureza",null,null,null,"PDC 1 e 2"]
[null,"3.4 - Erosão","4.3 - Mananciais",null,null,null,"Prioritário"]
[null,"3.5 - Intervenções","5.1 - Perdas",null,null,null,"Não prioritário"]
[null,"4.1 - Mananciais","5.2 - Racionalização"]
[null,"4.2 - Vegetação","5.3 - Reuso",null,"Area"]
[null,"5.1 - Perdas","6.1 - Captação",null,"APRM"]
[null,"5.2 - Racionalização","6.2 - Regularização",null,"Aquífero"]
[null,"5.3 - Reuso","7.1 - Drenagem",null,"Área rural (via de circulação; rodovia; distrito; etc.)"]
[null,"6.1 - Usos","7.2 - Escassez",null,"Área urbana (bairro; via de circulação; distrito; praça; parque; etc.)"]
[null,"6.2 - Segurança","8.1 - Capacitação",null,"Bacia"]
[null,"6.3 - Aproveitamento","8.2 - Educação",null,"Corpo hídrico"]
[null,"7.1 - Criticidades","8.3 - Comunicação",null,"Município"]
[null,"7.2 - Inundações",null,null,"Região Hidrográfica"]
[null,"7.3 - Estiagens",null,null,"Sub-bacia"]
[null,"8.1 - Capacitação",null,null,"UGRHi"]
[null,"8.2 - Educação"]
[null,"8.3 - Comunicação"]
[]
[]
[null,"Delib. CRH N° 246/2021 ",null,null,null,null,null,null,null,null,null,null,null,null,null,null,null,null,null,null,null,null,null,null,null,null,null,null,null,null,null,null,null,null,null,null,null,null,null,null,null,null,null,null,null,null,null,null,null,null,null,null,null,null,null,null,null,null,null,null,null,null,null,"Delib. CRH N° 190/2016, revogada a partir de 31/12/21"]
["Não se aplica","1.1 - Legislação","1.2 - Planejamento","2.1 - Plano","2.2 - Outorga","2.3 - Cobrança","2.4 - Enquadramento","2.5 - Redes de monitoramento e SI","2.6 - Integração","2.7 - CORHI","3.1 - Efluentes","3.2 - Poluição","3.3 - Resíduos","3.4 - Intervenções","4.1 - Controle erosão","4.2 - Soluções baseadas Natureza","4.3 - Mananciais","5.1 - Perdas","5.2 - Racionalização","5.3 - Reuso","6.1 - Captação","6.2 - Regularização","7.1 - Drenagem","7.2 - Escassez","8.1 - Capacitação","8.2 - Educação","8.3 - Comunicação",null,null,null,null,null,null,null,null,null,null,null,null,null,null,null,null,null,null,null,null,null,null,null,null,null,null,null,null,null,null,null,null,2020,2021,null,null,"1.1 - SI","1.2 - Planejamento","1.3 - Enquadramento","1.4 - Monitoramento","1.5 - Disponibilidade","1.6 - Legislação","1.7 - Poluição","2.1 - Planos","2.2 - Outorga","2.3 - Cobrança","2.4 - Efetivação","2.5 - Integração","2.6 - CORHI","3.1 - Efluentes","3.2 - Resíduos","3.3 - Drenagem","3.4 - Erosão","3.5 - Intervenções","4.1 - Mananciais","4.2 - Vegetação","5.1 - Perdas","5.2 - Racionalização","5.3 - Reuso","6.1 - Usos","6.2 - Segurança","6.3 - Aproveitamento","7.1 - Criticidades","7.2 - Inundações","7.3 - Estiagens","8.1 - Capacitação","8.2 - Educação","8.3 - Comunicação"]
["Não se aplica","PDC 1 e 2","PDC 1 e 2","PDC 1 e 2","PDC 1 e 2","PDC 1 e 2","PDC 1 e 2","PDC 1 e 2","PDC 1 e 2","PDC 1 e 2","Prioritário","Prioritário","Prioritário","Prioritário","Prioritário","Prioritário","Prioritário","Prioritário","Prioritário","Prioritário","Prioritário","Prioritário","Prioritário","Prioritário","Prioritário","Prioritário","Prioritário",null,null,null,null,null,null,null,null,null,null,null,null,null,null,null,null,null,null,null,null,null,null,null,null,null,null,null,null,null,null,null,null,"1.1","1.1",null,null,"PDC 1 e 2","PDC 1 e 2","PDC 1 e 2","PDC 1 e 2","PDC 1 e 2","PDC 1 e 2","PDC 1 e 2","PDC 1 e 2","PDC 1 e 2","PDC 1 e 2","PDC 1 e 2","PDC 1 e 2","PDC 1 e 2","Prioritário","Prioritário","Prioritário","Prioritário","Prioritário","Prioritário","Prioritário","Prioritário","Prioritário","Prioritário","Prioritário","Prioritário","Prioritário","Prioritário","Prioritário","Prioritário","Prioritário","Prioritário","Prioritário"]
[null,null,null,null,null,null,null,null,null,null,"Não prioritário","Não prioritário","Não prioritário","Não prioritário","Não prioritário","Não prioritário","Não prioritário","Não prioritário","Não prioritário","Não prioritário","Não prioritário","Não prioritário","Não prioritário","Não prioritário","Não prioritário","Não prioritário","Não prioritário",null,null,null,null,null,null,null,null,null,null,null,null,null,null,null,null,null,null,null,null,null,null,null,null,null,null,null,null,null,null,null,null,"1.2","1.2",null,null,null,null,null,null,null,null,null,null,null,null,null,null,null,"Não prioritário","Não prioritário","Não prioritário","Não prioritário","Não prioritário","Não prioritário","Não prioritário","Não prioritário","Não prioritário","Não prioritário","Não prioritário","Não prioritário","Não prioritário","Não prioritário","Não prioritário","Não prioritário","Não prioritário","Não prioritário","Não prioritário"]
[null,null,null,null,null,null,null,null,null,null,null,null,null,null,null,null,null,null,null,null,null,null,null,null,null,null,null,null,null,null,null,null,null,null,null,null,null,null,null,null,null,null,null,null,null,null,null,null,null,null,null,null,null,null,null,null,null,null,null,"1.3","1.3"]
[null,null,null,null,null,null,null,null,null,null,null,null,null,null,null,null,null,null,null,null,null,null,null,null,null,null,null,null,null,null,null,null,null,null,null,null,null,null,null,null,null,null,null,null,null,null,null,null,null,null,null,null,null,null,null,null,null,null,null,"1.4","1.4"]
[null,null,null,null,null,null,null,null,null,null,null,null,null,null,null,null,null,null,null,null,null,null,null,null,null,null,null,null,null,null,null,null,null,null,null,null,null,null,null,null,null,null,null,null,null,null,null,null,null,null,null,null,null,null,null,null,null,null,null,"1.5","1.5"]
[null,null,null,null,null,null,null,null,null,null,null,null,null,null,null,null,null,null,null,null,null,null,null,null,null,null,null,null,null,null,null,null,null,null,null,null,null,null,null,null,null,null,null,null,null,null,null,null,null,null,null,null,null,null,null,null,null,null,null,"1.6","1.6"]
[null,null,null,null,null,null,null,null,null,null,null,null,null,null,null,null,null,null,null,null,null,null,null,null,null,null,null,null,null,null,null,null,null,null,null,null,null,null,null,null,null,null,null,null,null,null,null,null,null,null,null,null,null,null,null,null,null,null,null,"1.7","1.7"]
["Sim","Não",null,null,null,null,null,null,null,null,null,null,null,null,null,null,null,null,null,null,null,null,null,null,null,null,null,null,null,null,null,null,null,null,null,null,null,null,null,null,null,null,null,null,null,null,null,null,null,null,null,null,null,null,null,null,null,null,null,"2.1","2.1"]
["Sim","Sim",null,null,null,null,null,null,null,null,null,null,null,null,null,null,null,null,null,null,null,null,null,null,null,null,null,null,null,null,null,null,null,null,null,null,null,null,null,null,null,null,null,null,null,null,null,null,null,null,null,null,null,null,null,null,null,null,null,"2.2","2.2"]
[null,"Não",null,null,null,null,null,null,null,null,null,null,null,null,null,null,null,null,null,null,null,null,null,null,null,null,null,null,null,null,null,null,null,null,null,null,null,null,null,null,null,null,null,null,null,null,null,null,null,null,null,null,null,null,null,null,null,null,null,"2.3","2.3"]
[null,null,null,null,null,null,null,null,null,null,null,null,null,null,null,null,null,null,null,null,null,null,null,null,null,null,null,null,null,null,null,null,null,null,null,null,null,null,null,null,null,null,null,null,null,null,null,null,null,null,null,null,null,null,null,null,null,null,null,"2.4","2.4"]
[null,null,null,null,null,null,null,null,null,null,null,null,null,null,null,null,null,null,null,null,null,null,null,null,null,null,null,null,null,null,null,null,null,null,null,null,null,null,null,null,null,null,null,null,null,null,null,null,null,null,null,null,null,null,null,null,null,null,null,"2.5","2.5"]
[null,null,null,null,null,null,null,null,null,null,null,null,null,null,null,null,null,null,null,null,null,null,null,null,null,null,null,null,null,null,null,null,null,null,null,null,null,null,null,null,null,null,null,null,null,null,null,null,null,null,null,null,null,null,null,null,null,null,null,"2.6","2.6"]
["Não se aplica","Não se aplica",null,null,null,null,null,null,null,null,null,null,null,null,null,null,null,null,null,null,null,null,null,null,null,null,null,null,null,null,null,null,null,null,null,null,null,null,null,null,null,null,null,null,null,null,null,null,null,null,null,null,null,null,null,null,null,null,null,"3.1","3.1"]
["1.1 - Legislação","PDC 1 e 2",null,null,null,null,null,null,null,null,null,null,null,null,null,null,null,null,null,null,null,null,null,null,null,null,null,null,null,null,null,null,null,null,null,null,null,null,null,null,null,null,null,null,null,null,null,null,null,null,null,null,null,null,null,null,null,null,null,"3.2","3.2"]
["1.2 - Planejamento",null,null,null,null,null,null,null,null,null,null,null,null,null,null,null,null,null,null,null,null,null,null,null,null,null,null,null,null,null,null,null,null,null,null,null,null,null,null,null,null,null,null,null,null,null,null,null,null,null,null,null,null,null,null,null,null,null,null,"3.3","3.3"]
["2.1 - Plano",null,null,null,null,null,null,null,null,null,null,null,null,null,null,null,null,null,null,null,null,null,null,null,null,null,null,null,null,null,null,null,null,null,null,null,null,null,null,null,null,null,null,null,null,null,null,null,null,null,null,null,null,null,null,null,null,null,null,"3.4","3.4"]
["2.2 - Outorga",null,null,null,null,null,null,null,null,null,null,null,null,null,null,null,null,null,null,null,null,null,null,null,null,null,null,null,null,null,null,null,null,null,null,null,null,null,null,null,null,null,null,null,null,null,null,null,null,null,null,null,null,null,null,null,null,null,null,"3.5","3.5"]
["2.3 - Cobrança",null,null,null,null,null,null,null,null,null,null,null,null,null,null,null,null,null,null,null,null,null,null,null,null,null,null,null,null,null,null,null,null,null,null,null,null,null,null,null,null,null,null,null,null,null,null,null,null,null,null,null,null,null,null,null,null,null,null,"4.1","4.1"]
["2.4 - Enquadramento",null,null,null,null,null,null,null,null,null,null,null,null,null,null,null,null,null,null,null,null,null,null,null,null,null,null,null,null,null,null,null,null,null,null,null,null,null,null,null,null,null,null,null,null,null,null,null,null,null,null,null,null,null,null,null,null,null,null,"4.2","4.2"]
["2.6 - Integração",null,null,null,null,null,null,null,null,null,null,null,null,null,null,null,null,null,null,null,null,null,null,null,null,null,null,null,null,null,null,null,null,null,null,null,null,null,null,null,null,null,null,null,null,null,null,null,null,null,null,null,null,null,null,null,null,null,null,"5.1","5.1"]
["2.7 - CORHI",null,null,null,null,null,null,null,null,null,null,null,null,null,null,null,null,null,null,null,null,null,null,null,null,null,null,null,null,null,null,null,null,null,null,null,null,null,null,null,null,null,null,null,null,null,null,null,null,null,null,null,null,null,null,null,null,null,null,"5.2","5.2"]
["3.1 - Efluentes",null,null,null,null,null,null,null,null,null,null,null,null,null,null,null,null,null,null,null,null,null,null,null,null,null,null,null,null,null,null,null,null,null,null,null,null,null,null,null,null,null,null,null,null,null,null,null,null,null,null,null,null,null,null,null,null,null,null,"5.3","5.3"]
["3.2 - Poluição",null,null,null,null,null,null,null,null,null,null,null,null,null,null,null,null,null,null,null,null,null,null,null,null,null,null,null,null,null,null,null,null,null,null,null,null,null,null,null,null,null,null,null,null,null,null,null,null,null,null,null,null,null,null,null,null,null,null,"6.1","6.1"]
["3.3 - Resíduos",null,null,null,null,null,null,null,null,null,null,null,null,null,null,null,null,null,null,null,null,null,null,null,null,null,null,null,null,null,null,null,null,null,null,null,null,null,null,null,null,null,null,null,null,null,null,null,null,null,null,null,null,null,null,null,null,null,null,"6.2","6.2"]
["3.4 - Intervenções",null,null,null,null,null,null,null,null,null,null,null,null,null,null,null,null,null,null,null,null,null,null,null,null,null,null,null,null,null,null,null,null,null,null,null,null,null,null,null,null,null,null,null,null,null,null,null,null,null,null,null,null,null,null,null,null,null,null,"6.3","6.3"]
["4.1 - Erosão",null,null,null,null,null,null,null,null,null,null,null,null,null,null,null,null,null,null,null,null,null,null,null,null,null,null,null,null,null,null,null,null,null,null,null,null,null,null,null,null,null,null,null,null,null,null,null,null,null,null,null,null,null,null,null,null,null,null,"7.1","7.1"]
["4.2 - Conservação",null,null,null,null,null,null,null,null,null,null,null,null,null,null,null,null,null,null,null,null,null,null,null,null,null,null,null,null,null,null,null,null,null,null,null,null,null,null,null,null,null,null,null,null,null,null,null,null,null,null,null,null,null,null,null,null,null,null,"7.2","7.2"]
["4.3 - Mananciais",null,null,null,null,null,null,null,null,null,null,null,null,null,null,null,null,null,null,null,null,null,null,null,null,null,null,null,null,null,null,null,null,null,null,null,null,null,null,null,null,null,null,null,null,null,null,null,null,null,null,null,null,null,null,null,null,null,null,"7.3","7.3"]
["5.1 - Perdas",null,null,null,null,null,null,null,null,null,null,null,null,null,null,null,null,null,null,null,null,null,null,null,null,null,null,null,null,null,null,null,null,null,null,null,null,null,null,null,null,null,null,null,null,null,null,null,null,null,null,null,null,null,null,null,null,null,null,"8.1","8.1"]
["5.2 - Racionalização",null,null,null,null,null,null,null,null,null,null,null,null,null,null,null,null,null,null,null,null,null,null,null,null,null,null,null,null,null,null,null,null,null,null,null,null,null,null,null,null,null,null,null,null,null,null,null,null,null,null,null,null,null,null,null,null,null,null,"8.2","8.2"]
["5.3 - Reuso",null,null,null,null,null,null,null,null,null,null,null,null,null,null,null,null,null,null,null,null,null,null,null,null,null,null,null,null,null,null,null,null,null,null,null,null,null,null,null,null,null,null,null,null,null,null,null,null,null,null,null,null,null,null,null,null,null,null,"8.3","8.3"]
["6.1 - Captação"]
["6.2 - Regularização"]
["7.1 - Drenagem"]
["7.2 - Escassez"]
["8.1 - Capacitação"]
["8.2 - Educação"]
["8.3 - Comunicação"]

{"sheet":"Explicativo","index":11,"n_rows":39,"n_cols":2,"rows_kept":39,"cut":false,"hidden":true,"merged":[]}
["Explicativo","Função"]
["sheet PAPI_20_21"]
["Coluna A","PDCs da Delib. CRH 190/2016 = lista suspensa (Operacional)"]
["Coluna B","subPDCs da Delib. CRH 190/2016 = lista suspensa (Operacional)"]
["Coluna E","formatação condicional para % = % tem que coincidir com o informado pelo CBH na Coluna O (Execução)"]
["Coluna F","categorias de Executores de Empreendimentos Fehidro = lista suspensa (Operacional)"]
["Coluna G","Área de abrangencia = delimitações possível em mapeamento = lista suspensa (Operacional)"]
["Coluna H","Nome da área de abrangencia conforme consta no Empreendimento Fehidro ou TR ou similar (preenchimento livre)"]
["Coluna I","R$ total que consta no PAPI vigente aprovado pelo CBH no RS "]
["Coluna J","R$ total disponibilizado para investimento conforme Deliberação do COFEHIDRO"]
["Coluna K","R$ total efetivamente pago/repassado neste exercício (Coluna L) ao Executor da Ação = tem que coincidir com informações do SINFehidro\nQuando R$ de K é maior que R$ de I, valor é destacado em vermelho = CBH tem que explicar a extrapolação dos recursos"]
["Coluna L","ano/exercício ao qual se referem os dados informados"]
["Coluna M","categorias de Fontes de recursos para os Executores da Ação = lista suspensa (Operacional)"]
["Coluna N","Nome da Fonte de recursos conforme consta no Empreendimento Fehidro ou TR ou similar = tem que coincidir com informações do SinFEHIDRO"]
["Coluna O","Informações relevantes sobre a execução Física e Financeira da Ação = tem que coincidir com a execução do Empreendimento e informações do SinFEHIDRO"]
[]
["sheet PAPI_22_23"]
["Coluna A","PDCs da Delib. CRH 246/2021 = lista suspensa (Operacional)"]
["Coluna B","subPDCs da Delib. CRH 246/2021 = lista suspensa (Operacional)"]
["Coluna E","formatação condicional para % = % tem que coincidir com o informado pelo CBH na Coluna O (Execução)"]
["Coluna F","categorias de Executores de Empreendimentos Fehidro = lista suspensa (Operacional)"]
["Coluna G","Área de abrangencia = delimitações possível em mapeamento = lista suspensa (Operacional)"]
["Coluna H","Nome da área de abrangencia conforme consta no Empreendimento Fehidro ou TR ou similar (preenchimento livre)"]
["Coluna I","R$ total que consta no PAPI vigente aprovado pelo CBH no RS "]
["Coluna J","R$ total disponibilizado para investimento conforme Deliberação do COFEHIDRO"]
["Coluna K","R$ total efetivamente pago/repassado neste exercício (Coluna L) ao Executor da Ação = tem que coincidir com informações do SINFehidro\nQuando R$ de K é maior que R$ de I, valor é destacado em vermelho = CBH tem que explicar a extrapolação dos recursos"]
["Coluna L","ano/exercício ao qual se referem os dados informados"]
["Coluna M","categorias de Fontes de recursos para os Executores da Ação = lista suspensa (Operacional)"]
["Coluna N","Nome da Fonte de recursos conforme consta no Empreendimento Fehidro ou TR ou similar = tem que coincidir com informações do SinFEHIDRO"]
["Coluna O","Informações relevantes sobre a execução Física e Financeira da Ação = tem que coincidir com a execução do Empreendimento e informações do SinFEHIDRO"]
[]
["sheet Consolidação","DEVE SER BLOQUEADA PARA ALTERAÇÕES"]
[]
["Coluna A","PDCs da Delib. CRH 190/2016 = lista suspensa (Operacional)"]
["Colunas B C D","Cálculos com os valores de Recurso financeiro Executado 2020 (sheet PAPI_20_21; Coluna K) para cada fonte FEHIDRO e para outras (soma da demais fontes)"]
["Colunas E F G","Cálculos com os valores de Recurso financeiro Executado 2021 (sheet PAPI_20_21; Coluna K) para cada fonte FEHIDRO e para outras (soma da demais fontes)"]
["Coluna H","PDCs da Delib. CRH 246/2021 = lista suspensa (Operacional)"]
["Colunas H I J","Cálculos com os valores de Recurso financeiro Executado 2022 (sheet PAPI_22_23; Coluna K) para cada fonte FEHIDRO e para outras (soma da demais fontes)"]
["Colunas K L M","Cálculos com os valores de Recurso financeiro Executado 2023 (sheet PAPI_22_23; Coluna K) para cada fonte FEHIDRO e para outras (soma da demais fontes)"]

{"sheet":"de-para 246 190","index":12,"n_rows":33,"n_cols":14,"rows_kept":33,"cut":false,"hidden":true,"merged":[]}
["246","190","Coluna1",null,"246","190","Coluna1","Coluna12",null,"190","246",null,"190","246"]
["1.1","1.6",null,null,"1.1","1.6",null,null,null,"1.1","2.5",null,"1.1","2.5"]
["1.2","1.2",null,null,"1.2","1.2","1.5","1.7",null,"1.2","1.2",null,"1.2","1.2"]
["2.1","2.1",null,null,"2.1","2.1",null,null,null,"1.3","2.4",null,"1.3","2.4"]
["2.2","2.2",null,null,"2.2","2.2",null,null,null,"1.4","2.5",null,"1.4","2.5"]
["2.3","2.3",null,null,"2.3","2.3",null,null,null,"1.5","6.1",null,"1.5","1.2"]
["2.4","1.3",null,null,"2.4","1.3","2.4",null,null,"1.6","1.1",null,"1.6","1.1"]
["2.4","2.4",null,null,"2.5","1.1","1.4","7.1",null,"1.7","3.2",null,"1.7","1.2"]
["2.5","1.1","1.4",null,"2.6","2.5",null,null,null,"2.1","2.1",null,"2.1","2.1"]
["2.6","2.5",null,null,"2.7","2.6",null,null,null,"2.2","2.2",null,"2.2","2.2"]
["2.7","2.6",null,null,"3.1","3.1",null,null,null,"2.3","2.3",null,"2.3","2.3"]
["3.1","3.1",null,null,"3.2",null,null,null,null,"2.4","2.4",null,"2.4","2.4"]
["3.2","1.7",null,null,"3.3","3.2",null,null,null,"2.5","2.6",null,"2.5","2.6"]
["3.3","3.2",null,null,"3.4","3.5",null,null,null,"2.6","2.7",null,"2.6","2.7"]
["3.4","3.5",null,null,"4.1","3.4",null,null,null,"3.1","3.1",null,"3.1","3.1"]
["4.1","3.4",null,null,"4.2","4.2",null,null,null,"3.2","3.3",null,"3.2","3.3"]
["4.2","4.2",null,null,"4.3","4.1",null,null,null,"3.3","7.1",null,"3.4","4.1"]
["4.3","4.1",null,null,"5.1","5.1",null,null,null,"3.4","4.1",null,"3.5","3.4"]
["5.1","5.1",null,null,"5.2","5.2",null,null,null,"3.5","3.4",null,"4.1","4.3"]
["5.2","5.2",null,null,"5.3","5.3",null,null,null,"4.1","4.3",null,"4.2","4.2"]
["5.3","5.3",null,null,"6.1",null,null,null,null,"4.2","4.2",null,"5.1","5.1"]
["6.1","1.5","6.2",null,"6.2","6.2",null,null,null,"5.1","5.1",null,"5.2","5.2"]
["6.2","6.1","6.3",null,"7.1","7.2",null,null,null,"5.2","5.2",null,"5.3","5.3"]
["7.1","3.3","7.2",null,"7.2","7.3",null,null,null,"5.3","5.3",null,"6.2","6.2"]
["7.2","7.1","7.3",null,"8.1","8.1",null,null,null,"6.1","6.2",null,"7.1","2.5"]
["8.1","8.1",null,null,"8.2","8.2",null,null,null,"6.2","6.1",null,"7.2","7.1"]
["8.2","8.2",null,null,"8.3","8.3",null,null,null,"6.3","6.2",null,"7.3","7.2"]
["8.3","8.3",null,null,null,null,null,null,null,"7.1","7.2",null,"8.1","8.1"]
[null,null,null,null,null,null,null,null,null,"7.2","7.1",null,"8.2","8.2"]
[null,null,null,null,null,null,null,null,null,"7.3","7.2",null,"8.3","8.3"]
[null,null,null,null,null,null,null,null,null,"8.1","8.1"]
[null,null,null,null,null,null,null,null,null,"8.2","8.2"]
[null,null,null,null,null,null,null,null,null,"8.3","8.3"]